Organisation Name,Organisation Code,Organisational Unit,Service Category Label,Procurement Category,Supplier Name,Supplier Other ID,Payment Date,Transaction Number,Amount (�),Purpose
Eden District Council,http://opendatacommunities.org/id/district-council/eden,Financial Services Manager,Emergency Planning and Works,Advertising,BARRNON MEDIA LTD,CUM001,05/03/2021,190371,500,covid ad 13.02.21
Eden District Council,http://opendatacommunities.org/id/district-council/eden,Technical Services Manager,Eden Leisure Centre & Appleby Swimming P,Building Maintenance,PUMPTRACK LTD,PUM001,05/03/2021,190417,550,ANNUAL SERVICE FRENCHFIELD SEWAE PUMPS
Eden District Council,http://opendatacommunities.org/id/district-council/eden,Technical Services Manager,Administrative Buildings,Building works,AMEY PLC,TFE001,05/03/2021,190561,8526,resurfacing of depot
Eden District Council,http://opendatacommunities.org/id/district-council/eden,Technical Services Manager,Emergency Planning and Works,Grounds Maint Contract additional works,AMEY PLC,TFE001,05/03/2021,190605,5208.54,GROUNDS MAIN FRENCHFIELD
Eden District Council,http://opendatacommunities.org/id/district-council/eden,Technical Services Manager,Emergency Planning and Works,Grounds Maint Contract additional works,AMEY PLC,TFE001,05/03/2021,190606,5208.54,GROUNDS MAIN FRENCHFIELD
Eden District Council,http://opendatacommunities.org/id/district-council/eden,Technical Services Manager,Emergency Planning and Works,Grounds Maint Contract additional works,AMEY PLC,TFE001,05/03/2021,190607,5208.54,GROUNDS MAIN FRENCHFIELD
Eden District Council,http://opendatacommunities.org/id/district-council/eden,Commercial Services Manager,Economic Development and Promotion,Professional fees,WALTON GOODLAND LTD,WAL008,05/03/2021,189757,2607.5,SURVEYOR JAN 21
Eden District Council,http://opendatacommunities.org/id/district-council/eden,Community Service Assistant Director,Holding Accounts,Grants and contributions,E.ON ENERGY SOLUTIONS LTD,EON002,05/03/2021,189958,250001.5,GHG LAD SCHEME 1A
Eden District Council,http://opendatacommunities.org/id/district-council/eden,Technical Services Manager,Public Conveniences,Water testing,MITIE,REN007,05/03/2021,190067,593.89,SERVICES FEB21
Eden District Council,http://opendatacommunities.org/id/district-council/eden,Technical Services Manager,Footway Lighting,Electricity,NPOWER LTD,NPO001,05/03/2021,190375,3651.95,MH LIGHTING
Eden District Council,http://opendatacommunities.org/id/district-council/eden,Technical Services Manager,Recycling,Recycling - Garden Waste,CUMBRIA WASTE RECYCLING LTD,CUM022,05/03/2021,190379,34713.07,CERT GW-10-20/21
Eden District Council,http://opendatacommunities.org/id/district-council/eden,Commercial Services Manager,Economic Development and Promotion,Grants and contributions,ATKINSON BUILDING CONTRACTORS,ATK009,05/03/2021,190384,500,2nd apprenticeship payment
Eden District Council,http://opendatacommunities.org/id/district-council/eden,Technical Services Manager,Public Conveniences,Window cleaning,AMEY PLC,TFE001,05/03/2021,190396,14650.96,CERT 2020/21_BC_11
Eden District Council,http://opendatacommunities.org/id/district-council/eden,Technical Services Manager,Administrative Buildings,Gas,CORONA ENERGY,COR003,05/03/2021,190405,1197.11,EDC TH JAN21-FEB21
Eden District Council,http://opendatacommunities.org/id/district-council/eden,Chief Executive's,Chief Executive,Agency Staff,CARLISLE CITY COUNCIL,CAR015,05/03/2021,190420,4000,RECOUPMENT PAY SHARED CEO JAN21
Eden District Council,http://opendatacommunities.org/id/district-council/eden,Revenue/Benefits Manager,Corporate Costs,Unique payments ****,REDACTED INFORMATION,AYE001,05/03/2021,190421,885.09,COUNCIL TAX REFUND
Eden District Council,http://opendatacommunities.org/id/district-council/eden,Environmental Services,Housing Standards,Professional fees,BOLTON AT HOME,BOL010,05/03/2021,190423,500,20/21 CONTTO NORTH WEST HOUSING FORUM
Eden District Council,http://opendatacommunities.org/id/district-council/eden,Technical Services Manager,Footway Lighting,FL  Contract,AMEY PLC,TFE001,05/03/2021,190557,2735.16,FOOTWAY LIGHTING
Eden District Council,http://opendatacommunities.org/id/district-council/eden,Financial Services Manager,Administrative Buildings,Balance brought forward BS,WATER PLUS,UNI008,05/03/2021,190574,531.5,MUSEUM / INFO CENTRE
Eden District Council,http://opendatacommunities.org/id/district-council/eden,Financial Services Manager,Emergency Planning and Works,Grants and contributions,THE RATE PAYER,42005204,03/03/2021,190673,2001,COVID 19 SMALL BUSINESS GRANT
Eden District Council,http://opendatacommunities.org/id/district-council/eden,Financial Services Manager,Emergency Planning and Works,Grants and contributions,Penrith pop & bargains,40249926,03/03/2021,190674,2001,COVID 19 SMALL BUSINESS GRANT
Eden District Council,http://opendatacommunities.org/id/district-council/eden,Financial Services Manager,Emergency Planning and Works,Grants and contributions,Eden Sound Ltd,42005203,03/03/2021,190675,2001,COVID 19 SMALL BUSINESS GRANT
Eden District Council,http://opendatacommunities.org/id/district-council/eden,Financial Services Manager,Emergency Planning and Works,Grants and contributions,Ullswater Foxhounds Trust,40042279,03/03/2021,190676,2001,COVID 19 SMALL BUSINESS GRANT
Eden District Council,http://opendatacommunities.org/id/district-council/eden,Financial Services Manager,Emergency Planning and Works,Grants and contributions,Helm Wind tours,42005201,03/03/2021,190677,2001,COVID 19 SMALL BUSINESS GRANT
Eden District Council,http://opendatacommunities.org/id/district-council/eden,Financial Services Manager,Emergency Planning and Works,Grants and contributions,THE RATE PAYER,42005202,03/03/2021,190678,2001,COVID 19 SMALL BUSINESS GRANT
Eden District Council,http://opendatacommunities.org/id/district-council/eden,Financial Services Manager,Emergency Planning and Works,Grants and contributions,THE RATE PAYER,42005205,03/03/2021,190679,2001,COVID 19 SMALL BUSINESS GRANT
Eden District Council,http://opendatacommunities.org/id/district-council/eden,Financial Services Manager,Emergency Planning and Works,Grants and contributions,Classic Desserts Ltd,40214401,03/03/2021,190680,5001,COVID 19 SMALL BUSINESS GRANT
Eden District Council,http://opendatacommunities.org/id/district-council/eden,Financial Services Manager,Emergency Planning and Works,Grants and contributions,THE RATE PAYER,42005200,03/03/2021,190681,2001,COVID 19 SMALL BUSINESS GRANT
Eden District Council,http://opendatacommunities.org/id/district-council/eden,Financial Services Manager,Emergency Planning and Works,Grants and contributions,THE RATE PAYER,42005206,03/03/2021,190682,2001,COVID 19 SMALL BUSINESS GRANT
Eden District Council,http://opendatacommunities.org/id/district-council/eden,Financial Services Manager,Emergency Planning and Works,Grants and contributions,THE RATE PAYER,40138866,03/03/2021,190683,967,COVID 19 SMALL BUSINESS GRANT
Eden District Council,http://opendatacommunities.org/id/district-council/eden,Financial Services Manager,Emergency Planning and Works,Grants and contributions,Townhead Cottage,40147945,03/03/2021,190684,967,COVID 19 SMALL BUSINESS GRANT
Eden District Council,http://opendatacommunities.org/id/district-council/eden,Financial Services Manager,Emergency Planning and Works,Grants and contributions,Grants of Castlegate,40153643,03/03/2021,190685,967,COVID 19 SMALL BUSINESS GRANT
Eden District Council,http://opendatacommunities.org/id/district-council/eden,Financial Services Manager,Emergency Planning and Works,Grants and contributions,Townhead Farm,40163459,03/03/2021,190686,967,COVID 19 SMALL BUSINESS GRANT
Eden District Council,http://opendatacommunities.org/id/district-council/eden,Financial Services Manager,Emergency Planning and Works,Grants and contributions, Dodd's,40168164,03/03/2021,190687,967,COVID 19 SMALL BUSINESS GRANT
Eden District Council,http://opendatacommunities.org/id/district-council/eden,Financial Services Manager,Emergency Planning and Works,Grants and contributions,THE RATE PAYER,40179614,03/03/2021,190688,967,COVID 19 SMALL BUSINESS GRANT
Eden District Council,http://opendatacommunities.org/id/district-council/eden,Financial Services Manager,Emergency Planning and Works,Grants and contributions,THE RATE PAYER,40179621,03/03/2021,190689,967,COVID 19 SMALL BUSINESS GRANT
Eden District Council,http://opendatacommunities.org/id/district-council/eden,Financial Services Manager,Emergency Planning and Works,Grants and contributions,THE RATE PAYER,40188588,03/03/2021,190690,967,COVID 19 SMALL BUSINESS GRANT
Eden District Council,http://opendatacommunities.org/id/district-council/eden,Financial Services Manager,Emergency Planning and Works,Grants and contributions,Red news ltd t/a xaviers,40220901,03/03/2021,190691,967,COVID 19 SMALL BUSINESS GRANT
Eden District Council,http://opendatacommunities.org/id/district-council/eden,Financial Services Manager,Emergency Planning and Works,Grants and contributions,Brownber Ltd,40223368,03/03/2021,190692,967,COVID 19 SMALL BUSINESS GRANT
Eden District Council,http://opendatacommunities.org/id/district-council/eden,Financial Services Manager,Emergency Planning and Works,Grants and contributions,THE RATE PAYER,40236524,03/03/2021,190693,967,COVID 19 SMALL BUSINESS GRANT
Eden District Council,http://opendatacommunities.org/id/district-council/eden,Financial Services Manager,Emergency Planning and Works,Grants and contributions,THE RATE PAYER,40244679,03/03/2021,190694,967,COVID 19 SMALL BUSINESS GRANT
Eden District Council,http://opendatacommunities.org/id/district-council/eden,Financial Services Manager,Emergency Planning and Works,Grants and contributions,Stafford House,42005092,03/03/2021,190695,967,COVID 19 SMALL BUSINESS GRANT
Eden District Council,http://opendatacommunities.org/id/district-council/eden,Financial Services Manager,Emergency Planning and Works,Grants and contributions,Hunsonby Swimming Club,40034407,03/03/2021,190696,1334,COVID 19 SMALL BUSINESS GRANT
Eden District Council,http://opendatacommunities.org/id/district-council/eden,Financial Services Manager,Emergency Planning and Works,Grants and contributions,Stag Cottage,40133502,03/03/2021,190697,1334,COVID 19 SMALL BUSINESS GRANT
Eden District Council,http://opendatacommunities.org/id/district-council/eden,Financial Services Manager,Emergency Planning and Works,Grants and contributions,THE RATE PAYER,40204718,03/03/2021,190698,1334,COVID 19 SMALL BUSINESS GRANT
Eden District Council,http://opendatacommunities.org/id/district-council/eden,Financial Services Manager,Emergency Planning and Works,Grants and contributions,Horse and Wagon Caravan Park,40248244,03/03/2021,190699,1334,COVID 19 SMALL BUSINESS GRANT
Eden District Council,http://opendatacommunities.org/id/district-council/eden,Financial Services Manager,Emergency Planning and Works,Grants and contributions,Bobbin Mill Hall Trust,40055794,03/03/2021,190700,1334,COVID 19 SMALL BUSINESS GRANT
Eden District Council,http://opendatacommunities.org/id/district-council/eden,Financial Services Manager,Emergency Planning and Works,Grants and contributions,THE RATE PAYER,40163190,03/03/2021,190701,1334,COVID 19 SMALL BUSINESS GRANT
Eden District Council,http://opendatacommunities.org/id/district-council/eden,Financial Services Manager,Emergency Planning and Works,Grants and contributions,Blencarn Village Hall Committee,40042750,03/03/2021,190702,1334,COVID 19 SMALL BUSINESS GRANT
Eden District Council,http://opendatacommunities.org/id/district-council/eden,Financial Services Manager,Emergency Planning and Works,Grants and contributions,Rumney Mead Boathouse and Harbour,40029177,03/03/2021,190703,1334,COVID 19 SMALL BUSINESS GRANT
Eden District Council,http://opendatacommunities.org/id/district-council/eden,Financial Services Manager,Emergency Planning and Works,Grants and contributions,THE RATE PAYER,40153001,03/03/2021,190704,1334,COVID 19 SMALL BUSINESS GRANT
Eden District Council,http://opendatacommunities.org/id/district-council/eden,Financial Services Manager,Emergency Planning and Works,Grants and contributions,THE RATE PAYER,40249988,03/03/2021,190705,1334,COVID 19 SMALL BUSINESS GRANT
Eden District Council,http://opendatacommunities.org/id/district-council/eden,Financial Services Manager,Emergency Planning and Works,Grants and contributions,THE RATE PAYER,40251813,03/03/2021,190706,1334,COVID 19 SMALL BUSINESS GRANT
Eden District Council,http://opendatacommunities.org/id/district-council/eden,Financial Services Manager,Emergency Planning and Works,Grants and contributions,THE RATE PAYER,40250407,03/03/2021,190709,2001,COVID 19 SMALL BUSINESS GRANT
Eden District Council,http://opendatacommunities.org/id/district-council/eden,Financial Services Manager,Emergency Planning and Works,Grants and contributions,Rising sun holiday park ltd,42001331,03/03/2021,190710,2001,COVID 19 SMALL BUSINESS GRANT
Eden District Council,http://opendatacommunities.org/id/district-council/eden,Financial Services Manager,Emergency Planning and Works,Grants and contributions,THE RATE PAYER,40250407,03/03/2021,190711,4000,COVID 19 SMALL BUSINESS GRANT
Eden District Council,http://opendatacommunities.org/id/district-council/eden,Financial Services Manager,Emergency Planning and Works,Grants and contributions,Rising sun holiday park ltd,42001331,03/03/2021,190712,1999,COVID 19 SMALL BUSINESS GRANT
Eden District Council,http://opendatacommunities.org/id/district-council/eden,Financial Services Manager,Emergency Planning and Works,Grants and contributions,THE RATE PAYER,40250612,03/03/2021,190713,1000,COVID 19 SMALL BUSINESS GRANT
Eden District Council,http://opendatacommunities.org/id/district-council/eden,Financial Services Manager,Emergency Planning and Works,Grants and contributions,Simply Bows And Chair Covers,40220086,05/03/2021,190744,967,COVID 19 SMALL BUSINESS GRANT
Eden District Council,http://opendatacommunities.org/id/district-council/eden,Financial Services Manager,Emergency Planning and Works,Grants and contributions,THE RATE PAYER,40188588,05/03/2021,190745,967,COVID 19 SMALL BUSINESS GRANT
Eden District Council,http://opendatacommunities.org/id/district-council/eden,Financial Services Manager,Emergency Planning and Works,Grants and contributions,THE RATE PAYER,40246835,05/03/2021,190746,967,COVID 19 SMALL BUSINESS GRANT
Eden District Council,http://opendatacommunities.org/id/district-council/eden,Financial Services Manager,Emergency Planning and Works,Grants and contributions,THE RATE PAYER,40233211,05/03/2021,190747,967,COVID 19 SMALL BUSINESS GRANT
Eden District Council,http://opendatacommunities.org/id/district-council/eden,Financial Services Manager,Emergency Planning and Works,Grants and contributions,FurryTails,40246279,05/03/2021,190748,967,COVID 19 SMALL BUSINESS GRANT
Eden District Council,http://opendatacommunities.org/id/district-council/eden,Financial Services Manager,Emergency Planning and Works,Grants and contributions,THE RATE PAYER,40231543,05/03/2021,190749,967,COVID 19 SMALL BUSINESS GRANT
Eden District Council,http://opendatacommunities.org/id/district-council/eden,Financial Services Manager,Emergency Planning and Works,Grants and contributions,THE RATE PAYER,40157089,05/03/2021,190750,967,COVID 19 SMALL BUSINESS GRANT
Eden District Council,http://opendatacommunities.org/id/district-council/eden,Financial Services Manager,Emergency Planning and Works,Grants and contributions,THE RATE PAYER,40138866,05/03/2021,190751,967,COVID 19 SMALL BUSINESS GRANT
Eden District Council,http://opendatacommunities.org/id/district-council/eden,Financial Services Manager,Emergency Planning and Works,Grants and contributions,Titterington Coaches Limited,40057134,05/03/2021,190752,967,COVID 19 SMALL BUSINESS GRANT
Eden District Council,http://opendatacommunities.org/id/district-council/eden,Financial Services Manager,Emergency Planning and Works,Grants and contributions,THE RATE PAYER,40234856,05/03/2021,190753,967,COVID 19 SMALL BUSINESS GRANT
Eden District Council,http://opendatacommunities.org/id/district-council/eden,Financial Services Manager,Emergency Planning and Works,Grants and contributions,Eden taxis cooperative,40220765,05/03/2021,190754,967,COVID 19 SMALL BUSINESS GRANT
Eden District Council,http://opendatacommunities.org/id/district-council/eden,Financial Services Manager,Emergency Planning and Works,Grants and contributions,Sinclairs Dental Laboratory,40149415,05/03/2021,190755,967,COVID 19 SMALL BUSINESS GRANT
Eden District Council,http://opendatacommunities.org/id/district-council/eden,Financial Services Manager,Emergency Planning and Works,Grants and contributions,Tirril Brewery Ltd,40170365,05/03/2021,190756,967,COVID 19 SMALL BUSINESS GRANT
Eden District Council,http://opendatacommunities.org/id/district-council/eden,Financial Services Manager,Emergency Planning and Works,Grants and contributions, Aqua Clean,40212757,05/03/2021,190757,967,COVID 19 SMALL BUSINESS GRANT
Eden District Council,http://opendatacommunities.org/id/district-council/eden,Financial Services Manager,Emergency Planning and Works,Grants and contributions,The Horseshoe Laundrette,40243409,05/03/2021,190758,967,COVID 19 SMALL BUSINESS GRANT
Eden District Council,http://opendatacommunities.org/id/district-council/eden,Financial Services Manager,Emergency Planning and Works,Grants and contributions,Fletcher House,42001151,05/03/2021,190759,967,COVID 19 SMALL BUSINESS GRANT
Eden District Council,http://opendatacommunities.org/id/district-council/eden,Financial Services Manager,Emergency Planning and Works,Grants and contributions,HESKET KENNELS,40115931,05/03/2021,190760,967,COVID 19 SMALL BUSINESS GRANT
Eden District Council,http://opendatacommunities.org/id/district-council/eden,Financial Services Manager,Emergency Planning and Works,Grants and contributions,THE RATE PAYER,40170501,05/03/2021,190761,967,COVID 19 SMALL BUSINESS GRANT
Eden District Council,http://opendatacommunities.org/id/district-council/eden,Financial Services Manager,Emergency Planning and Works,Grants and contributions,The Adventure Element Ltd,40242642,05/03/2021,190762,967,COVID 19 SMALL BUSINESS GRANT
Eden District Council,http://opendatacommunities.org/id/district-council/eden,Financial Services Manager,Emergency Planning and Works,Grants and contributions, Mirage Hair Studio,40229311,05/03/2021,190763,967,COVID 19 SMALL BUSINESS GRANT
Eden District Council,http://opendatacommunities.org/id/district-council/eden,Financial Services Manager,Emergency Planning and Works,Grants and contributions,Titterington Holidays Limited,40046516,05/03/2021,190764,967,COVID 19 SMALL BUSINESS GRANT
Eden District Council,http://opendatacommunities.org/id/district-council/eden,Financial Services Manager,Emergency Planning and Works,Grants and contributions,the cutting room,40237480,05/03/2021,190765,967,COVID 19 SMALL BUSINESS GRANT
Eden District Council,http://opendatacommunities.org/id/district-council/eden,Financial Services Manager,Emergency Planning and Works,Grants and contributions,K & B Travel,40143547,05/03/2021,190766,967,COVID 19 SMALL BUSINESS GRANT
Eden District Council,http://opendatacommunities.org/id/district-council/eden,Financial Services Manager,Emergency Planning and Works,Grants and contributions,Beautique,40224835,05/03/2021,190767,967,COVID 19 SMALL BUSINESS GRANT
Eden District Council,http://opendatacommunities.org/id/district-council/eden,Financial Services Manager,Emergency Planning and Works,Grants and contributions,The Nailbar,40227605,05/03/2021,190768,967,COVID 19 SMALL BUSINESS GRANT
Eden District Council,http://opendatacommunities.org/id/district-council/eden,Financial Services Manager,Emergency Planning and Works,Grants and contributions,Greg Malloy Limited,40232126,05/03/2021,190769,967,COVID 19 SMALL BUSINESS GRANT
Eden District Council,http://opendatacommunities.org/id/district-council/eden,Financial Services Manager,Emergency Planning and Works,Grants and contributions,Eden Wedding Boutique,40234290,05/03/2021,190770,967,COVID 19 SMALL BUSINESS GRANT
Eden District Council,http://opendatacommunities.org/id/district-council/eden,Financial Services Manager,Emergency Planning and Works,Grants and contributions,THE RATE PAYER,40235132,05/03/2021,190771,967,COVID 19 SMALL BUSINESS GRANT
Eden District Council,http://opendatacommunities.org/id/district-council/eden,Financial Services Manager,Emergency Planning and Works,Grants and contributions,Worldwide travel connections Ltd,40239998,05/03/2021,190772,967,COVID 19 SMALL BUSINESS GRANT
Eden District Council,http://opendatacommunities.org/id/district-council/eden,Financial Services Manager,Emergency Planning and Works,Grants and contributions,1878 Cumbria Ltd,40245009,05/03/2021,190773,2001,COVID 19 SMALL BUSINESS GRANT
Eden District Council,http://opendatacommunities.org/id/district-council/eden,Financial Services Manager,Emergency Planning and Works,Grants and contributions,PMW Electricals,42005300,05/03/2021,190774,2001,COVID 19 SMALL BUSINESS GRANT
Eden District Council,http://opendatacommunities.org/id/district-council/eden,Financial Services Manager,Emergency Planning and Works,Grants and contributions,Neil Marston Safety & Risk Management Ltd,42005301,05/03/2021,190775,2001,COVID 19 SMALL BUSINESS GRANT
Eden District Council,http://opendatacommunities.org/id/district-council/eden,Financial Services Manager,Emergency Planning and Works,Grants and contributions,THE RATE PAYER,42005302,05/03/2021,190776,2001,COVID 19 SMALL BUSINESS GRANT
Eden District Council,http://opendatacommunities.org/id/district-council/eden,Financial Services Manager,Emergency Planning and Works,Grants and contributions,Ivy Cottage Baker,42005303,05/03/2021,190777,2001,COVID 19 SMALL BUSINESS GRANT
Eden District Council,http://opendatacommunities.org/id/district-council/eden,Financial Services Manager,Emergency Planning and Works,Grants and contributions,Gilderdale forest school limited,42005304,05/03/2021,190778,2001,COVID 19 SMALL BUSINESS GRANT
Eden District Council,http://opendatacommunities.org/id/district-council/eden,Financial Services Manager,Emergency Planning and Works,Grants and contributions,Ivy House Stables,42005305,05/03/2021,190779,2001,COVID 19 SMALL BUSINESS GRANT
Eden District Council,http://opendatacommunities.org/id/district-council/eden,Financial Services Manager,Emergency Planning and Works,Grants and contributions,THE RATE PAYER,42005306,05/03/2021,190780,2001,COVID 19 SMALL BUSINESS GRANT
Eden District Council,http://opendatacommunities.org/id/district-council/eden,Financial Services Manager,Emergency Planning and Works,Grants and contributions,Llama Karma Kafe Ltd,40251158,05/03/2021,190783,2001,COVID 19 SMALL BUSINESS GRANT
Eden District Council,http://opendatacommunities.org/id/district-council/eden,Financial Services Manager,Emergency Planning and Works,Grants and contributions,THE RATE PAYER,40251479,05/03/2021,190784,2001,COVID 19 SMALL BUSINESS GRANT
Eden District Council,http://opendatacommunities.org/id/district-council/eden,Financial Services Manager,Emergency Planning and Works,Grants and contributions,Llama Karma Kafe Ltd,40251158,05/03/2021,190785,4000,COVID 19 SMALL BUSINESS GRANT
Eden District Council,http://opendatacommunities.org/id/district-council/eden,Financial Services Manager,Emergency Planning and Works,Grants and contributions,THE RATE PAYER,40251479,05/03/2021,190786,4000,COVID 19 SMALL BUSINESS GRANT
Eden District Council,http://opendatacommunities.org/id/district-council/eden,Corporate Services Director,Corporate Costs,Software � maintenance,CIVICA UK LTD,CIV002,12/03/2021,189311,2360.42,FASTPORTAL PLUS 1APP EXTENSION
Eden District Council,http://opendatacommunities.org/id/district-council/eden,Financial Services Manager,Corporate Costs,Balance brought forward BS,CIVICA UK LTD,CIV002,12/03/2021,189312,2934.72,18.3.21-17.3.22 5 -LICENCES CARTOLOGY DS
Eden District Council,http://opendatacommunities.org/id/district-council/eden,Financial Services Manager,Corporate Costs,Balance brought forward BS,CIVICA UK LTD,CIV002,12/03/2021,190107,14496.03,LICENCES 11 USERS
Eden District Council,http://opendatacommunities.org/id/district-council/eden,Legal Services Manager,Legal Services,Agency Staff,VENN GROUP LIMITED,VEN003,12/03/2021,190386,728.4,time sheet we 07.02.21
Eden District Council,http://opendatacommunities.org/id/district-council/eden,Environmental Services,Community Wardens,Dog Contract O.O.H retainer,AMEY PLC,TFE001,12/03/2021,190389,970.24,KENNELLINGFEB21
Eden District Council,http://opendatacommunities.org/id/district-council/eden,Financial Services Manager,Corporate Costs,Balance brought forward BS,SOCIALSIGNIN LTD,SOC008,12/03/2021,190403,4548,SUBSCRIPTION TO ORLO 2021/22
Eden District Council,http://opendatacommunities.org/id/district-council/eden,Financial Services Manager,Corporate Costs,Balance brought forward BS,CIPFA,CIP001,12/03/2021,190425,3100,FIN ADVICE NETWORK 1.4.21-31.3.22
Eden District Council,http://opendatacommunities.org/id/district-council/eden,Planning Policy Manager,Environmental Enhancement & Conservation,Grants and contributions,CUMBRIA WILDLIFE TRUST,CUM077,12/03/2021,190556,1000,EDC CONT CUMBRIA NATURE 2020-21
Eden District Council,http://opendatacommunities.org/id/district-council/eden,Technical Services Manager,Land Charges,Professional fees,CUMBRIA COUNTY COUNCIL,CCC002,12/03/2021,190581,745,SEARCHES DEC20
Eden District Council,http://opendatacommunities.org/id/district-council/eden,Financial Services Manager,Emergency Planning and Works,Grants and contributions,EDEN CARERS,EDE044,12/03/2021,190610,5000,3RD GRANT COVID SUPPOR
Eden District Council,http://opendatacommunities.org/id/district-council/eden,Legal Services Manager,Legal Services,Professional fees,BEVAN BRITTAN LLP,BEV002,12/03/2021,190611,3142.5,PROF CHARGES 30.11.20-14.12.20
Eden District Council,http://opendatacommunities.org/id/district-council/eden,Legal Services Manager,Legal Services,Agency Staff,VENN GROUP LIMITED,VEN003,12/03/2021,190615,1068.32,TIME SHEET W.E 14.2.21 JF
Eden District Council,http://opendatacommunities.org/id/district-council/eden,Chief Executive's,Chief Executive,Salaries,CARLISLE CITY COUNCIL,CAR015,12/03/2021,190622,4000,SHARED CEO PAY FEB21
Eden District Council,http://opendatacommunities.org/id/district-council/eden,Chief Executive's,One Eden Programme,Agency Staff,MBSP CONSULTANCY LTD,MBS001,12/03/2021,190640,7200,one eden feb 21
Eden District Council,http://opendatacommunities.org/id/district-council/eden,Environmental Services,1996 Mandatory Renovation Grants,Capital grants,PPM LTD,PPM001,12/03/2021,190562,1765.54,FIN PAYMENT GRANT REF 200061
Eden District Council,http://opendatacommunities.org/id/district-council/eden,Technical Services Manager,Street Cleaning,Gum removal,UK NATIONWIDE CLEANING SERVICES LTD,UKN001,12/03/2021,190402,7882.7,DEEP CLEANING - PENRITH / APPLEBY
Eden District Council,http://opendatacommunities.org/id/district-council/eden,Community Service Assistant Director,Emergency Planning and Works,Printing and stationary,TEQEX LTD,TEQ001,12/03/2021,190419,1191.5,SAMSUNG GALAXY
Eden District Council,http://opendatacommunities.org/id/district-council/eden,Information Technology Manager,Information Technology,Computer equipment,PROBRAND LIMITED,PRO008,12/03/2021,190617,1265.65,wireless keyboard / monitor
Eden District Council,http://opendatacommunities.org/id/district-council/eden,Information Technology Manager,Information Technology,IT Contracts & Maintenance,BROLLY ASSOCIATES LTD,BRO060,12/03/2021,190621,7875,project management 4.12.20-29.01.21
Eden District Council,http://opendatacommunities.org/id/district-council/eden,Environmental Services,1996 Mandatory Renovation Grants,Capital grants,KJS ACCESS SOLUTIONS,KJS001,12/03/2021,190628,1813.47,FIN PAYMENT GRANT REF 200012
Eden District Council,http://opendatacommunities.org/id/district-council/eden,Environmental Services,Other Environmental Health,Supplies general,Glyn Jones and Son Ltd,GLY001,12/03/2021,190647,1250,FUNERAL COSTS
Eden District Council,http://opendatacommunities.org/id/district-council/eden,Financial Services Manager,Emergency Planning and Works,Grants and contributions,Busy bee cleaning and laundry,40249940,10/03/2021,190844,967,COVID 19 SMALL BUSINESS GRANT
Eden District Council,http://opendatacommunities.org/id/district-council/eden,Financial Services Manager,Emergency Planning and Works,Grants and contributions,oil solutions ltd,40176349,10/03/2021,190845,967,COVID 19 SMALL BUSINESS GRANT
Eden District Council,http://opendatacommunities.org/id/district-council/eden,Financial Services Manager,Emergency Planning and Works,Grants and contributions,Penrith RUFC Limited,40239912,10/03/2021,190846,1450,COVID 19 SMALL BUSINESS GRANT
Eden District Council,http://opendatacommunities.org/id/district-council/eden,Financial Services Manager,Emergency Planning and Works,Grants and contributions,THE RATE PAYER,40250377,10/03/2021,190847,967,COVID 19 SMALL BUSINESS GRANT
Eden District Council,http://opendatacommunities.org/id/district-council/eden,Financial Services Manager,Emergency Planning and Works,Grants and contributions,THE RATE PAYER,40172262,10/03/2021,190848,1450,COVID 19 SMALL BUSINESS GRANT
Eden District Council,http://opendatacommunities.org/id/district-council/eden,Financial Services Manager,Emergency Planning and Works,Grants and contributions,Gio gents hair stylist,40217035,10/03/2021,190849,967,COVID 19 SMALL BUSINESS GRANT
Eden District Council,http://opendatacommunities.org/id/district-council/eden,Financial Services Manager,Emergency Planning and Works,Grants and contributions,Timeless Hairdressing,40232744,10/03/2021,190850,967,COVID 19 SMALL BUSINESS GRANT
Eden District Council,http://opendatacommunities.org/id/district-council/eden,Financial Services Manager,Emergency Planning and Works,Grants and contributions,THE RATE PAYER,40250155,10/03/2021,190851,967,COVID 19 SMALL BUSINESS GRANT
Eden District Council,http://opendatacommunities.org/id/district-council/eden,Financial Services Manager,Emergency Planning and Works,Grants and contributions,APPLEBY TRAVEL,40028303,10/03/2021,190852,967,COVID 19 SMALL BUSINESS GRANT
Eden District Council,http://opendatacommunities.org/id/district-council/eden,Financial Services Manager,Emergency Planning and Works,Grants and contributions,THE RATE PAYER,40228332,10/03/2021,190853,967,COVID 19 SMALL BUSINESS GRANT
Eden District Council,http://opendatacommunities.org/id/district-council/eden,Financial Services Manager,Emergency Planning and Works,Grants and contributions,Taylor Country Cottages Ltd,40242703,10/03/2021,190854,967,COVID 19 SMALL BUSINESS GRANT
Eden District Council,http://opendatacommunities.org/id/district-council/eden,Financial Services Manager,Emergency Planning and Works,Grants and contributions,Cumbria Classic Coaches Limited,43003004,10/03/2021,190855,967,COVID 19 SMALL BUSINESS GRANT
Eden District Council,http://opendatacommunities.org/id/district-council/eden,Financial Services Manager,Emergency Planning and Works,Grants and contributions,The Apartment at Rampsbeck Lodge,40157775,10/03/2021,190856,967,COVID 19 SMALL BUSINESS GRANT
Eden District Council,http://opendatacommunities.org/id/district-council/eden,Financial Services Manager,Emergency Planning and Works,Grants and contributions,THE RATE PAYER,40205735,10/03/2021,190857,967,COVID 19 SMALL BUSINESS GRANT
Eden District Council,http://opendatacommunities.org/id/district-council/eden,Financial Services Manager,Emergency Planning and Works,Grants and contributions,Crafty Baker Limited,40225906,10/03/2021,190858,967,COVID 19 SMALL BUSINESS GRANT
Eden District Council,http://opendatacommunities.org/id/district-council/eden,Financial Services Manager,Emergency Planning and Works,Grants and contributions,Ever bright Lodge Limited,40238902,10/03/2021,190859,2175,COVID 19 SMALL BUSINESS GRANT
Eden District Council,http://opendatacommunities.org/id/district-council/eden,Financial Services Manager,Emergency Planning and Works,Grants and contributions,THE RATE PAYER,40248985,10/03/2021,190860,967,COVID 19 SMALL BUSINESS GRANT
Eden District Council,http://opendatacommunities.org/id/district-council/eden,Financial Services Manager,Emergency Planning and Works,Grants and contributions,THE RATE PAYER,40251479,10/03/2021,190861,967,COVID 19 SMALL BUSINESS GRANT
Eden District Council,http://opendatacommunities.org/id/district-council/eden,Financial Services Manager,Emergency Planning and Works,Grants and contributions,THE RATE PAYER,43003001,10/03/2021,190862,967,COVID 19 SMALL BUSINESS GRANT
Eden District Council,http://opendatacommunities.org/id/district-council/eden,Financial Services Manager,Emergency Planning and Works,Grants and contributions,North Lakes aesthetics,43003002,10/03/2021,190863,967,COVID 19 SMALL BUSINESS GRANT
Eden District Council,http://opendatacommunities.org/id/district-council/eden,Financial Services Manager,Emergency Planning and Works,Grants and contributions,Sculpt Personal Training,43003003,10/03/2021,190864,967,COVID 19 SMALL BUSINESS GRANT
Eden District Council,http://opendatacommunities.org/id/district-council/eden,Financial Services Manager,Emergency Planning and Works,Grants and contributions,THE RATE PAYER,40152343,10/03/2021,190865,967,COVID 19 SMALL BUSINESS GRANT
Eden District Council,http://opendatacommunities.org/id/district-council/eden,Financial Services Manager,Emergency Planning and Works,Grants and contributions,APPLEBY FOOTBALL & SQUASH CLUB,40054425,10/03/2021,190866,1334,COVID 19 SMALL BUSINESS GRANT
Eden District Council,http://opendatacommunities.org/id/district-council/eden,Financial Services Manager,Emergency Planning and Works,Grants and contributions,THE RATE PAYER,40221560,10/03/2021,190867,1334,COVID 19 SMALL BUSINESS GRANT
Eden District Council,http://opendatacommunities.org/id/district-council/eden,Financial Services Manager,Emergency Planning and Works,Grants and contributions,Winton Parish Hall Committee,40039389,10/03/2021,190868,1334,COVID 19 SMALL BUSINESS GRANT
Eden District Council,http://opendatacommunities.org/id/district-council/eden,Financial Services Manager,Emergency Planning and Works,Grants and contributions,South Tynedale Railway Preservation Society,40246361,10/03/2021,190869,1334,COVID 19 SMALL BUSINESS GRANT
Eden District Council,http://opendatacommunities.org/id/district-council/eden,Financial Services Manager,Emergency Planning and Works,Grants and contributions,Argill House,40167826,10/03/2021,190870,1334,COVID 19 SMALL BUSINESS GRANT
Eden District Council,http://opendatacommunities.org/id/district-council/eden,Financial Services Manager,Emergency Planning and Works,Grants and contributions,THE RATE PAYER,40203456,10/03/2021,190871,1334,COVID 19 SMALL BUSINESS GRANT
Eden District Council,http://opendatacommunities.org/id/district-council/eden,Financial Services Manager,Emergency Planning and Works,Grants and contributions,Woodside Caravan Park,40137962,10/03/2021,190872,1334,COVID 19 SMALL BUSINESS GRANT
Eden District Council,http://opendatacommunities.org/id/district-council/eden,Financial Services Manager,Emergency Planning and Works,Grants and contributions, Coldbeck Barn Holiday Lets,40051464,10/03/2021,190873,1334,COVID 19 SMALL BUSINESS GRANT
Eden District Council,http://opendatacommunities.org/id/district-council/eden,Financial Services Manager,Emergency Planning and Works,Grants and contributions,JUST GREEK,40243508,10/03/2021,190874,2001,COVID 19 SMALL BUSINESS GRANT
Eden District Council,http://opendatacommunities.org/id/district-council/eden,Financial Services Manager,Emergency Planning and Works,Grants and contributions,THE RATE PAYER,42005401,10/03/2021,190875,2001,COVID 19 SMALL BUSINESS GRANT
Eden District Council,http://opendatacommunities.org/id/district-council/eden,Financial Services Manager,Emergency Planning and Works,Grants and contributions,Dynamic Joinery Limited,42005402,10/03/2021,190876,2001,COVID 19 SMALL BUSINESS GRANT
Eden District Council,http://opendatacommunities.org/id/district-council/eden,Financial Services Manager,Emergency Planning and Works,Grants and contributions,THE RATE PAYER,42005403,10/03/2021,190877,2001,COVID 19 SMALL BUSINESS GRANT
Eden District Council,http://opendatacommunities.org/id/district-council/eden,Financial Services Manager,Emergency Planning and Works,Grants and contributions,Ullswater Road Garage Ltd,40230663,12/03/2021,190927,2000,COVID 19 SMALL BUSINESS GRANT
Eden District Council,http://opendatacommunities.org/id/district-council/eden,Financial Services Manager,Emergency Planning and Works,Grants and contributions,THE RATE PAYER,40248695,12/03/2021,190928,1334,COVID 19 SMALL BUSINESS GRANT
Eden District Council,http://opendatacommunities.org/id/district-council/eden,Financial Services Manager,Emergency Planning and Works,Grants and contributions,THE RATE PAYER,40112970,12/03/2021,190929,1334,COVID 19 SMALL BUSINESS GRANT
Eden District Council,http://opendatacommunities.org/id/district-council/eden,Financial Services Manager,Emergency Planning and Works,Grants and contributions,The National Trust,40124768,12/03/2021,190930,1334,COVID 19 SMALL BUSINESS GRANT
Eden District Council,http://opendatacommunities.org/id/district-council/eden,Financial Services Manager,Emergency Planning and Works,Grants and contributions,The National Trust,40236005,12/03/2021,190931,1334,COVID 19 SMALL BUSINESS GRANT
Eden District Council,http://opendatacommunities.org/id/district-council/eden,Financial Services Manager,Emergency Planning and Works,Grants and contributions,The National Trust,40130671,12/03/2021,190932,1334,COVID 19 SMALL BUSINESS GRANT
Eden District Council,http://opendatacommunities.org/id/district-council/eden,Financial Services Manager,Emergency Planning and Works,Grants and contributions,Townhead Farm,40163459,12/03/2021,190933,1334,COVID 19 SMALL BUSINESS GRANT
Eden District Council,http://opendatacommunities.org/id/district-council/eden,Financial Services Manager,Emergency Planning and Works,Grants and contributions,Townhead Cottage,40147945,12/03/2021,190934,1334,COVID 19 SMALL BUSINESS GRANT
Eden District Council,http://opendatacommunities.org/id/district-council/eden,Financial Services Manager,Emergency Planning and Works,Grants and contributions,CO.SEC AUSTIN KELSO & SONS LTD,40182467,12/03/2021,190935,1334,COVID 19 SMALL BUSINESS GRANT
Eden District Council,http://opendatacommunities.org/id/district-council/eden,Financial Services Manager,Emergency Planning and Works,Grants and contributions,THE RATE PAYER,40251400,12/03/2021,190936,1334,COVID 19 SMALL BUSINESS GRANT
Eden District Council,http://opendatacommunities.org/id/district-council/eden,Financial Services Manager,Emergency Planning and Works,Grants and contributions,THE RATE PAYER,40243447,12/03/2021,190937,1334,COVID 19 SMALL BUSINESS GRANT
Eden District Council,http://opendatacommunities.org/id/district-council/eden,Financial Services Manager,Emergency Planning and Works,Grants and contributions,Eden Lacy Lodge,40183088,12/03/2021,190938,1334,COVID 19 SMALL BUSINESS GRANT
Eden District Council,http://opendatacommunities.org/id/district-council/eden,Financial Services Manager,Emergency Planning and Works,Grants and contributions,The Eden Lacy Trust,40183095,12/03/2021,190939,1334,COVID 19 SMALL BUSINESS GRANT
Eden District Council,http://opendatacommunities.org/id/district-council/eden,Financial Services Manager,Emergency Planning and Works,Grants and contributions,t/a fonefix,40209140,12/03/2021,190940,1334,COVID 19 SMALL BUSINESS GRANT
Eden District Council,http://opendatacommunities.org/id/district-council/eden,Financial Services Manager,Emergency Planning and Works,Grants and contributions,Carvetii Contracts Ltd,40247197,12/03/2021,190941,1334,COVID 19 SMALL BUSINESS GRANT
Eden District Council,http://opendatacommunities.org/id/district-council/eden,Financial Services Manager,Emergency Planning and Works,Grants and contributions,Eden Lacy Lodge,40183088,12/03/2021,190942,967,COVID 19 SMALL BUSINESS GRANT
Eden District Council,http://opendatacommunities.org/id/district-council/eden,Financial Services Manager,Emergency Planning and Works,Grants and contributions,The Eden Lacy Trust,40183095,12/03/2021,190943,967,COVID 19 SMALL BUSINESS GRANT
Eden District Council,http://opendatacommunities.org/id/district-council/eden,Financial Services Manager,Emergency Planning and Works,Grants and contributions,Maximum Adventure Ltd,40214432,12/03/2021,190944,967,COVID 19 SMALL BUSINESS GRANT
Eden District Council,http://opendatacommunities.org/id/district-council/eden,Financial Services Manager,Emergency Planning and Works,Grants and contributions,THE RATE PAYER,40241076,12/03/2021,190945,967,COVID 19 SMALL BUSINESS GRANT
Eden District Council,http://opendatacommunities.org/id/district-council/eden,Financial Services Manager,Emergency Planning and Works,Grants and contributions,THE RATE PAYER,40247265,12/03/2021,190946,967,COVID 19 SMALL BUSINESS GRANT
Eden District Council,http://opendatacommunities.org/id/district-council/eden,Financial Services Manager,Emergency Planning and Works,Grants and contributions,Low Close Stables,43003005,12/03/2021,190947,967,COVID 19 SMALL BUSINESS GRANT
Eden District Council,http://opendatacommunities.org/id/district-council/eden,Financial Services Manager,Emergency Planning and Works,Grants and contributions,Rail Charter Services Ltd,42005404,12/03/2021,190948,2001,COVID 19 SMALL BUSINESS GRANT
Eden District Council,http://opendatacommunities.org/id/district-council/eden,Environmental Services,Housing Delivery,Professional fees,LAMBERT SMITH HAMPTON,LAM009,19/03/2021,190806,5000,VIABILITY ASSESSMENTS-GREYSTOKE EDENSIDE
Eden District Council,http://opendatacommunities.org/id/district-council/eden,Information Technology Manager,Information Technology,Software � maintenance,WATERFORD TECHNOLOGIES LTD,WAT028,19/03/2021,190807,16500,3 YRS ANNUAL SUPPORT COMPLYKEY MAILMETER
Eden District Council,http://opendatacommunities.org/id/district-council/eden,Technical Services Manager,Recycling,Bank-Refurbishment,IAN CANNON LTD,CAN004,19/03/2021,190880,4550,EXTENSION / FENCING WORKS
Eden District Council,http://opendatacommunities.org/id/district-council/eden,Commercial Services Manager,Economic Development and Promotion,Advertising,CUMBRIAN NEWSPAPERS LTD,CUM024,19/03/2021,190900,534.32,APPRENTICESHIP SUPP FEB PRINT
Eden District Council,http://opendatacommunities.org/id/district-council/eden,Commercial Services Manager,Economic Development and Promotion,Advertising,CUMBRIAN NEWSPAPERS LTD,CUM024,19/03/2021,190905,655.69,App�ship supplement Jan
Eden District Council,http://opendatacommunities.org/id/district-council/eden,Human Resources Manager,Central Expenses,Welfare,REDACTED INFORMATION,NIE002,19/03/2021,190914,900,3 emplyees x 6 sessions
Eden District Council,http://opendatacommunities.org/id/district-council/eden,Technical Services Manager,Land Charges,Professional fees,CUMBRIA COUNTY COUNCIL,CCC002,19/03/2021,190731,944,searches nov 20
Eden District Council,http://opendatacommunities.org/id/district-council/eden,Technical Services Manager,Land Charges,Professional fees,CUMBRIA COUNTY COUNCIL,CCC002,19/03/2021,190733,1325,SEARCHES JAN21
Eden District Council,http://opendatacommunities.org/id/district-council/eden,Financial Services Manager,Corporate Costs,National Fraud Initiative,CABINET OFFICE,CAB002,19/03/2021,190740,2450,income ogds
Eden District Council,http://opendatacommunities.org/id/district-council/eden,Technical Services Manager,Recycling,material price fluctuations,CUMBRIA WASTE RECYCLING LTD,CUM022,19/03/2021,190791,5829.24,BS-F-77-2020/21
Eden District Council,http://opendatacommunities.org/id/district-council/eden,Technical Services Manager,Recycling,material price fluctuations,CUMBRIA WASTE RECYCLING LTD,CUM022,19/03/2021,190792,6333.62,BS-F-76-2020/21
Eden District Council,http://opendatacommunities.org/id/district-council/eden,Technical Services Manager,Recycling,material price fluctuations,CUMBRIA WASTE RECYCLING LTD,CUM022,19/03/2021,190793,4669.42,f-20-2020/21
Eden District Council,http://opendatacommunities.org/id/district-council/eden,Technical Services Manager,Recycling,material price fluctuations,CUMBRIA WASTE RECYCLING LTD,CUM022,19/03/2021,190794,4292.77,cert f-21-2020/21
Eden District Council,http://opendatacommunities.org/id/district-council/eden,Commercial Services Manager,Economic Development and Promotion,Grants and contributions,A J & D CHAPELHOW (CLIBURN) LTD,CHA039,19/03/2021,190799,500,4TH APPRENTICE PAYMENT HH
Eden District Council,http://opendatacommunities.org/id/district-council/eden,Technical Services Manager,Administrative Buildings,Gas,CORONA ENERGY,COR003,19/03/2021,190879,710.41,EDC MH
Eden District Council,http://opendatacommunities.org/id/district-council/eden,Financial Services Manager,Corporate Costs,Balance brought forward BS,DISTRICT SURVEYORS  ASSOCIATION LIMITED,DIS001,19/03/2021,190899,1878.7,LABC SERVICE FEE 2021/22
Eden District Council,http://opendatacommunities.org/id/district-council/eden,Information Technology Manager,Information Technology,IT Contracts & Maintenance,MLL TELECOM LTD,MLL001,19/03/2021,187308,3705.75,SERVICES TH AND MH 01.1.21-31.03.21
Eden District Council,http://opendatacommunities.org/id/district-council/eden,Financial Services Manager,Corporate Costs,Balance brought forward BS,IT PROFESSIONAL SERVICES LTD,ITP001,19/03/2021,189305,2000,ANNUAL BILL 2021-2022 DATACENTRE CONNECT
Eden District Council,http://opendatacommunities.org/id/district-council/eden,Financial Services Manager,Insurance,Insurance,ZURICH INSURANCE PLC,ZUR001,19/03/2021,190714,1895.19,INSURANCE RENEWAL 31.1.21-30.01.22
Eden District Council,http://opendatacommunities.org/id/district-council/eden,Technical Services Manager,Arts and Leisure,Grants and contributions,EDEN ARTS LTD,EDE013,19/03/2021,190716,10000,CORE FUNDING 2ND TRANCHE
Eden District Council,http://opendatacommunities.org/id/district-council/eden,Legal Services Manager,Corporate Costs,Year End Valuation Fees,WALTON GOODLAND LTD,WAL008,19/03/2021,190719,2555,SURVEY PENRITH LEISURE CENTRE / FRENCHFI
Eden District Council,http://opendatacommunities.org/id/district-council/eden,Commercial Services Manager,Economic Development and Promotion,Professional fees,WALTON GOODLAND LTD,WAL008,19/03/2021,190721,857.5,RATE FOR SURVEYOR - NEWTON RIGG
Eden District Council,http://opendatacommunities.org/id/district-council/eden,Chief Executive's,One Eden Programme,Valuation fees,WALTON GOODLAND LTD,WAL008,19/03/2021,190722,4108.57,RATE FOR SURVEYOR -OLD LONDON DEPOT
Eden District Council,http://opendatacommunities.org/id/district-council/eden,Legal Services Manager,Legal Services,Agency Staff,VENN GROUP LIMITED,VEN003,19/03/2021,190729,582.72,TIME SHEET W/E 28.02.21
Eden District Council,http://opendatacommunities.org/id/district-council/eden,Technical Services Manager,Street Cleaning,SC  CCC  Weed treatment,AMEY PLC,TFE001,19/03/2021,190732,18712.57,CERT M-SC107
Eden District Council,http://opendatacommunities.org/id/district-council/eden,Technical Services Manager,Refuse Collection,Contract refuse collection,AMEY PLC,TFE001,19/03/2021,190734,77961.35,CERT NO M-RC107
Eden District Council,http://opendatacommunities.org/id/district-council/eden,Technical Services Manager,Recycling,Em Wks Storage,AMEY PLC,TFE001,19/03/2021,190735,551.12,CERT MEW107
Eden District Council,http://opendatacommunities.org/id/district-council/eden,Financial Services Manager,Corporate Costs,Balance brought forward BS,MARSH LTD,MAR046,19/03/2021,190743,646.16,INSURANCE 31.1.21-30.1.22
Eden District Council,http://opendatacommunities.org/id/district-council/eden,Financial Services Manager,Corporate Costs,Balance brought forward BS,MARSH LTD,MAR046,19/03/2021,190744,47309.09,INSURANCE 31.1.21-30.1.22
Eden District Council,http://opendatacommunities.org/id/district-council/eden,Commercial Services Manager,Economic Development and Promotion,Grants and contributions,THE LIMES DENTAL PRACTICE,LIM005,19/03/2021,190800,500,3RD APPRENTICE PAYMENT LS
Eden District Council,http://opendatacommunities.org/id/district-council/eden,Chief Executive's,One Eden Programme,Valuation fees,WALTON GOODLAND LTD,WAL008,19/03/2021,190804,1950,RATE FOR SURVEYOR AGRICOLA HOUSE
Eden District Council,http://opendatacommunities.org/id/district-council/eden,Commercial Services Manager,Economic Development and Promotion,Grants and contributions,K FORRESTER & SON LTD,FOR017,19/03/2021,190805,750,2ND 3RD 4TH APPRNTICESHIP PAYMENTS
Eden District Council,http://opendatacommunities.org/id/district-council/eden,Commercial Services Manager,Economic Development and Promotion,Professional fees,WALTON GOODLAND LTD,WAL008,19/03/2021,190887,2840.5,SURVEYOR NEWTON RIGG JAN21
Eden District Council,http://opendatacommunities.org/id/district-council/eden,Revenue/Benefits Manager,Revenue & Benefits,Postages,ROYAL MAIL NW,ROY001,19/03/2021,190892,1163.12,1ST AND 2ND CLASS MAIL
Eden District Council,http://opendatacommunities.org/id/district-council/eden,Information Technology Manager,Information Technology,IT Contracts & Maintenance,MLL TELECOM LTD,MLL001,19/03/2021,190895,-607.75,CREDIT AGAINST SI14866
Eden District Council,http://opendatacommunities.org/id/district-council/eden,Revenue/Benefits Manager,Administrative Buildings,Control account system code,AMEY PLC,TFE001,19/03/2021,190923,1008.05,REFUND OVERPAYMENT INV20607931
Eden District Council,http://opendatacommunities.org/id/district-council/eden,Technical Services Manager,Parks and Open Spaces,Contingency - service contracts, SURVEY SERVICES,SUR006,19/03/2021,190424,770,SURVEY/BURIAL PLOT DESIGN
Eden District Council,http://opendatacommunities.org/id/district-council/eden,Legal Services Manager,Legal Services,Agency Staff,VENN GROUP LIMITED,VEN003,19/03/2021,190618,628.47,time sheet w/e 21.02.21
Eden District Council,http://opendatacommunities.org/id/district-council/eden,Corporate Services Director,Emergency Planning and Works,Advertising,INTRO PR . SOCIAL MEDIA . CONTENT,INT014,19/03/2021,190626,3960.06,PR FEB 21 SOCIAL MEDIA
Eden District Council,http://opendatacommunities.org/id/district-council/eden,Technical Services Manager,Land Management,Building works,BAKER MALLETT LLP,BAK010,19/03/2021,190638,570,VOREDA HOUSE FEES NR 3
Eden District Council,http://opendatacommunities.org/id/district-council/eden,Technical Services Manager,Land Management,Building works,BAKER MALLETT LLP,BAK010,19/03/2021,190639,1760,voreda house fees nr 2
Eden District Council,http://opendatacommunities.org/id/district-council/eden,Commissioning & Tech Services Ass Dir,Emergency Planning and Works,Building Maintenance,HEATONS GROUP LTD,LAK004,19/03/2021,190641,555.02,STATIONERY / PAPER
Eden District Council,http://opendatacommunities.org/id/district-council/eden,Financial Services Manager,Financial Services,Agency Staff,CIPFA PENNA,CIP013,19/03/2021,190712,12159,INTERIM MANAGEMENT FEB 21 DB
Eden District Council,http://opendatacommunities.org/id/district-council/eden,Corporate Services Director,Director of Corporate Services,Agency Staff,CIPFA PENNA,CIP013,19/03/2021,190713,16720,INTERIM MANAGEMENT FEB 21 PS
Eden District Council,http://opendatacommunities.org/id/district-council/eden,Information Technology Manager,Information Technology,Software � purchase,PHOENIX SOFTWARE LTD,PHO001,19/03/2021,190736,655.7,M365 E3 SHARED SERVER
Eden District Council,http://opendatacommunities.org/id/district-council/eden,Commercial Services Manager,Commercial Services,Agency Staff,THE RATE PAYER,BAL010,19/03/2021,190741,3462.5,eco dev team support feb 21
Eden District Council,http://opendatacommunities.org/id/district-council/eden,Financial Services Manager,Emergency Planning and Works,Grants and contributions,Stag Cottage,40133502,17/03/2021,191027,4000,COVID 19 SMALL BUSINESS GRANT
Eden District Council,http://opendatacommunities.org/id/district-council/eden,Financial Services Manager,Emergency Planning and Works,Grants and contributions,Melmerby Hall,40139876,17/03/2021,191028,4000,COVID 19 SMALL BUSINESS GRANT
Eden District Council,http://opendatacommunities.org/id/district-council/eden,Financial Services Manager,Emergency Planning and Works,Grants and contributions,Melmerby Estates Limited,40219093,17/03/2021,191029,4000,COVID 19 SMALL BUSINESS GRANT
Eden District Council,http://opendatacommunities.org/id/district-council/eden,Financial Services Manager,Emergency Planning and Works,Grants and contributions,Hunsonby Swimming Club,40034407,17/03/2021,191030,4000,COVID 19 SMALL BUSINESS GRANT
Eden District Council,http://opendatacommunities.org/id/district-council/eden,Financial Services Manager,Emergency Planning and Works,Grants and contributions,Blencarn Village Hall Committee,40042750,17/03/2021,191031,4000,COVID 19 SMALL BUSINESS GRANT
Eden District Council,http://opendatacommunities.org/id/district-council/eden,Financial Services Manager,Emergency Planning and Works,Grants and contributions,THE RATE PAYER,40251578,17/03/2021,191032,4000,COVID 19 SMALL BUSINESS GRANT
Eden District Council,http://opendatacommunities.org/id/district-council/eden,Financial Services Manager,Emergency Planning and Works,Grants and contributions,THE RATE PAYER,40251813,17/03/2021,191033,4000,COVID 19 SMALL BUSINESS GRANT
Eden District Council,http://opendatacommunities.org/id/district-council/eden,Financial Services Manager,Emergency Planning and Works,Grants and contributions,Tirril Lodge,40183064,17/03/2021,191034,4000,COVID 19 SMALL BUSINESS GRANT
Eden District Council,http://opendatacommunities.org/id/district-council/eden,Financial Services Manager,Emergency Planning and Works,Grants and contributions,Bobbin Mill Hall Trust,40055794,17/03/2021,191035,4000,COVID 19 SMALL BUSINESS GRANT
Eden District Council,http://opendatacommunities.org/id/district-council/eden,Financial Services Manager,Emergency Planning and Works,Grants and contributions,THE RATE PAYER,40204718,17/03/2021,191036,4000,COVID 19 SMALL BUSINESS GRANT
Eden District Council,http://opendatacommunities.org/id/district-council/eden,Financial Services Manager,Emergency Planning and Works,Grants and contributions,THE RATE PAYER,40175674,17/03/2021,191037,4000,COVID 19 SMALL BUSINESS GRANT
Eden District Council,http://opendatacommunities.org/id/district-council/eden,Financial Services Manager,Emergency Planning and Works,Grants and contributions,Shap Local History Society,40174558,17/03/2021,191038,4000,COVID 19 SMALL BUSINESS GRANT
Eden District Council,http://opendatacommunities.org/id/district-council/eden,Financial Services Manager,Emergency Planning and Works,Grants and contributions,THE RATE PAYER,40135133,17/03/2021,191039,4000,COVID 19 SMALL BUSINESS GRANT
Eden District Council,http://opendatacommunities.org/id/district-council/eden,Financial Services Manager,Emergency Planning and Works,Grants and contributions,THE RATE PAYER,40250032,17/03/2021,191040,4000,COVID 19 SMALL BUSINESS GRANT
Eden District Council,http://opendatacommunities.org/id/district-council/eden,Financial Services Manager,Emergency Planning and Works,Grants and contributions,Newbiggin Village Hall Committee,40190581,17/03/2021,191041,4000,COVID 19 SMALL BUSINESS GRANT
Eden District Council,http://opendatacommunities.org/id/district-council/eden,Financial Services Manager,Emergency Planning and Works,Grants and contributions,J Dickinson & Sons,40250162,17/03/2021,191042,4000,COVID 19 SMALL BUSINESS GRANT
Eden District Council,http://opendatacommunities.org/id/district-council/eden,Financial Services Manager,Emergency Planning and Works,Grants and contributions,Rumney Mead Boathouse and Harbour,40029177,17/03/2021,191043,4000,COVID 19 SMALL BUSINESS GRANT
Eden District Council,http://opendatacommunities.org/id/district-council/eden,Financial Services Manager,Emergency Planning and Works,Grants and contributions,THE RATE PAYER,40250896,17/03/2021,191044,4000,COVID 19 SMALL BUSINESS GRANT
Eden District Council,http://opendatacommunities.org/id/district-council/eden,Financial Services Manager,Emergency Planning and Works,Grants and contributions,Whitecliff Enterprises Ltd,40215084,17/03/2021,191045,4000,COVID 19 SMALL BUSINESS GRANT
Eden District Council,http://opendatacommunities.org/id/district-council/eden,Financial Services Manager,Emergency Planning and Works,Grants and contributions,Woodside Caravan Park,40137962,17/03/2021,191046,4000,COVID 19 SMALL BUSINESS GRANT
Eden District Council,http://opendatacommunities.org/id/district-council/eden,Financial Services Manager,Emergency Planning and Works,Grants and contributions, LAKES DISTRICT GYROPLANES,40247555,17/03/2021,191047,4000,COVID 19 SMALL BUSINESS GRANT
Eden District Council,http://opendatacommunities.org/id/district-council/eden,Financial Services Manager,Emergency Planning and Works,Grants and contributions,Raj EXQUISITE CUISINE LTD,40243935,17/03/2021,191048,4000,COVID 19 SMALL BUSINESS GRANT
Eden District Council,http://opendatacommunities.org/id/district-council/eden,Financial Services Manager,Emergency Planning and Works,Grants and contributions,Salvation Army Trading Company Limited,40191607,17/03/2021,191049,4000,COVID 19 SMALL BUSINESS GRANT
Eden District Council,http://opendatacommunities.org/id/district-council/eden,Financial Services Manager,Emergency Planning and Works,Grants and contributions,SKELTON MEMORIAL HALL COMMITTEE,40031453,17/03/2021,191050,4000,COVID 19 SMALL BUSINESS GRANT
Eden District Council,http://opendatacommunities.org/id/district-council/eden,Financial Services Manager,Emergency Planning and Works,Grants and contributions,THE RATE PAYER,40153001,17/03/2021,191051,4000,COVID 19 SMALL BUSINESS GRANT
Eden District Council,http://opendatacommunities.org/id/district-council/eden,Financial Services Manager,Emergency Planning and Works,Grants and contributions,Cobble Rigg,40234924,17/03/2021,191052,4000,COVID 19 SMALL BUSINESS GRANT
Eden District Council,http://opendatacommunities.org/id/district-council/eden,Financial Services Manager,Emergency Planning and Works,Grants and contributions,SAMMY LEES MOTORS LIMITED,40237855,17/03/2021,191053,4000,COVID 19 SMALL BUSINESS GRANT
Eden District Council,http://opendatacommunities.org/id/district-council/eden,Financial Services Manager,Emergency Planning and Works,Grants and contributions,APPLEBY FOOTBALL & SQUASH CLUB,40054425,17/03/2021,191054,4000,COVID 19 SMALL BUSINESS GRANT
Eden District Council,http://opendatacommunities.org/id/district-council/eden,Financial Services Manager,Emergency Planning and Works,Grants and contributions,THE RATE PAYER,40163190,17/03/2021,191055,4000,COVID 19 SMALL BUSINESS GRANT
Eden District Council,http://opendatacommunities.org/id/district-council/eden,Financial Services Manager,Emergency Planning and Works,Grants and contributions,Appleby Castle Limited,40221553,17/03/2021,191056,4000,COVID 19 SMALL BUSINESS GRANT
Eden District Council,http://opendatacommunities.org/id/district-council/eden,Financial Services Manager,Emergency Planning and Works,Grants and contributions,Argill House,40167826,17/03/2021,191057,4000,COVID 19 SMALL BUSINESS GRANT
Eden District Council,http://opendatacommunities.org/id/district-council/eden,Financial Services Manager,Emergency Planning and Works,Grants and contributions,The Bookshop,40171283,17/03/2021,191058,4000,COVID 19 SMALL BUSINESS GRANT
Eden District Council,http://opendatacommunities.org/id/district-council/eden,Financial Services Manager,Emergency Planning and Works,Grants and contributions,THE RATE PAYER,40203029,17/03/2021,191059,4000,COVID 19 SMALL BUSINESS GRANT
Eden District Council,http://opendatacommunities.org/id/district-council/eden,Financial Services Manager,Emergency Planning and Works,Grants and contributions,Winton Parish Hall Committee,40039389,17/03/2021,191060,4000,COVID 19 SMALL BUSINESS GRANT
Eden District Council,http://opendatacommunities.org/id/district-council/eden,Financial Services Manager,Emergency Planning and Works,Grants and contributions,THE RATE PAYER,40251059,17/03/2021,191061,4000,COVID 19 SMALL BUSINESS GRANT
Eden District Council,http://opendatacommunities.org/id/district-council/eden,Financial Services Manager,Emergency Planning and Works,Grants and contributions, Coldbeck Barn Holiday Lets,40051464,17/03/2021,191062,4000,COVID 19 SMALL BUSINESS GRANT
Eden District Council,http://opendatacommunities.org/id/district-council/eden,Financial Services Manager,Emergency Planning and Works,Grants and contributions,Linden Cottage,40225142,17/03/2021,191063,4000,COVID 19 SMALL BUSINESS GRANT
Eden District Council,http://opendatacommunities.org/id/district-council/eden,Financial Services Manager,Emergency Planning and Works,Grants and contributions, WPB Holiday Home,40251219,17/03/2021,191064,4000,COVID 19 SMALL BUSINESS GRANT
Eden District Council,http://opendatacommunities.org/id/district-council/eden,Financial Services Manager,Emergency Planning and Works,Grants and contributions,Mango Tree (NW) limited,40230212,17/03/2021,191065,4000,COVID 19 SMALL BUSINESS GRANT
Eden District Council,http://opendatacommunities.org/id/district-council/eden,Financial Services Manager,Emergency Planning and Works,Grants and contributions,Coast to Coast (Fish and Chips) Ltd,40147396,17/03/2021,191066,4000,COVID 19 SMALL BUSINESS GRANT
Eden District Council,http://opendatacommunities.org/id/district-council/eden,Financial Services Manager,Emergency Planning and Works,Grants and contributions,Upper Eden R U F C,40037604,17/03/2021,191067,4000,COVID 19 SMALL BUSINESS GRANT
Eden District Council,http://opendatacommunities.org/id/district-council/eden,Financial Services Manager,Emergency Planning and Works,Grants and contributions,THE RATE PAYER,40249988,17/03/2021,191068,4000,COVID 19 SMALL BUSINESS GRANT
Eden District Council,http://opendatacommunities.org/id/district-council/eden,Financial Services Manager,Emergency Planning and Works,Grants and contributions,Hartside Nursery Garden,40106371,17/03/2021,191069,4000,COVID 19 SMALL BUSINESS GRANT
Eden District Council,http://opendatacommunities.org/id/district-council/eden,Financial Services Manager,Emergency Planning and Works,Grants and contributions,THE RATE PAYER,40241526,17/03/2021,191070,4000,COVID 19 SMALL BUSINESS GRANT
Eden District Council,http://opendatacommunities.org/id/district-council/eden,Financial Services Manager,Emergency Planning and Works,Grants and contributions,South Tynedale Railway Preservation Society,40246361,17/03/2021,191071,4000,COVID 19 SMALL BUSINESS GRANT
Eden District Council,http://opendatacommunities.org/id/district-council/eden,Financial Services Manager,Emergency Planning and Works,Grants and contributions,Horse and Wagon Caravan Park,40248244,17/03/2021,191072,4000,COVID 19 SMALL BUSINESS GRANT
Eden District Council,http://opendatacommunities.org/id/district-council/eden,Financial Services Manager,Emergency Planning and Works,Grants and contributions,SDA Properties Limited,40250346,17/03/2021,191073,4000,COVID 19 SMALL BUSINESS GRANT
Eden District Council,http://opendatacommunities.org/id/district-council/eden,Financial Services Manager,Emergency Planning and Works,Grants and contributions,BLUEBERRYS TEA SHOP ( ALSTON),40244099,17/03/2021,191074,4000,COVID 19 SMALL BUSINESS GRANT
Eden District Council,http://opendatacommunities.org/id/district-council/eden,Financial Services Manager,Emergency Planning and Works,Grants and contributions,Alston Town Hall Trusttees,40178994,17/03/2021,191075,4000,COVID 19 SMALL BUSINESS GRANT
Eden District Council,http://opendatacommunities.org/id/district-council/eden,Financial Services Manager,Emergency Planning and Works,Grants and contributions,FOX HOLLOW,40220420,17/03/2021,191076,4000,COVID 19 SMALL BUSINESS GRANT
Eden District Council,http://opendatacommunities.org/id/district-council/eden,Financial Services Manager,Emergency Planning and Works,Grants and contributions,THE RATE PAYER,40203456,17/03/2021,191077,4000,COVID 19 SMALL BUSINESS GRANT
Eden District Council,http://opendatacommunities.org/id/district-council/eden,Financial Services Manager,Emergency Planning and Works,Grants and contributions,THE RATE PAYER,40221560,17/03/2021,191078,4000,COVID 19 SMALL BUSINESS GRANT
Eden District Council,http://opendatacommunities.org/id/district-council/eden,Financial Services Manager,Emergency Planning and Works,Grants and contributions,The swallows,40241045,17/03/2021,191079,4000,COVID 19 SMALL BUSINESS GRANT
Eden District Council,http://opendatacommunities.org/id/district-council/eden,Financial Services Manager,Emergency Planning and Works,Grants and contributions,Flusco Wood Caravan Park,40137948,17/03/2021,191080,6000,COVID 19 SMALL BUSINESS GRANT
Eden District Council,http://opendatacommunities.org/id/district-council/eden,Financial Services Manager,Emergency Planning and Works,Grants and contributions,The Chopping Block Cumbria Ltd,40242826,17/03/2021,191081,6000,COVID 19 SMALL BUSINESS GRANT
Eden District Council,http://opendatacommunities.org/id/district-council/eden,Financial Services Manager,Emergency Planning and Works,Grants and contributions,Jim Walton (Penrith) Ltd,40157058,17/03/2021,191082,6000,COVID 19 SMALL BUSINESS GRANT
Eden District Council,http://opendatacommunities.org/id/district-council/eden,Financial Services Manager,Emergency Planning and Works,Grants and contributions,Stag Cottage,40133502,17/03/2021,191083,4097,COVID 19 SMALL BUSINESS GRANT
Eden District Council,http://opendatacommunities.org/id/district-council/eden,Financial Services Manager,Emergency Planning and Works,Grants and contributions,Melmerby Hall,40139876,17/03/2021,191084,4097,COVID 19 SMALL BUSINESS GRANT
Eden District Council,http://opendatacommunities.org/id/district-council/eden,Financial Services Manager,Emergency Planning and Works,Grants and contributions,Melmerby Estates Limited,40219093,17/03/2021,191085,4097,COVID 19 SMALL BUSINESS GRANT
Eden District Council,http://opendatacommunities.org/id/district-council/eden,Financial Services Manager,Emergency Planning and Works,Grants and contributions,Hunsonby Swimming Club,40034407,17/03/2021,191086,4097,COVID 19 SMALL BUSINESS GRANT
Eden District Council,http://opendatacommunities.org/id/district-council/eden,Financial Services Manager,Emergency Planning and Works,Grants and contributions,Blencarn Village Hall Committee,40042750,17/03/2021,191087,4097,COVID 19 SMALL BUSINESS GRANT
Eden District Council,http://opendatacommunities.org/id/district-council/eden,Financial Services Manager,Emergency Planning and Works,Grants and contributions,THE RATE PAYER,40251578,17/03/2021,191088,4097,COVID 19 SMALL BUSINESS GRANT
Eden District Council,http://opendatacommunities.org/id/district-council/eden,Financial Services Manager,Emergency Planning and Works,Grants and contributions,THE RATE PAYER,40251813,17/03/2021,191089,4097,COVID 19 SMALL BUSINESS GRANT
Eden District Council,http://opendatacommunities.org/id/district-council/eden,Financial Services Manager,Emergency Planning and Works,Grants and contributions,Tirril Lodge,40183064,17/03/2021,191090,4097,COVID 19 SMALL BUSINESS GRANT
Eden District Council,http://opendatacommunities.org/id/district-council/eden,Financial Services Manager,Emergency Planning and Works,Grants and contributions,Bobbin Mill Hall Trust,40055794,17/03/2021,191091,4097,COVID 19 SMALL BUSINESS GRANT
Eden District Council,http://opendatacommunities.org/id/district-council/eden,Financial Services Manager,Emergency Planning and Works,Grants and contributions,THE RATE PAYER,40204718,17/03/2021,191092,4097,COVID 19 SMALL BUSINESS GRANT
Eden District Council,http://opendatacommunities.org/id/district-council/eden,Financial Services Manager,Emergency Planning and Works,Grants and contributions,THE RATE PAYER,40175674,17/03/2021,191093,4097,COVID 19 SMALL BUSINESS GRANT
Eden District Council,http://opendatacommunities.org/id/district-council/eden,Financial Services Manager,Emergency Planning and Works,Grants and contributions,Shap Local History Society,40174558,17/03/2021,191094,4097,COVID 19 SMALL BUSINESS GRANT
Eden District Council,http://opendatacommunities.org/id/district-council/eden,Financial Services Manager,Emergency Planning and Works,Grants and contributions,THE RATE PAYER,40135133,17/03/2021,191095,4097,COVID 19 SMALL BUSINESS GRANT
Eden District Council,http://opendatacommunities.org/id/district-council/eden,Financial Services Manager,Emergency Planning and Works,Grants and contributions,THE RATE PAYER,40250032,17/03/2021,191096,4097,COVID 19 SMALL BUSINESS GRANT
Eden District Council,http://opendatacommunities.org/id/district-council/eden,Financial Services Manager,Emergency Planning and Works,Grants and contributions,Newbiggin Village Hall Committee,40190581,17/03/2021,191097,4097,COVID 19 SMALL BUSINESS GRANT
Eden District Council,http://opendatacommunities.org/id/district-council/eden,Financial Services Manager,Emergency Planning and Works,Grants and contributions,J Dickinson & Sons,40250162,17/03/2021,191098,4097,COVID 19 SMALL BUSINESS GRANT
Eden District Council,http://opendatacommunities.org/id/district-council/eden,Financial Services Manager,Emergency Planning and Works,Grants and contributions,Rumney Mead Boathouse and Harbour,40029177,17/03/2021,191099,4097,COVID 19 SMALL BUSINESS GRANT
Eden District Council,http://opendatacommunities.org/id/district-council/eden,Financial Services Manager,Emergency Planning and Works,Grants and contributions,THE RATE PAYER,40250896,17/03/2021,191100,4097,COVID 19 SMALL BUSINESS GRANT
Eden District Council,http://opendatacommunities.org/id/district-council/eden,Financial Services Manager,Emergency Planning and Works,Grants and contributions,Whitecliff Enterprises Ltd,40215084,17/03/2021,191101,4097,COVID 19 SMALL BUSINESS GRANT
Eden District Council,http://opendatacommunities.org/id/district-council/eden,Financial Services Manager,Emergency Planning and Works,Grants and contributions,Woodside Caravan Park,40137962,17/03/2021,191102,4097,COVID 19 SMALL BUSINESS GRANT
Eden District Council,http://opendatacommunities.org/id/district-council/eden,Financial Services Manager,Emergency Planning and Works,Grants and contributions,LAKES DISTRICT GYROPLANES,40247555,17/03/2021,191103,4097,COVID 19 SMALL BUSINESS GRANT
Eden District Council,http://opendatacommunities.org/id/district-council/eden,Financial Services Manager,Emergency Planning and Works,Grants and contributions,Raj EXQUISITE CUISINE LTD,40243935,17/03/2021,191104,4097,COVID 19 SMALL BUSINESS GRANT
Eden District Council,http://opendatacommunities.org/id/district-council/eden,Financial Services Manager,Emergency Planning and Works,Grants and contributions,Salvation Army Trading Company Limited,40191607,17/03/2021,191105,4097,COVID 19 SMALL BUSINESS GRANT
Eden District Council,http://opendatacommunities.org/id/district-council/eden,Financial Services Manager,Emergency Planning and Works,Grants and contributions,SKELTON MEMORIAL HALL COMMITTEE,40031453,17/03/2021,191106,4097,COVID 19 SMALL BUSINESS GRANT
Eden District Council,http://opendatacommunities.org/id/district-council/eden,Financial Services Manager,Emergency Planning and Works,Grants and contributions,THE RATE PAYER,40153001,17/03/2021,191107,4097,COVID 19 SMALL BUSINESS GRANT
Eden District Council,http://opendatacommunities.org/id/district-council/eden,Financial Services Manager,Emergency Planning and Works,Grants and contributions,Cobble Rigg,40234924,17/03/2021,191108,4097,COVID 19 SMALL BUSINESS GRANT
Eden District Council,http://opendatacommunities.org/id/district-council/eden,Financial Services Manager,Emergency Planning and Works,Grants and contributions,SAMMY LEES MOTORS LIMITED,40237855,17/03/2021,191109,4097,COVID 19 SMALL BUSINESS GRANT
Eden District Council,http://opendatacommunities.org/id/district-council/eden,Financial Services Manager,Emergency Planning and Works,Grants and contributions,APPLEBY FOOTBALL & SQUASH CLUB,40054425,17/03/2021,191110,4097,COVID 19 SMALL BUSINESS GRANT
Eden District Council,http://opendatacommunities.org/id/district-council/eden,Financial Services Manager,Emergency Planning and Works,Grants and contributions,THE RATE PAYER,40163190,17/03/2021,191111,4097,COVID 19 SMALL BUSINESS GRANT
Eden District Council,http://opendatacommunities.org/id/district-council/eden,Financial Services Manager,Emergency Planning and Works,Grants and contributions,Appleby Castle Limited,40221553,17/03/2021,191112,4097,COVID 19 SMALL BUSINESS GRANT
Eden District Council,http://opendatacommunities.org/id/district-council/eden,Financial Services Manager,Emergency Planning and Works,Grants and contributions,Argill House,40167826,17/03/2021,191113,4097,COVID 19 SMALL BUSINESS GRANT
Eden District Council,http://opendatacommunities.org/id/district-council/eden,Financial Services Manager,Emergency Planning and Works,Grants and contributions, The Bookshop,40171283,17/03/2021,191114,4097,COVID 19 SMALL BUSINESS GRANT
Eden District Council,http://opendatacommunities.org/id/district-council/eden,Financial Services Manager,Emergency Planning and Works,Grants and contributions,THE RATE PAYER,40203029,17/03/2021,191115,4097,COVID 19 SMALL BUSINESS GRANT
Eden District Council,http://opendatacommunities.org/id/district-council/eden,Financial Services Manager,Emergency Planning and Works,Grants and contributions,Winton Parish Hall Committee,40039389,17/03/2021,191116,4097,COVID 19 SMALL BUSINESS GRANT
Eden District Council,http://opendatacommunities.org/id/district-council/eden,Financial Services Manager,Emergency Planning and Works,Grants and contributions,THE RATE PAYER,40251059,17/03/2021,191117,4097,COVID 19 SMALL BUSINESS GRANT
Eden District Council,http://opendatacommunities.org/id/district-council/eden,Financial Services Manager,Emergency Planning and Works,Grants and contributions, Coldbeck Barn Holiday Lets,40051464,17/03/2021,191118,4097,COVID 19 SMALL BUSINESS GRANT
Eden District Council,http://opendatacommunities.org/id/district-council/eden,Financial Services Manager,Emergency Planning and Works,Grants and contributions,Linden Cottage,40225142,17/03/2021,191119,4097,COVID 19 SMALL BUSINESS GRANT
Eden District Council,http://opendatacommunities.org/id/district-council/eden,Financial Services Manager,Emergency Planning and Works,Grants and contributions, WPB Holiday Home,40251219,17/03/2021,191120,4097,COVID 19 SMALL BUSINESS GRANT
Eden District Council,http://opendatacommunities.org/id/district-council/eden,Financial Services Manager,Emergency Planning and Works,Grants and contributions,Mango Tree (NW) limited,40230212,17/03/2021,191121,4097,COVID 19 SMALL BUSINESS GRANT
Eden District Council,http://opendatacommunities.org/id/district-council/eden,Financial Services Manager,Emergency Planning and Works,Grants and contributions,Coast to Coast (Fish and Chips) Ltd,40147396,17/03/2021,191122,4097,COVID 19 SMALL BUSINESS GRANT
Eden District Council,http://opendatacommunities.org/id/district-council/eden,Financial Services Manager,Emergency Planning and Works,Grants and contributions,Upper Eden R U F C,40037604,17/03/2021,191123,4097,COVID 19 SMALL BUSINESS GRANT
Eden District Council,http://opendatacommunities.org/id/district-council/eden,Financial Services Manager,Emergency Planning and Works,Grants and contributions,THE RATE PAYER,40249988,17/03/2021,191124,4097,COVID 19 SMALL BUSINESS GRANT
Eden District Council,http://opendatacommunities.org/id/district-council/eden,Financial Services Manager,Emergency Planning and Works,Grants and contributions,Hartside Nursery Garden,40106371,17/03/2021,191125,4097,COVID 19 SMALL BUSINESS GRANT
Eden District Council,http://opendatacommunities.org/id/district-council/eden,Financial Services Manager,Emergency Planning and Works,Grants and contributions,THE RATE PAYER,40241526,17/03/2021,191126,4097,COVID 19 SMALL BUSINESS GRANT
Eden District Council,http://opendatacommunities.org/id/district-council/eden,Financial Services Manager,Emergency Planning and Works,Grants and contributions,South Tynedale Railway Preservation Society,40246361,17/03/2021,191127,4097,COVID 19 SMALL BUSINESS GRANT
Eden District Council,http://opendatacommunities.org/id/district-council/eden,Financial Services Manager,Emergency Planning and Works,Grants and contributions,Horse and Wagon Caravan Park,40248244,17/03/2021,191128,4097,COVID 19 SMALL BUSINESS GRANT
Eden District Council,http://opendatacommunities.org/id/district-council/eden,Financial Services Manager,Emergency Planning and Works,Grants and contributions,SDA Properties Limited,40250346,17/03/2021,191129,4097,COVID 19 SMALL BUSINESS GRANT
Eden District Council,http://opendatacommunities.org/id/district-council/eden,Financial Services Manager,Emergency Planning and Works,Grants and contributions,BLUEBERRYS TEA SHOP ( ALSTON),40244099,17/03/2021,191130,4097,COVID 19 SMALL BUSINESS GRANT
Eden District Council,http://opendatacommunities.org/id/district-council/eden,Financial Services Manager,Emergency Planning and Works,Grants and contributions,Alston Town Hall Trusttees,40178994,17/03/2021,191131,4097,COVID 19 SMALL BUSINESS GRANT
Eden District Council,http://opendatacommunities.org/id/district-council/eden,Financial Services Manager,Emergency Planning and Works,Grants and contributions,FOX HOLLOW,40220420,17/03/2021,191132,4097,COVID 19 SMALL BUSINESS GRANT
Eden District Council,http://opendatacommunities.org/id/district-council/eden,Financial Services Manager,Emergency Planning and Works,Grants and contributions,THE RATE PAYER,40203456,17/03/2021,191133,4097,COVID 19 SMALL BUSINESS GRANT
Eden District Council,http://opendatacommunities.org/id/district-council/eden,Financial Services Manager,Emergency Planning and Works,Grants and contributions,THE RATE PAYER,40221560,17/03/2021,191134,4097,COVID 19 SMALL BUSINESS GRANT
Eden District Council,http://opendatacommunities.org/id/district-council/eden,Financial Services Manager,Emergency Planning and Works,Grants and contributions,The swallows,40241045,17/03/2021,191135,4097,COVID 19 SMALL BUSINESS GRANT
Eden District Council,http://opendatacommunities.org/id/district-council/eden,Financial Services Manager,Emergency Planning and Works,Grants and contributions,Flusco Wood Caravan Park,40137948,17/03/2021,191136,6143,COVID 19 SMALL BUSINESS GRANT
Eden District Council,http://opendatacommunities.org/id/district-council/eden,Financial Services Manager,Emergency Planning and Works,Grants and contributions,The Chopping Block Cumbria Ltd,40242826,17/03/2021,191137,6143,COVID 19 SMALL BUSINESS GRANT
Eden District Council,http://opendatacommunities.org/id/district-council/eden,Financial Services Manager,Emergency Planning and Works,Grants and contributions,THE RATE PAYER,40157058,17/03/2021,191138,6143,COVID 19 SMALL BUSINESS GRANT
Eden District Council,http://opendatacommunities.org/id/district-council/eden,Financial Services Manager,Emergency Planning and Works,Grants and contributions,APPLEBY TRAVEL,40028303,19/03/2021,191092,2096,COVID 19 SMALL BUSINESS GRANT
Eden District Council,http://opendatacommunities.org/id/district-council/eden,Financial Services Manager,Emergency Planning and Works,Grants and contributions,Clifton Village Hall,40028495,19/03/2021,191093,2096,COVID 19 SMALL BUSINESS GRANT
Eden District Council,http://opendatacommunities.org/id/district-council/eden,Financial Services Manager,Emergency Planning and Works,Grants and contributions,Grays Jewellers,40028679,19/03/2021,191094,2096,COVID 19 SMALL BUSINESS GRANT
Eden District Council,http://opendatacommunities.org/id/district-council/eden,Financial Services Manager,Emergency Planning and Works,Grants and contributions,Lowther Parish Hall,40029139,19/03/2021,191095,2096,COVID 19 SMALL BUSINESS GRANT
Eden District Council,http://opendatacommunities.org/id/district-council/eden,Financial Services Manager,Emergency Planning and Works,Grants and contributions,Shap Memorial Hall Management Committee,40029306,19/03/2021,191096,2096,COVID 19 SMALL BUSINESS GRANT
Eden District Council,http://opendatacommunities.org/id/district-council/eden,Financial Services Manager,Emergency Planning and Works,Grants and contributions,The Reading Room,40029375,19/03/2021,191097,2096,COVID 19 SMALL BUSINESS GRANT
Eden District Council,http://opendatacommunities.org/id/district-council/eden,Financial Services Manager,Emergency Planning and Works,Grants and contributions,ALSTON BOWLING CLUB,40030566,19/03/2021,191098,2096,COVID 19 SMALL BUSINESS GRANT
Eden District Council,http://opendatacommunities.org/id/district-council/eden,Financial Services Manager,Emergency Planning and Works,Grants and contributions,BELL COTTAGE,40030627,19/03/2021,191099,2096,COVID 19 SMALL BUSINESS GRANT
Eden District Council,http://opendatacommunities.org/id/district-council/eden,Financial Services Manager,Emergency Planning and Works,Grants and contributions,Widows Cottage,40030672,19/03/2021,191100,2096,COVID 19 SMALL BUSINESS GRANT
Eden District Council,http://opendatacommunities.org/id/district-council/eden,Financial Services Manager,Emergency Planning and Works,Grants and contributions,Robsons Hair Salon Ltd 47 King Street Penrith Cumbria CA11 7AY,40031132,19/03/2021,191101,2096,COVID 19 SMALL BUSINESS GRANT
Eden District Council,http://opendatacommunities.org/id/district-council/eden,Financial Services Manager,Emergency Planning and Works,Grants and contributions,Long Marton Village Institute,40031439,19/03/2021,191102,2096,COVID 19 SMALL BUSINESS GRANT
Eden District Council,http://opendatacommunities.org/id/district-council/eden,Financial Services Manager,Emergency Planning and Works,Grants and contributions,FELL & ROCK CLIMBING CLUB OF THE ENGLISH LAKE DISTRICT LTD,40031774,19/03/2021,191103,2096,COVID 19 SMALL BUSINESS GRANT
Eden District Council,http://opendatacommunities.org/id/district-council/eden,Financial Services Manager,Emergency Planning and Works,Grants and contributions,The Toffee Shop Ltd,40032210,19/03/2021,191104,2096,COVID 19 SMALL BUSINESS GRANT
Eden District Council,http://opendatacommunities.org/id/district-council/eden,Financial Services Manager,Emergency Planning and Works,Grants and contributions,THE RATE PAYER,40032364,19/03/2021,191105,2096,COVID 19 SMALL BUSINESS GRANT
Eden District Council,http://opendatacommunities.org/id/district-council/eden,Financial Services Manager,Emergency Planning and Works,Grants and contributions,King Georges Playing Field,40032708,19/03/2021,191106,2096,COVID 19 SMALL BUSINESS GRANT
Eden District Council,http://opendatacommunities.org/id/district-council/eden,Financial Services Manager,Emergency Planning and Works,Grants and contributions,YHA (England and Wales) Ltd,40032784,19/03/2021,191107,2096,COVID 19 SMALL BUSINESS GRANT
Eden District Council,http://opendatacommunities.org/id/district-council/eden,Financial Services Manager,Emergency Planning and Works,Grants and contributions,Bampton Village Hall,40033015,19/03/2021,191108,2096,COVID 19 SMALL BUSINESS GRANT
Eden District Council,http://opendatacommunities.org/id/district-council/eden,Financial Services Manager,Emergency Planning and Works,Grants and contributions,Askham & Dist Community Centre,40033114,19/03/2021,191109,2096,COVID 19 SMALL BUSINESS GRANT
Eden District Council,http://opendatacommunities.org/id/district-council/eden,Financial Services Manager,Emergency Planning and Works,Grants and contributions,North Stainmore Parish Hall,40033404,19/03/2021,191110,2096,COVID 19 SMALL BUSINESS GRANT
Eden District Council,http://opendatacommunities.org/id/district-council/eden,Financial Services Manager,Emergency Planning and Works,Grants and contributions,KIRKBY STEPHEN SPORTS & SOCIAL CLUB AND INSITUTE LTD,40034490,19/03/2021,191111,2096,COVID 19 SMALL BUSINESS GRANT
Eden District Council,http://opendatacommunities.org/id/district-council/eden,Financial Services Manager,Emergency Planning and Works,Grants and contributions,The Old School OusbyCA10 1QA,40035103,19/03/2021,191112,2096,COVID 19 SMALL BUSINESS GRANT
Eden District Council,http://opendatacommunities.org/id/district-council/eden,Financial Services Manager,Emergency Planning and Works,Grants and contributions,THE RATE PAYER,40035738,19/03/2021,191113,2096,COVID 19 SMALL BUSINESS GRANT
Eden District Council,http://opendatacommunities.org/id/district-council/eden,Financial Services Manager,Emergency Planning and Works,Grants and contributions,Village Hall,40036014,19/03/2021,191114,2096,COVID 19 SMALL BUSINESS GRANT
Eden District Council,http://opendatacommunities.org/id/district-council/eden,Financial Services Manager,Emergency Planning and Works,Grants and contributions,Glenridding Public Hall,40036434,19/03/2021,191115,2096,COVID 19 SMALL BUSINESS GRANT
Eden District Council,http://opendatacommunities.org/id/district-council/eden,Financial Services Manager,Emergency Planning and Works,Grants and contributions,Penrith Parish Centre Limited,40037437,19/03/2021,191116,2096,COVID 19 SMALL BUSINESS GRANT
Eden District Council,http://opendatacommunities.org/id/district-council/eden,Financial Services Manager,Emergency Planning and Works,Grants and contributions,THE RATE PAYER,40037598,19/03/2021,191117,2096,COVID 19 SMALL BUSINESS GRANT
Eden District Council,http://opendatacommunities.org/id/district-council/eden,Financial Services Manager,Emergency Planning and Works,Grants and contributions,Gamblesby Cricket Club,40037680,19/03/2021,191118,2096,COVID 19 SMALL BUSINESS GRANT
Eden District Council,http://opendatacommunities.org/id/district-council/eden,Financial Services Manager,Emergency Planning and Works,Grants and contributions,THE RATE PAYER,40037727,19/03/2021,191119,2096,COVID 19 SMALL BUSINESS GRANT
Eden District Council,http://opendatacommunities.org/id/district-council/eden,Financial Services Manager,Emergency Planning and Works,Grants and contributions,Kirkby Thore memorial hall and recreation,40038492,19/03/2021,191120,2096,COVID 19 SMALL BUSINESS GRANT
Eden District Council,http://opendatacommunities.org/id/district-council/eden,Financial Services Manager,Emergency Planning and Works,Grants and contributions,St Michaels Church Institute,40038553,19/03/2021,191121,2096,COVID 19 SMALL BUSINESS GRANT
Eden District Council,http://opendatacommunities.org/id/district-council/eden,Financial Services Manager,Emergency Planning and Works,Grants and contributions,PENRITH GUIDE ASSOCIATION,40039112,19/03/2021,191122,2096,COVID 19 SMALL BUSINESS GRANT
Eden District Council,http://opendatacommunities.org/id/district-council/eden,Financial Services Manager,Emergency Planning and Works,Grants and contributions,Kirkby Stephen Cricket Club,40039198,19/03/2021,191123,2096,COVID 19 SMALL BUSINESS GRANT
Eden District Council,http://opendatacommunities.org/id/district-council/eden,Financial Services Manager,Emergency Planning and Works,Grants and contributions,Bowber Head Caravan Site,40039334,19/03/2021,191124,2096,COVID 19 SMALL BUSINESS GRANT
Eden District Council,http://opendatacommunities.org/id/district-council/eden,Financial Services Manager,Emergency Planning and Works,Grants and contributions,Appleby Eden Cricket Club,40039563,19/03/2021,191125,2096,COVID 19 SMALL BUSINESS GRANT
Eden District Council,http://opendatacommunities.org/id/district-council/eden,Financial Services Manager,Emergency Planning and Works,Grants and contributions,Threlkeld Public Room Committee,40039624,19/03/2021,191126,2096,COVID 19 SMALL BUSINESS GRANT
Eden District Council,http://opendatacommunities.org/id/district-council/eden,Financial Services Manager,Emergency Planning and Works,Grants and contributions,Penrith Conservative Club,40039716,19/03/2021,191127,2096,COVID 19 SMALL BUSINESS GRANT
Eden District Council,http://opendatacommunities.org/id/district-council/eden,Financial Services Manager,Emergency Planning and Works,Grants and contributions,Skirwith Village Hall Trustees,40039983,19/03/2021,191128,2096,COVID 19 SMALL BUSINESS GRANT
Eden District Council,http://opendatacommunities.org/id/district-council/eden,Financial Services Manager,Emergency Planning and Works,Grants and contributions,White Horse Caravan park,40040037,19/03/2021,191129,2096,COVID 19 SMALL BUSINESS GRANT
Eden District Council,http://opendatacommunities.org/id/district-council/eden,Financial Services Manager,Emergency Planning and Works,Grants and contributions,MILBURN VILLAGE HALL,40040303,19/03/2021,191130,2096,COVID 19 SMALL BUSINESS GRANT
Eden District Council,http://opendatacommunities.org/id/district-council/eden,Financial Services Manager,Emergency Planning and Works,Grants and contributions,Crosby Garrett village hall,40040457,19/03/2021,191131,2096,COVID 19 SMALL BUSINESS GRANT
Eden District Council,http://opendatacommunities.org/id/district-council/eden,Financial Services Manager,Emergency Planning and Works,Grants and contributions,Ormside Village Hall,40041313,19/03/2021,191132,2096,COVID 19 SMALL BUSINESS GRANT
Eden District Council,http://opendatacommunities.org/id/district-council/eden,Financial Services Manager,Emergency Planning and Works,Grants and contributions,Dun Fell Christian Trust,40041405,19/03/2021,191133,2096,COVID 19 SMALL BUSINESS GRANT
Eden District Council,http://opendatacommunities.org/id/district-council/eden,Financial Services Manager,Emergency Planning and Works,Grants and contributions,Hutton in the Forest Village Hall,40041740,19/03/2021,191134,2096,COVID 19 SMALL BUSINESS GRANT
Eden District Council,http://opendatacommunities.org/id/district-council/eden,Financial Services Manager,Emergency Planning and Works,Grants and contributions,Cleveland Mountaineering Centre,40042071,19/03/2021,191135,2096,COVID 19 SMALL BUSINESS GRANT
Eden District Council,http://opendatacommunities.org/id/district-council/eden,Financial Services Manager,Emergency Planning and Works,Grants and contributions,THE RATE PAYER,40042132,19/03/2021,191136,2096,COVID 19 SMALL BUSINESS GRANT
Eden District Council,http://opendatacommunities.org/id/district-council/eden,Financial Services Manager,Emergency Planning and Works,Grants and contributions,Soulby Memorial Hall Trust,40042668,19/03/2021,191137,2096,COVID 19 SMALL BUSINESS GRANT
Eden District Council,http://opendatacommunities.org/id/district-council/eden,Financial Services Manager,Emergency Planning and Works,Grants and contributions,THE BUNGALOW,40043418,19/03/2021,191138,2096,COVID 19 SMALL BUSINESS GRANT
Eden District Council,http://opendatacommunities.org/id/district-council/eden,Financial Services Manager,Emergency Planning and Works,Grants and contributions,Brookfield,40043609,19/03/2021,191139,2096,COVID 19 SMALL BUSINESS GRANT
Eden District Council,http://opendatacommunities.org/id/district-council/eden,Financial Services Manager,Emergency Planning and Works,Grants and contributions,Greystoke and District Sports Association,40043715,19/03/2021,191140,2096,COVID 19 SMALL BUSINESS GRANT
Eden District Council,http://opendatacommunities.org/id/district-council/eden,Financial Services Manager,Emergency Planning and Works,Grants and contributions,THE RATE PAYER,40044244,19/03/2021,191141,2096,COVID 19 SMALL BUSINESS GRANT
Eden District Council,http://opendatacommunities.org/id/district-council/eden,Financial Services Manager,Emergency Planning and Works,Grants and contributions,THE NICHOLLS MEMORIAL HALL,40045353,19/03/2021,191142,2096,COVID 19 SMALL BUSINESS GRANT
Eden District Council,http://opendatacommunities.org/id/district-council/eden,Financial Services Manager,Emergency Planning and Works,Grants and contributions,Brampton Village Hall,40045452,19/03/2021,191143,2096,COVID 19 SMALL BUSINESS GRANT
Eden District Council,http://opendatacommunities.org/id/district-council/eden,Financial Services Manager,Emergency Planning and Works,Grants and contributions,Nenthead Village Hall committe,40046196,19/03/2021,191144,2096,COVID 19 SMALL BUSINESS GRANT
Eden District Council,http://opendatacommunities.org/id/district-council/eden,Financial Services Manager,Emergency Planning and Works,Grants and contributions,Appleby & District Royal British Legion,40046257,19/03/2021,191145,2096,COVID 19 SMALL BUSINESS GRANT
Eden District Council,http://opendatacommunities.org/id/district-council/eden,Financial Services Manager,Emergency Planning and Works,Grants and contributions,Titterington Holidays Limited,40046516,19/03/2021,191146,2096,COVID 19 SMALL BUSINESS GRANT
Eden District Council,http://opendatacommunities.org/id/district-council/eden,Financial Services Manager,Emergency Planning and Works,Grants and contributions,YHA (England and Wales),40046653,19/03/2021,191147,2096,COVID 19 SMALL BUSINESS GRANT
Eden District Council,http://opendatacommunities.org/id/district-council/eden,Financial Services Manager,Emergency Planning and Works,Grants and contributions,Ruffwood School PTA Friends of Ruffwood,40046707,19/03/2021,191148,2096,COVID 19 SMALL BUSINESS GRANT
Eden District Council,http://opendatacommunities.org/id/district-council/eden,Financial Services Manager,Emergency Planning and Works,Grants and contributions,Langwathby Village Hall,40046899,19/03/2021,191149,2096,COVID 19 SMALL BUSINESS GRANT
Eden District Council,http://opendatacommunities.org/id/district-council/eden,Financial Services Manager,Emergency Planning and Works,Grants and contributions,Penrith Lawn Tennis Club,40047304,19/03/2021,191150,2096,COVID 19 SMALL BUSINESS GRANT
Eden District Council,http://opendatacommunities.org/id/district-council/eden,Financial Services Manager,Emergency Planning and Works,Grants and contributions,Armathwaite Old School Hall,40047762,19/03/2021,191151,2096,COVID 19 SMALL BUSINESS GRANT
Eden District Council,http://opendatacommunities.org/id/district-council/eden,Financial Services Manager,Emergency Planning and Works,Grants and contributions,THE RATE PAYER,40048109,19/03/2021,191152,2096,COVID 19 SMALL BUSINESS GRANT
Eden District Council,http://opendatacommunities.org/id/district-council/eden,Financial Services Manager,Emergency Planning and Works,Grants and contributions,Culgaith Institute Trustees,40048116,19/03/2021,191153,2096,COVID 19 SMALL BUSINESS GRANT
Eden District Council,http://opendatacommunities.org/id/district-council/eden,Financial Services Manager,Emergency Planning and Works,Grants and contributions,Kirkland Hall Holiday cottages,40048338,19/03/2021,191154,2096,COVID 19 SMALL BUSINESS GRANT
Eden District Council,http://opendatacommunities.org/id/district-council/eden,Financial Services Manager,Emergency Planning and Works,Grants and contributions,THE RATE PAYER,40048383,19/03/2021,191155,2096,COVID 19 SMALL BUSINESS GRANT
Eden District Council,http://opendatacommunities.org/id/district-council/eden,Financial Services Manager,Emergency Planning and Works,Grants and contributions,Great Salkeld Village Hall,40048932,19/03/2021,191156,2096,COVID 19 SMALL BUSINESS GRANT
Eden District Council,http://opendatacommunities.org/id/district-council/eden,Financial Services Manager,Emergency Planning and Works,Grants and contributions,Kirkoswald Church Institute,40048956,19/03/2021,191157,2096,COVID 19 SMALL BUSINESS GRANT
Eden District Council,http://opendatacommunities.org/id/district-council/eden,Financial Services Manager,Emergency Planning and Works,Grants and contributions,Low Hesket Village Hall,40049195,19/03/2021,191158,2096,COVID 19 SMALL BUSINESS GRANT
Eden District Council,http://opendatacommunities.org/id/district-council/eden,Financial Services Manager,Emergency Planning and Works,Grants and contributions,Newbiggin-on-Lune Public Hall,40050157,19/03/2021,191159,2096,COVID 19 SMALL BUSINESS GRANT
Eden District Council,http://opendatacommunities.org/id/district-council/eden,Financial Services Manager,Emergency Planning and Works,Grants and contributions,Lazonby & District Swimming Pool Association Ltd,40050492,19/03/2021,191160,2096,COVID 19 SMALL BUSINESS GRANT
Eden District Council,http://opendatacommunities.org/id/district-council/eden,Financial Services Manager,Emergency Planning and Works,Grants and contributions,Musgrave Parish Institute,40050676,19/03/2021,191161,2096,COVID 19 SMALL BUSINESS GRANT
Eden District Council,http://opendatacommunities.org/id/district-council/eden,Financial Services Manager,Emergency Planning and Works,Grants and contributions,Lazonby Bowling Club,40050706,19/03/2021,191162,2096,COVID 19 SMALL BUSINESS GRANT
Eden District Council,http://opendatacommunities.org/id/district-council/eden,Financial Services Manager,Emergency Planning and Works,Grants and contributions,Alston Moor Golf Club,40050829,19/03/2021,191163,2096,COVID 19 SMALL BUSINESS GRANT
Eden District Council,http://opendatacommunities.org/id/district-council/eden,Financial Services Manager,Emergency Planning and Works,Grants and contributions,BURY JUBILEE OUTDDOR PURSUITS CENTRE,40051488,19/03/2021,191164,2096,COVID 19 SMALL BUSINESS GRANT
Eden District Council,http://opendatacommunities.org/id/district-council/eden,Financial Services Manager,Emergency Planning and Works,Grants and contributions,Crosby Ravensworth Village Hall,40051693,19/03/2021,191165,2096,COVID 19 SMALL BUSINESS GRANT
Eden District Council,http://opendatacommunities.org/id/district-council/eden,Financial Services Manager,Emergency Planning and Works,Grants and contributions,Morland Village Hall,40051853,19/03/2021,191166,2096,COVID 19 SMALL BUSINESS GRANT
Eden District Council,http://opendatacommunities.org/id/district-council/eden,Financial Services Manager,Emergency Planning and Works,Grants and contributions,Nunwick Cricket Club,40051914,19/03/2021,191167,2096,COVID 19 SMALL BUSINESS GRANT
Eden District Council,http://opendatacommunities.org/id/district-council/eden,Financial Services Manager,Emergency Planning and Works,Grants and contributions,Watermillock Parish Hall,40051976,19/03/2021,191168,2096,COVID 19 SMALL BUSINESS GRANT
Eden District Council,http://opendatacommunities.org/id/district-council/eden,Financial Services Manager,Emergency Planning and Works,Grants and contributions,Southwaite Green Mill,40052313,19/03/2021,191169,2096,COVID 19 SMALL BUSINESS GRANT
Eden District Council,http://opendatacommunities.org/id/district-council/eden,Financial Services Manager,Emergency Planning and Works,Grants and contributions,APPLEBY BOWLING CLUB,40052351,19/03/2021,191170,2096,COVID 19 SMALL BUSINESS GRANT
Eden District Council,http://opendatacommunities.org/id/district-council/eden,Financial Services Manager,Emergency Planning and Works,Grants and contributions,Penrith Cricket Sports & Social Club,40052580,19/03/2021,191171,2096,COVID 19 SMALL BUSINESS GRANT
Eden District Council,http://opendatacommunities.org/id/district-council/eden,Financial Services Manager,Emergency Planning and Works,Grants and contributions,LOW MOOR CARAVAN PARK,40052665,19/03/2021,191172,2096,COVID 19 SMALL BUSINESS GRANT
Eden District Council,http://opendatacommunities.org/id/district-council/eden,Financial Services Manager,Emergency Planning and Works,Grants and contributions,Dufton Village Hall,40052672,19/03/2021,191173,2096,COVID 19 SMALL BUSINESS GRANT
Eden District Council,http://opendatacommunities.org/id/district-council/eden,Financial Services Manager,Emergency Planning and Works,Grants and contributions,Blencowe Village Hall,40052948,19/03/2021,191174,2096,COVID 19 SMALL BUSINESS GRANT
Eden District Council,http://opendatacommunities.org/id/district-council/eden,Financial Services Manager,Emergency Planning and Works,Grants and contributions,Greystoke Village Hall,40052979,19/03/2021,191175,2096,COVID 19 SMALL BUSINESS GRANT
Eden District Council,http://opendatacommunities.org/id/district-council/eden,Financial Services Manager,Emergency Planning and Works,Grants and contributions,MARVINS (PENRITH) LIMITED,40053095,19/03/2021,191176,2096,COVID 19 SMALL BUSINESS GRANT
Eden District Council,http://opendatacommunities.org/id/district-council/eden,Financial Services Manager,Emergency Planning and Works,Grants and contributions,TEMPLE SOWERBY MEMORIAL HALL,40053118,19/03/2021,191177,2096,COVID 19 SMALL BUSINESS GRANT
Eden District Council,http://opendatacommunities.org/id/district-council/eden,Financial Services Manager,Emergency Planning and Works,Grants and contributions,Holly Cottage caravan site,40053828,19/03/2021,191178,2096,COVID 19 SMALL BUSINESS GRANT
Eden District Council,http://opendatacommunities.org/id/district-council/eden,Financial Services Manager,Emergency Planning and Works,Grants and contributions,Parkin Memorial Hall,40053842,19/03/2021,191179,2096,COVID 19 SMALL BUSINESS GRANT
Eden District Council,http://opendatacommunities.org/id/district-council/eden,Financial Services Manager,Emergency Planning and Works,Grants and contributions,THE RATE PAYER,40053941,19/03/2021,191180,2096,COVID 19 SMALL BUSINESS GRANT
Eden District Council,http://opendatacommunities.org/id/district-council/eden,Financial Services Manager,Emergency Planning and Works,Grants and contributions,Croglin Village Hall Committee,40054135,19/03/2021,191181,2096,COVID 19 SMALL BUSINESS GRANT
Eden District Council,http://opendatacommunities.org/id/district-council/eden,Financial Services Manager,Emergency Planning and Works,Grants and contributions,THE RATE PAYER,40054326,19/03/2021,191182,2096,COVID 19 SMALL BUSINESS GRANT
Eden District Council,http://opendatacommunities.org/id/district-council/eden,Financial Services Manager,Emergency Planning and Works,Grants and contributions,Eamont Bridge Village Hall Comm,40054609,19/03/2021,191183,2096,COVID 19 SMALL BUSINESS GRANT
Eden District Council,http://opendatacommunities.org/id/district-council/eden,Financial Services Manager,Emergency Planning and Works,Grants and contributions,Penrith 2nd Scout Group,40054746,19/03/2021,191184,2096,COVID 19 SMALL BUSINESS GRANT
Eden District Council,http://opendatacommunities.org/id/district-council/eden,Financial Services Manager,Emergency Planning and Works,Grants and contributions,Ullswater Navigation & Transit Co,40055404,19/03/2021,191185,2096,COVID 19 SMALL BUSINESS GRANT
Eden District Council,http://opendatacommunities.org/id/district-council/eden,Financial Services Manager,Emergency Planning and Works,Grants and contributions,KIRKBY STEPHEN BOWLING CLUB,40055459,19/03/2021,191186,2096,COVID 19 SMALL BUSINESS GRANT
Eden District Council,http://opendatacommunities.org/id/district-council/eden,Financial Services Manager,Emergency Planning and Works,Grants and contributions,THE RATE PAYER,40055534,19/03/2021,191187,2096,COVID 19 SMALL BUSINESS GRANT
Eden District Council,http://opendatacommunities.org/id/district-council/eden,Financial Services Manager,Emergency Planning and Works,Grants and contributions,Alston Masonic Lodge,40055930,19/03/2021,191188,2096,COVID 19 SMALL BUSINESS GRANT
Eden District Council,http://opendatacommunities.org/id/district-council/eden,Financial Services Manager,Emergency Planning and Works,Grants and contributions,Brough Memorial Hall,40056254,19/03/2021,191189,2096,COVID 19 SMALL BUSINESS GRANT
Eden District Council,http://opendatacommunities.org/id/district-council/eden,Financial Services Manager,Emergency Planning and Works,Grants and contributions,Murton Institute,40056322,19/03/2021,191190,2096,COVID 19 SMALL BUSINESS GRANT
Eden District Council,http://opendatacommunities.org/id/district-council/eden,Financial Services Manager,Emergency Planning and Works,Grants and contributions,Cut and Curl,40056940,19/03/2021,191191,2096,COVID 19 SMALL BUSINESS GRANT
Eden District Council,http://opendatacommunities.org/id/district-council/eden,Financial Services Manager,Emergency Planning and Works,Grants and contributions,Stainton Recreation Committee,40056988,19/03/2021,191192,2096,COVID 19 SMALL BUSINESS GRANT
Eden District Council,http://opendatacommunities.org/id/district-council/eden,Financial Services Manager,Emergency Planning and Works,Grants and contributions,Bolton Memorial Hall Committee,40057165,19/03/2021,191193,2096,COVID 19 SMALL BUSINESS GRANT
Eden District Council,http://opendatacommunities.org/id/district-council/eden,Financial Services Manager,Emergency Planning and Works,Grants and contributions,lake district ski club,40057196,19/03/2021,191194,2096,COVID 19 SMALL BUSINESS GRANT
Eden District Council,http://opendatacommunities.org/id/district-council/eden,Financial Services Manager,Emergency Planning and Works,Grants and contributions,Kirkby thore recreation ground,40057271,19/03/2021,191195,2096,COVID 19 SMALL BUSINESS GRANT
Eden District Council,http://opendatacommunities.org/id/district-council/eden,Financial Services Manager,Emergency Planning and Works,Grants and contributions,Uter Pendragon Lodge 3481,40057431,19/03/2021,191196,2096,COVID 19 SMALL BUSINESS GRANT
Eden District Council,http://opendatacommunities.org/id/district-council/eden,Financial Services Manager,Emergency Planning and Works,Grants and contributions,Kirkoswald Football Club,40057448,19/03/2021,191197,2096,COVID 19 SMALL BUSINESS GRANT
Eden District Council,http://opendatacommunities.org/id/district-council/eden,Financial Services Manager,Emergency Planning and Works,Grants and contributions,THE RATE PAYER,40057714,19/03/2021,191198,2096,COVID 19 SMALL BUSINESS GRANT
Eden District Council,http://opendatacommunities.org/id/district-council/eden,Financial Services Manager,Emergency Planning and Works,Grants and contributions,Gamblesby Community Centre,40070052,19/03/2021,191199,2096,COVID 19 SMALL BUSINESS GRANT
Eden District Council,http://opendatacommunities.org/id/district-council/eden,Financial Services Manager,Emergency Planning and Works,Grants and contributions,Ghyll Burn Cottage Hartside Nursery Garden,40093314,19/03/2021,191200,2096,COVID 19 SMALL BUSINESS GRANT
Eden District Council,http://opendatacommunities.org/id/district-council/eden,Financial Services Manager,Emergency Planning and Works,Grants and contributions,Lakeland Bird of Prey Centre,40095037,19/03/2021,191201,2096,COVID 19 SMALL BUSINESS GRANT
Eden District Council,http://opendatacommunities.org/id/district-council/eden,Financial Services Manager,Emergency Planning and Works,Grants and contributions,THE RATE PAYER,40099398,19/03/2021,191202,2096,COVID 19 SMALL BUSINESS GRANT
Eden District Council,http://opendatacommunities.org/id/district-council/eden,Financial Services Manager,Emergency Planning and Works,Grants and contributions,THE RATE PAYER,40099404,19/03/2021,191203,2096,COVID 19 SMALL BUSINESS GRANT
Eden District Council,http://opendatacommunities.org/id/district-council/eden,Financial Services Manager,Emergency Planning and Works,Grants and contributions,THE RATE PAYER,40100885,19/03/2021,191204,2096,COVID 19 SMALL BUSINESS GRANT
Eden District Council,http://opendatacommunities.org/id/district-council/eden,Financial Services Manager,Emergency Planning and Works,Grants and contributions,Goose Garth Helton,40102652,19/03/2021,191205,2096,COVID 19 SMALL BUSINESS GRANT
Eden District Council,http://opendatacommunities.org/id/district-council/eden,Financial Services Manager,Emergency Planning and Works,Grants and contributions,Blue Bell Inn,40103167,19/03/2021,191206,2096,COVID 19 SMALL BUSINESS GRANT
Eden District Council,http://opendatacommunities.org/id/district-council/eden,Financial Services Manager,Emergency Planning and Works,Grants and contributions,Coogarth Ltd,40104276,19/03/2021,191207,2096,COVID 19 SMALL BUSINESS GRANT
Eden District Council,http://opendatacommunities.org/id/district-council/eden,Financial Services Manager,Emergency Planning and Works,Grants and contributions,THE RATE PAYER,40104481,19/03/2021,191208,2096,COVID 19 SMALL BUSINESS GRANT
Eden District Council,http://opendatacommunities.org/id/district-council/eden,Financial Services Manager,Emergency Planning and Works,Grants and contributions,Broad Howe,40104832,19/03/2021,191209,2096,COVID 19 SMALL BUSINESS GRANT
Eden District Council,http://opendatacommunities.org/id/district-council/eden,Financial Services Manager,Emergency Planning and Works,Grants and contributions,SKELTON BOWLING CLUB,40107084,19/03/2021,191210,2096,COVID 19 SMALL BUSINESS GRANT
Eden District Council,http://opendatacommunities.org/id/district-council/eden,Financial Services Manager,Emergency Planning and Works,Grants and contributions,THE BYRE AT DEEPDALE HALL,40107138,19/03/2021,191211,2096,COVID 19 SMALL BUSINESS GRANT
Eden District Council,http://opendatacommunities.org/id/district-council/eden,Financial Services Manager,Emergency Planning and Works,Grants and contributions,Town End Cottage,40108018,19/03/2021,191212,2096,COVID 19 SMALL BUSINESS GRANT
Eden District Council,http://opendatacommunities.org/id/district-council/eden,Financial Services Manager,Emergency Planning and Works,Grants and contributions,BRUNSWICK ANTIQUES,40109677,19/03/2021,191213,2096,COVID 19 SMALL BUSINESS GRANT
Eden District Council,http://opendatacommunities.org/id/district-council/eden,Financial Services Manager,Emergency Planning and Works,Grants and contributions,THE RATE PAYER,40111557,19/03/2021,191214,2096,COVID 19 SMALL BUSINESS GRANT
Eden District Council,http://opendatacommunities.org/id/district-council/eden,Financial Services Manager,Emergency Planning and Works,Grants and contributions,THE RATE PAYER,40111670,19/03/2021,191215,2096,COVID 19 SMALL BUSINESS GRANT
Eden District Council,http://opendatacommunities.org/id/district-council/eden,Financial Services Manager,Emergency Planning and Works,Grants and contributions,Jolly Farmers Guest House,40112475,19/03/2021,191216,2096,COVID 19 SMALL BUSINESS GRANT
Eden District Council,http://opendatacommunities.org/id/district-council/eden,Financial Services Manager,Emergency Planning and Works,Grants and contributions,Appleby Girl Guide Assoc,40113294,19/03/2021,191217,2096,COVID 19 SMALL BUSINESS GRANT
Eden District Council,http://opendatacommunities.org/id/district-council/eden,Financial Services Manager,Emergency Planning and Works,Grants and contributions,THE RATE PAYER,40114112,19/03/2021,191218,2096,COVID 19 SMALL BUSINESS GRANT
Eden District Council,http://opendatacommunities.org/id/district-council/eden,Financial Services Manager,Emergency Planning and Works,Grants and contributions,FairlightGuesthouse,40114235,19/03/2021,191219,2096,COVID 19 SMALL BUSINESS GRANT
Eden District Council,http://opendatacommunities.org/id/district-council/eden,Financial Services Manager,Emergency Planning and Works,Grants and contributions,High Beckside,40114532,19/03/2021,191220,2096,COVID 19 SMALL BUSINESS GRANT
Eden District Council,http://opendatacommunities.org/id/district-council/eden,Financial Services Manager,Emergency Planning and Works,Grants and contributions,Barton Hall - Victorian Wing,40117418,19/03/2021,191221,2096,COVID 19 SMALL BUSINESS GRANT
Eden District Council,http://opendatacommunities.org/id/district-council/eden,Financial Services Manager,Emergency Planning and Works,Grants and contributions,The Operation Ltd,40118503,19/03/2021,191222,2096,COVID 19 SMALL BUSINESS GRANT
Eden District Council,http://opendatacommunities.org/id/district-council/eden,Financial Services Manager,Emergency Planning and Works,Grants and contributions,THE RATE PAYER,40119056,19/03/2021,191223,2096,COVID 19 SMALL BUSINESS GRANT
Eden District Council,http://opendatacommunities.org/id/district-council/eden,Financial Services Manager,Emergency Planning and Works,Grants and contributions, Brothersfield Cottage,40120339,19/03/2021,191224,2096,COVID 19 SMALL BUSINESS GRANT
Eden District Council,http://opendatacommunities.org/id/district-council/eden,Financial Services Manager,Emergency Planning and Works,Grants and contributions,Penrith Players Theatre Limited,40120858,19/03/2021,191225,2096,COVID 19 SMALL BUSINESS GRANT
Eden District Council,http://opendatacommunities.org/id/district-council/eden,Financial Services Manager,Emergency Planning and Works,Grants and contributions,the overwater lodge,40121417,19/03/2021,191226,2096,COVID 19 SMALL BUSINESS GRANT
Eden District Council,http://opendatacommunities.org/id/district-council/eden,Financial Services Manager,Emergency Planning and Works,Grants and contributions,Victoria Inn,40122397,19/03/2021,191227,2096,COVID 19 SMALL BUSINESS GRANT
Eden District Council,http://opendatacommunities.org/id/district-council/eden,Financial Services Manager,Emergency Planning and Works,Grants and contributions,Patterdale Hall Estate Ltd,40124461,19/03/2021,191228,2096,COVID 19 SMALL BUSINESS GRANT
Eden District Council,http://opendatacommunities.org/id/district-council/eden,Financial Services Manager,Emergency Planning and Works,Grants and contributions,Certificated Location Riverside.,40124522,19/03/2021,191229,2096,COVID 19 SMALL BUSINESS GRANT
Eden District Council,http://opendatacommunities.org/id/district-council/eden,Financial Services Manager,Emergency Planning and Works,Grants and contributions,Edenhall & Langwathby Sports and Recreation Field,40125068,19/03/2021,191230,2096,COVID 19 SMALL BUSINESS GRANT
Eden District Council,http://opendatacommunities.org/id/district-council/eden,Financial Services Manager,Emergency Planning and Works,Grants and contributions,Holiday Cottages Barton Hall FArm,40125341,19/03/2021,191231,2096,COVID 19 SMALL BUSINESS GRANT
Eden District Council,http://opendatacommunities.org/id/district-council/eden,Financial Services Manager,Emergency Planning and Works,Grants and contributions,THE RATE PAYER,40126092,19/03/2021,191232,2096,COVID 19 SMALL BUSINESS GRANT
Eden District Council,http://opendatacommunities.org/id/district-council/eden,Financial Services Manager,Emergency Planning and Works,Grants and contributions,THE RATE PAYER,40126306,19/03/2021,191233,2096,COVID 19 SMALL BUSINESS GRANT
Eden District Council,http://opendatacommunities.org/id/district-council/eden,Financial Services Manager,Emergency Planning and Works,Grants and contributions,Edenbridge cafe,40126900,19/03/2021,191234,2096,COVID 19 SMALL BUSINESS GRANT
Eden District Council,http://opendatacommunities.org/id/district-council/eden,Financial Services Manager,Emergency Planning and Works,Grants and contributions,STONEFOLD,40127026,19/03/2021,191235,2096,COVID 19 SMALL BUSINESS GRANT
Eden District Council,http://opendatacommunities.org/id/district-council/eden,Financial Services Manager,Emergency Planning and Works,Grants and contributions,THE RATE PAYER,40127187,19/03/2021,191236,2096,COVID 19 SMALL BUSINESS GRANT
Eden District Council,http://opendatacommunities.org/id/district-council/eden,Financial Services Manager,Emergency Planning and Works,Grants and contributions,THE RATE PAYER,40127651,19/03/2021,191237,2096,COVID 19 SMALL BUSINESS GRANT
Eden District Council,http://opendatacommunities.org/id/district-council/eden,Financial Services Manager,Emergency Planning and Works,Grants and contributions,THE RATE PAYER,40127989,19/03/2021,191238,2096,COVID 19 SMALL BUSINESS GRANT
Eden District Council,http://opendatacommunities.org/id/district-council/eden,Financial Services Manager,Emergency Planning and Works,Grants and contributions,Fell View High Greenside,40128142,19/03/2021,191239,2096,COVID 19 SMALL BUSINESS GRANT
Eden District Council,http://opendatacommunities.org/id/district-council/eden,Financial Services Manager,Emergency Planning and Works,Grants and contributions,THE RATE PAYER,40128302,19/03/2021,191240,2096,COVID 19 SMALL BUSINESS GRANT
Eden District Council,http://opendatacommunities.org/id/district-council/eden,Financial Services Manager,Emergency Planning and Works,Grants and contributions,High Sprintgill and Sally End,40128449,19/03/2021,191241,2096,COVID 19 SMALL BUSINESS GRANT
Eden District Council,http://opendatacommunities.org/id/district-council/eden,Financial Services Manager,Emergency Planning and Works,Grants and contributions,THE RATE PAYER,40128463,19/03/2021,191242,2096,COVID 19 SMALL BUSINESS GRANT
Eden District Council,http://opendatacommunities.org/id/district-council/eden,Financial Services Manager,Emergency Planning and Works,Grants and contributions,Dairy Cottage,40128470,19/03/2021,191243,2096,COVID 19 SMALL BUSINESS GRANT
Eden District Council,http://opendatacommunities.org/id/district-council/eden,Financial Services Manager,Emergency Planning and Works,Grants and contributions,APPLEBY & DISTRICT CONSERVATIVE CLUB LTD,40129541,19/03/2021,191244,2096,COVID 19 SMALL BUSINESS GRANT
Eden District Council,http://opendatacommunities.org/id/district-council/eden,Financial Services Manager,Emergency Planning and Works,Grants and contributions,Lakeland Travel Limited,40129725,19/03/2021,191245,2096,COVID 19 SMALL BUSINESS GRANT
Eden District Council,http://opendatacommunities.org/id/district-council/eden,Financial Services Manager,Emergency Planning and Works,Grants and contributions, The Haybergill Centre,40130350,19/03/2021,191246,2096,COVID 19 SMALL BUSINESS GRANT
Eden District Council,http://opendatacommunities.org/id/district-council/eden,Financial Services Manager,Emergency Planning and Works,Grants and contributions,CROSSFIELD FARM,40130404,19/03/2021,191247,2096,COVID 19 SMALL BUSINESS GRANT
Eden District Council,http://opendatacommunities.org/id/district-council/eden,Financial Services Manager,Emergency Planning and Works,Grants and contributions,THE RATE PAYER,40130886,19/03/2021,191248,2096,COVID 19 SMALL BUSINESS GRANT
Eden District Council,http://opendatacommunities.org/id/district-council/eden,Financial Services Manager,Emergency Planning and Works,Grants and contributions,BROOKLANDS,40131483,19/03/2021,191249,2096,COVID 19 SMALL BUSINESS GRANT
Eden District Council,http://opendatacommunities.org/id/district-council/eden,Financial Services Manager,Emergency Planning and Works,Grants and contributions,THE RATE PAYER,40131902,19/03/2021,191250,2096,COVID 19 SMALL BUSINESS GRANT
Eden District Council,http://opendatacommunities.org/id/district-council/eden,Financial Services Manager,Emergency Planning and Works,Grants and contributions,Ormside Mill residential Centre Limited,40132134,19/03/2021,191251,2096,COVID 19 SMALL BUSINESS GRANT
Eden District Council,http://opendatacommunities.org/id/district-council/eden,Financial Services Manager,Emergency Planning and Works,Grants and contributions,AGE CONCERN APPLEBY,40132592,19/03/2021,191252,2096,COVID 19 SMALL BUSINESS GRANT
Eden District Council,http://opendatacommunities.org/id/district-council/eden,Financial Services Manager,Emergency Planning and Works,Grants and contributions,wetheriggs football club,40132653,19/03/2021,191253,2096,COVID 19 SMALL BUSINESS GRANT
Eden District Council,http://opendatacommunities.org/id/district-council/eden,Financial Services Manager,Emergency Planning and Works,Grants and contributions,Buckingham,40132912,19/03/2021,191254,2096,COVID 19 SMALL BUSINESS GRANT
Eden District Council,http://opendatacommunities.org/id/district-council/eden,Financial Services Manager,Emergency Planning and Works,Grants and contributions,Benetton,40134178,19/03/2021,191255,2096,COVID 19 SMALL BUSINESS GRANT
Eden District Council,http://opendatacommunities.org/id/district-council/eden,Financial Services Manager,Emergency Planning and Works,Grants and contributions,Alston goods shed trust,40134383,19/03/2021,191256,2096,COVID 19 SMALL BUSINESS GRANT
Eden District Council,http://opendatacommunities.org/id/district-council/eden,Financial Services Manager,Emergency Planning and Works,Grants and contributions,Allen Park Foot Ltd,40134796,19/03/2021,191257,2096,COVID 19 SMALL BUSINESS GRANT
Eden District Council,http://opendatacommunities.org/id/district-council/eden,Financial Services Manager,Emergency Planning and Works,Grants and contributions,Knock Mission Room Committee,40135645,19/03/2021,191258,2096,COVID 19 SMALL BUSINESS GRANT
Eden District Council,http://opendatacommunities.org/id/district-council/eden,Financial Services Manager,Emergency Planning and Works,Grants and contributions,ROSE & CROWN LOW HESKET,40137214,19/03/2021,191259,2096,COVID 19 SMALL BUSINESS GRANT
Eden District Council,http://opendatacommunities.org/id/district-council/eden,Financial Services Manager,Emergency Planning and Works,Grants and contributions,THE RATE PAYER,40137269,19/03/2021,191260,2096,COVID 19 SMALL BUSINESS GRANT
Eden District Council,http://opendatacommunities.org/id/district-council/eden,Financial Services Manager,Emergency Planning and Works,Grants and contributions, Tillys Fashions,40137566,19/03/2021,191261,2096,COVID 19 SMALL BUSINESS GRANT
Eden District Council,http://opendatacommunities.org/id/district-council/eden,Financial Services Manager,Emergency Planning and Works,Grants and contributions,Eden Valley Holidays,40138859,19/03/2021,191262,2096,COVID 19 SMALL BUSINESS GRANT
Eden District Council,http://opendatacommunities.org/id/district-council/eden,Financial Services Manager,Emergency Planning and Works,Grants and contributions,THE RATE PAYER,40138866,19/03/2021,191263,2096,COVID 19 SMALL BUSINESS GRANT
Eden District Council,http://opendatacommunities.org/id/district-council/eden,Financial Services Manager,Emergency Planning and Works,Grants and contributions,THE RATE PAYER,40142025,19/03/2021,191264,2096,COVID 19 SMALL BUSINESS GRANT
Eden District Council,http://opendatacommunities.org/id/district-council/eden,Financial Services Manager,Emergency Planning and Works,Grants and contributions,Campsite Side Farm,40142155,19/03/2021,191265,2096,COVID 19 SMALL BUSINESS GRANT
Eden District Council,http://opendatacommunities.org/id/district-council/eden,Financial Services Manager,Emergency Planning and Works,Grants and contributions,Riding stables bank house farm,40142490,19/03/2021,191266,2096,COVID 19 SMALL BUSINESS GRANT
Eden District Council,http://opendatacommunities.org/id/district-council/eden,Financial Services Manager,Emergency Planning and Works,Grants and contributions,CLIBURN PUBLIC HALL COMMITTEE,40143233,19/03/2021,191267,2096,COVID 19 SMALL BUSINESS GRANT
Eden District Council,http://opendatacommunities.org/id/district-council/eden,Financial Services Manager,Emergency Planning and Works,Grants and contributions,Threlkeld Recreation Field Trust,40143264,19/03/2021,191268,2096,COVID 19 SMALL BUSINESS GRANT
Eden District Council,http://opendatacommunities.org/id/district-council/eden,Financial Services Manager,Emergency Planning and Works,Grants and contributions,K & B Travel,40143547,19/03/2021,191269,2096,COVID 19 SMALL BUSINESS GRANT
Eden District Council,http://opendatacommunities.org/id/district-council/eden,Financial Services Manager,Emergency Planning and Works,Grants and contributions,Ullswaterview Cottage,40143905,19/03/2021,191270,2096,COVID 19 SMALL BUSINESS GRANT
Eden District Council,http://opendatacommunities.org/id/district-council/eden,Financial Services Manager,Emergency Planning and Works,Grants and contributions, The Wood Workshop,40144779,19/03/2021,191271,2096,COVID 19 SMALL BUSINESS GRANT
Eden District Council,http://opendatacommunities.org/id/district-council/eden,Financial Services Manager,Emergency Planning and Works,Grants and contributions,Catstycam Limited,40144908,19/03/2021,191272,2096,COVID 19 SMALL BUSINESS GRANT
Eden District Council,http://opendatacommunities.org/id/district-council/eden,Financial Services Manager,Emergency Planning and Works,Grants and contributions, LIBRA,40145567,19/03/2021,191273,2096,COVID 19 SMALL BUSINESS GRANT
Eden District Council,http://opendatacommunities.org/id/district-council/eden,Financial Services Manager,Emergency Planning and Works,Grants and contributions, HiddenCornerAntiques,40145680,19/03/2021,191274,2096,COVID 19 SMALL BUSINESS GRANT
Eden District Council,http://opendatacommunities.org/id/district-council/eden,Financial Services Manager,Emergency Planning and Works,Grants and contributions,Old School House,40146263,19/03/2021,191275,2096,COVID 19 SMALL BUSINESS GRANT
Eden District Council,http://opendatacommunities.org/id/district-council/eden,Financial Services Manager,Emergency Planning and Works,Grants and contributions,Harpers Caravan Site,40146782,19/03/2021,191276,2096,COVID 19 SMALL BUSINESS GRANT
Eden District Council,http://opendatacommunities.org/id/district-council/eden,Financial Services Manager,Emergency Planning and Works,Grants and contributions,Eden Outdoors,40146805,19/03/2021,191277,2096,COVID 19 SMALL BUSINESS GRANT
Eden District Council,http://opendatacommunities.org/id/district-council/eden,Financial Services Manager,Emergency Planning and Works,Grants and contributions,Eden Animal Rescue,40146911,19/03/2021,191278,2096,COVID 19 SMALL BUSINESS GRANT
Eden District Council,http://opendatacommunities.org/id/district-council/eden,Financial Services Manager,Emergency Planning and Works,Grants and contributions,THE RATE PAYER,40147358,19/03/2021,191279,2096,COVID 19 SMALL BUSINESS GRANT
Eden District Council,http://opendatacommunities.org/id/district-council/eden,Financial Services Manager,Emergency Planning and Works,Grants and contributions,New Balance Athletic Shoes UK Ltd,40147877,19/03/2021,191280,2096,COVID 19 SMALL BUSINESS GRANT
Eden District Council,http://opendatacommunities.org/id/district-council/eden,Financial Services Manager,Emergency Planning and Works,Grants and contributions,Bank End,40147921,19/03/2021,191281,2096,COVID 19 SMALL BUSINESS GRANT
Eden District Council,http://opendatacommunities.org/id/district-council/eden,Financial Services Manager,Emergency Planning and Works,Grants and contributions,Stouphill Gate Cottage,40148061,19/03/2021,191282,2096,COVID 19 SMALL BUSINESS GRANT
Eden District Council,http://opendatacommunities.org/id/district-council/eden,Financial Services Manager,Emergency Planning and Works,Grants and contributions,Stationery 4 Less,40148108,19/03/2021,191283,2096,COVID 19 SMALL BUSINESS GRANT
Eden District Council,http://opendatacommunities.org/id/district-council/eden,Financial Services Manager,Emergency Planning and Works,Grants and contributions,THE BARN STUDIO,40148252,19/03/2021,191284,2096,COVID 19 SMALL BUSINESS GRANT
Eden District Council,http://opendatacommunities.org/id/district-council/eden,Financial Services Manager,Emergency Planning and Works,Grants and contributions,THE RATE PAYER,40148504,19/03/2021,191285,2096,COVID 19 SMALL BUSINESS GRANT
Eden District Council,http://opendatacommunities.org/id/district-council/eden,Financial Services Manager,Emergency Planning and Works,Grants and contributions,The Moss,40148658,19/03/2021,191286,2096,COVID 19 SMALL BUSINESS GRANT
Eden District Council,http://opendatacommunities.org/id/district-council/eden,Financial Services Manager,Emergency Planning and Works,Grants and contributions,Burtons of Cumbria Ltd t/a Treetops,40148832,19/03/2021,191287,2096,COVID 19 SMALL BUSINESS GRANT
Eden District Council,http://opendatacommunities.org/id/district-council/eden,Financial Services Manager,Emergency Planning and Works,Grants and contributions,THE RATE PAYER,40149248,19/03/2021,191288,2096,COVID 19 SMALL BUSINESS GRANT
Eden District Council,http://opendatacommunities.org/id/district-council/eden,Financial Services Manager,Emergency Planning and Works,Grants and contributions,THE RATE PAYER,40149552,19/03/2021,191289,2096,COVID 19 SMALL BUSINESS GRANT
Eden District Council,http://opendatacommunities.org/id/district-council/eden,Financial Services Manager,Emergency Planning and Works,Grants and contributions,THE RATE PAYER,40150026,19/03/2021,191290,2096,COVID 19 SMALL BUSINESS GRANT
Eden District Council,http://opendatacommunities.org/id/district-council/eden,Financial Services Manager,Emergency Planning and Works,Grants and contributions,The Old School,40150071,19/03/2021,191291,2096,COVID 19 SMALL BUSINESS GRANT
Eden District Council,http://opendatacommunities.org/id/district-council/eden,Financial Services Manager,Emergency Planning and Works,Grants and contributions,Golf course  at Garshill.,40150132,19/03/2021,191292,2096,COVID 19 SMALL BUSINESS GRANT
Eden District Council,http://opendatacommunities.org/id/district-council/eden,Financial Services Manager,Emergency Planning and Works,Grants and contributions,THE RATE PAYER,40150262,19/03/2021,191293,2096,COVID 19 SMALL BUSINESS GRANT
Eden District Council,http://opendatacommunities.org/id/district-council/eden,Financial Services Manager,Emergency Planning and Works,Grants and contributions,Aplle Tree cottage,40150842,19/03/2021,191294,2096,COVID 19 SMALL BUSINESS GRANT
Eden District Council,http://opendatacommunities.org/id/district-council/eden,Financial Services Manager,Emergency Planning and Works,Grants and contributions,Tastes of Eden,40152107,19/03/2021,191295,2096,COVID 19 SMALL BUSINESS GRANT
Eden District Council,http://opendatacommunities.org/id/district-council/eden,Financial Services Manager,Emergency Planning and Works,Grants and contributions,Langton Beck (Mrs Hill C/O Mr R Hindley),40152190,19/03/2021,191296,2096,COVID 19 SMALL BUSINESS GRANT
Eden District Council,http://opendatacommunities.org/id/district-council/eden,Financial Services Manager,Emergency Planning and Works,Grants and contributions,Melmerby Village Hall Committee,40152329,19/03/2021,191297,2096,COVID 19 SMALL BUSINESS GRANT
Eden District Council,http://opendatacommunities.org/id/district-council/eden,Financial Services Manager,Emergency Planning and Works,Grants and contributions,THE RATE PAYER,40152343,19/03/2021,191298,2096,COVID 19 SMALL BUSINESS GRANT
Eden District Council,http://opendatacommunities.org/id/district-council/eden,Financial Services Manager,Emergency Planning and Works,Grants and contributions,BLENCATHRA PROPERTIES LTD,40152527,19/03/2021,191299,2096,COVID 19 SMALL BUSINESS GRANT
Eden District Council,http://opendatacommunities.org/id/district-council/eden,Financial Services Manager,Emergency Planning and Works,Grants and contributions,THE RATE PAYER,40152596,19/03/2021,191300,2096,COVID 19 SMALL BUSINESS GRANT
Eden District Council,http://opendatacommunities.org/id/district-council/eden,Financial Services Manager,Emergency Planning and Works,Grants and contributions,Albany House,40152657,19/03/2021,191301,2096,COVID 19 SMALL BUSINESS GRANT
Eden District Council,http://opendatacommunities.org/id/district-council/eden,Financial Services Manager,Emergency Planning and Works,Grants and contributions,THE RATE PAYER,40152800,19/03/2021,191302,2096,COVID 19 SMALL BUSINESS GRANT
Eden District Council,http://opendatacommunities.org/id/district-council/eden,Financial Services Manager,Emergency Planning and Works,Grants and contributions,THE RATE PAYER,40152862,19/03/2021,191303,2096,COVID 19 SMALL BUSINESS GRANT
Eden District Council,http://opendatacommunities.org/id/district-council/eden,Financial Services Manager,Emergency Planning and Works,Grants and contributions,THE RATE PAYER,40152916,19/03/2021,191304,2096,COVID 19 SMALL BUSINESS GRANT
Eden District Council,http://opendatacommunities.org/id/district-council/eden,Financial Services Manager,Emergency Planning and Works,Grants and contributions,THE RATE PAYER,40152923,19/03/2021,191305,2096,COVID 19 SMALL BUSINESS GRANT
Eden District Council,http://opendatacommunities.org/id/district-council/eden,Financial Services Manager,Emergency Planning and Works,Grants and contributions,Aira Cottage,40152930,19/03/2021,191306,2096,COVID 19 SMALL BUSINESS GRANT
Eden District Council,http://opendatacommunities.org/id/district-council/eden,Financial Services Manager,Emergency Planning and Works,Grants and contributions,Blease Cottage,40152992,19/03/2021,191307,2096,COVID 19 SMALL BUSINESS GRANT
Eden District Council,http://opendatacommunities.org/id/district-council/eden,Financial Services Manager,Emergency Planning and Works,Grants and contributions,WREAY FARMHOUSE,40153049,19/03/2021,191308,2096,COVID 19 SMALL BUSINESS GRANT
Eden District Council,http://opendatacommunities.org/id/district-council/eden,Financial Services Manager,Emergency Planning and Works,Grants and contributions, The Turks Head Inn,40153094,19/03/2021,191309,2096,COVID 19 SMALL BUSINESS GRANT
Eden District Council,http://opendatacommunities.org/id/district-council/eden,Financial Services Manager,Emergency Planning and Works,Grants and contributions,THE RATE PAYER,40153414,19/03/2021,191310,2096,COVID 19 SMALL BUSINESS GRANT
Eden District Council,http://opendatacommunities.org/id/district-council/eden,Financial Services Manager,Emergency Planning and Works,Grants and contributions, Grants of Castlegate,40153643,19/03/2021,191311,2096,COVID 19 SMALL BUSINESS GRANT
Eden District Council,http://opendatacommunities.org/id/district-council/eden,Financial Services Manager,Emergency Planning and Works,Grants and contributions,Granary Cottage Mosedale House,40154028,19/03/2021,191312,2096,COVID 19 SMALL BUSINESS GRANT
Eden District Council,http://opendatacommunities.org/id/district-council/eden,Financial Services Manager,Emergency Planning and Works,Grants and contributions,THE RATE PAYER,40154271,19/03/2021,191313,2096,COVID 19 SMALL BUSINESS GRANT
Eden District Council,http://opendatacommunities.org/id/district-council/eden,Financial Services Manager,Emergency Planning and Works,Grants and contributions,Harry's Barn,40154448,19/03/2021,191314,2096,COVID 19 SMALL BUSINESS GRANT
Eden District Council,http://opendatacommunities.org/id/district-council/eden,Financial Services Manager,Emergency Planning and Works,Grants and contributions,The cottage  Far Close,40154523,19/03/2021,191315,2096,COVID 19 SMALL BUSINESS GRANT
Eden District Council,http://opendatacommunities.org/id/district-council/eden,Financial Services Manager,Emergency Planning and Works,Grants and contributions,THE RATE PAYER,40154585,19/03/2021,191316,2096,COVID 19 SMALL BUSINESS GRANT
Eden District Council,http://opendatacommunities.org/id/district-council/eden,Financial Services Manager,Emergency Planning and Works,Grants and contributions,THE RATE PAYER,40154592,19/03/2021,191317,2096,COVID 19 SMALL BUSINESS GRANT
Eden District Council,http://opendatacommunities.org/id/district-council/eden,Financial Services Manager,Emergency Planning and Works,Grants and contributions,THE RATE PAYER,40154936,19/03/2021,191318,2096,COVID 19 SMALL BUSINESS GRANT
Eden District Council,http://opendatacommunities.org/id/district-council/eden,Financial Services Manager,Emergency Planning and Works,Grants and contributions,THE RATE PAYER,40155519,19/03/2021,191319,2096,COVID 19 SMALL BUSINESS GRANT
Eden District Council,http://opendatacommunities.org/id/district-council/eden,Financial Services Manager,Emergency Planning and Works,Grants and contributions,  MURRAY ELECTRICAL,40155670,19/03/2021,191320,2096,COVID 19 SMALL BUSINESS GRANT
Eden District Council,http://opendatacommunities.org/id/district-council/eden,Financial Services Manager,Emergency Planning and Works,Grants and contributions,Crookwath cottage,40156031,19/03/2021,191321,2096,COVID 19 SMALL BUSINESS GRANT
Eden District Council,http://opendatacommunities.org/id/district-council/eden,Financial Services Manager,Emergency Planning and Works,Grants and contributions,Blandswath Cottage,40156345,19/03/2021,191322,2096,COVID 19 SMALL BUSINESS GRANT
Eden District Council,http://opendatacommunities.org/id/district-council/eden,Financial Services Manager,Emergency Planning and Works,Grants and contributions,THE RATE PAYER,40156390,19/03/2021,191323,2096,COVID 19 SMALL BUSINESS GRANT
Eden District Council,http://opendatacommunities.org/id/district-council/eden,Financial Services Manager,Emergency Planning and Works,Grants and contributions,Kirkby Stephen Silver Band,40156581,19/03/2021,191324,2096,COVID 19 SMALL BUSINESS GRANT
Eden District Council,http://opendatacommunities.org/id/district-council/eden,Financial Services Manager,Emergency Planning and Works,Grants and contributions, Enhance Hair & Beauty,40157393,19/03/2021,191325,2096,COVID 19 SMALL BUSINESS GRANT
Eden District Council,http://opendatacommunities.org/id/district-council/eden,Financial Services Manager,Emergency Planning and Works,Grants and contributions,Chapel Cottage Helton,40157720,19/03/2021,191326,2096,COVID 19 SMALL BUSINESS GRANT
Eden District Council,http://opendatacommunities.org/id/district-council/eden,Financial Services Manager,Emergency Planning and Works,Grants and contributions,Get Ahead Hats,40157751,19/03/2021,191327,2096,COVID 19 SMALL BUSINESS GRANT
Eden District Council,http://opendatacommunities.org/id/district-council/eden,Financial Services Manager,Emergency Planning and Works,Grants and contributions,The Apartment at Rampsbeck Lodge,40157775,19/03/2021,191328,2096,COVID 19 SMALL BUSINESS GRANT
Eden District Council,http://opendatacommunities.org/id/district-council/eden,Financial Services Manager,Emergency Planning and Works,Grants and contributions,Three Crowns Tea Shop,40157942,19/03/2021,191329,2096,COVID 19 SMALL BUSINESS GRANT
Eden District Council,http://opendatacommunities.org/id/district-council/eden,Financial Services Manager,Emergency Planning and Works,Grants and contributions,Salutation Inn,40158006,19/03/2021,191330,2096,COVID 19 SMALL BUSINESS GRANT
Eden District Council,http://opendatacommunities.org/id/district-council/eden,Financial Services Manager,Emergency Planning and Works,Grants and contributions,Victoria,40158013,19/03/2021,191331,2096,COVID 19 SMALL BUSINESS GRANT
Eden District Council,http://opendatacommunities.org/id/district-council/eden,Financial Services Manager,Emergency Planning and Works,Grants and contributions,Greystoke Castle,40158402,19/03/2021,191332,2096,COVID 19 SMALL BUSINESS GRANT
Eden District Council,http://opendatacommunities.org/id/district-council/eden,Financial Services Manager,Emergency Planning and Works,Grants and contributions,Tebay Sports and Social Club,40158570,19/03/2021,191333,2096,COVID 19 SMALL BUSINESS GRANT
Eden District Council,http://opendatacommunities.org/id/district-council/eden,Financial Services Manager,Emergency Planning and Works,Grants and contributions,Tebay Sports and Social Club,40158587,19/03/2021,191334,2096,COVID 19 SMALL BUSINESS GRANT
Eden District Council,http://opendatacommunities.org/id/district-council/eden,Financial Services Manager,Emergency Planning and Works,Grants and contributions,THE RATE PAYER,40158655,19/03/2021,191335,2096,COVID 19 SMALL BUSINESS GRANT
Eden District Council,http://opendatacommunities.org/id/district-council/eden,Financial Services Manager,Emergency Planning and Works,Grants and contributions,astland assets limited,40158778,19/03/2021,191336,2096,COVID 19 SMALL BUSINESS GRANT
Eden District Council,http://opendatacommunities.org/id/district-council/eden,Financial Services Manager,Emergency Planning and Works,Grants and contributions,Hospice at Home Carlisle and North Lakeland,40159153,19/03/2021,191337,2096,COVID 19 SMALL BUSINESS GRANT
Eden District Council,http://opendatacommunities.org/id/district-council/eden,Financial Services Manager,Emergency Planning and Works,Grants and contributions,THE RATE PAYER,40159405,19/03/2021,191338,2096,COVID 19 SMALL BUSINESS GRANT
Eden District Council,http://opendatacommunities.org/id/district-council/eden,Financial Services Manager,Emergency Planning and Works,Grants and contributions,THE RATE PAYER,40159627,19/03/2021,191339,2096,COVID 19 SMALL BUSINESS GRANT
Eden District Council,http://opendatacommunities.org/id/district-council/eden,Financial Services Manager,Emergency Planning and Works,Grants and contributions,Red Barn Gallery,40159641,19/03/2021,191340,2096,COVID 19 SMALL BUSINESS GRANT
Eden District Council,http://opendatacommunities.org/id/district-council/eden,Financial Services Manager,Emergency Planning and Works,Grants and contributions,Lilac Barn & Lilac Studio,40160047,19/03/2021,191341,2096,COVID 19 SMALL BUSINESS GRANT
Eden District Council,http://opendatacommunities.org/id/district-council/eden,Financial Services Manager,Emergency Planning and Works,Grants and contributions,Tarn Outdoor Centre Ltd,40160115,19/03/2021,191342,2096,COVID 19 SMALL BUSINESS GRANT
Eden District Council,http://opendatacommunities.org/id/district-council/eden,Financial Services Manager,Emergency Planning and Works,Grants and contributions,Chapel Barn Orton,40160146,19/03/2021,191343,2096,COVID 19 SMALL BUSINESS GRANT
Eden District Council,http://opendatacommunities.org/id/district-council/eden,Financial Services Manager,Emergency Planning and Works,Grants and contributions,THE RATE PAYER,40161415,19/03/2021,191344,2096,COVID 19 SMALL BUSINESS GRANT
Eden District Council,http://opendatacommunities.org/id/district-council/eden,Financial Services Manager,Emergency Planning and Works,Grants and contributions,DESTINY CARDS,40161590,19/03/2021,191345,2096,COVID 19 SMALL BUSINESS GRANT
Eden District Council,http://opendatacommunities.org/id/district-council/eden,Financial Services Manager,Emergency Planning and Works,Grants and contributions,Byre Cottage Langwathby,40161675,19/03/2021,191346,2096,COVID 19 SMALL BUSINESS GRANT
Eden District Council,http://opendatacommunities.org/id/district-council/eden,Financial Services Manager,Emergency Planning and Works,Grants and contributions,Grassgill caravan site,40162159,19/03/2021,191347,2096,COVID 19 SMALL BUSINESS GRANT
Eden District Council,http://opendatacommunities.org/id/district-council/eden,Financial Services Manager,Emergency Planning and Works,Grants and contributions,Yew Tree Farm,40162326,19/03/2021,191348,2096,COVID 19 SMALL BUSINESS GRANT
Eden District Council,http://opendatacommunities.org/id/district-council/eden,Financial Services Manager,Emergency Planning and Works,Grants and contributions,THE RATE PAYER,40162395,19/03/2021,191349,2096,COVID 19 SMALL BUSINESS GRANT
Eden District Council,http://opendatacommunities.org/id/district-council/eden,Financial Services Manager,Emergency Planning and Works,Grants and contributions,The Royalist Orton Hall,40162449,19/03/2021,191350,2096,COVID 19 SMALL BUSINESS GRANT
Eden District Council,http://opendatacommunities.org/id/district-council/eden,Financial Services Manager,Emergency Planning and Works,Grants and contributions,Self catering holiday let,40162715,19/03/2021,191351,2096,COVID 19 SMALL BUSINESS GRANT
Eden District Council,http://opendatacommunities.org/id/district-council/eden,Financial Services Manager,Emergency Planning and Works,Grants and contributions,Beech House,40162876,19/03/2021,191352,2096,COVID 19 SMALL BUSINESS GRANT
Eden District Council,http://opendatacommunities.org/id/district-council/eden,Financial Services Manager,Emergency Planning and Works,Grants and contributions,THE RATE PAYER,40163213,19/03/2021,191353,2096,COVID 19 SMALL BUSINESS GRANT
Eden District Council,http://opendatacommunities.org/id/district-council/eden,Financial Services Manager,Emergency Planning and Works,Grants and contributions,THE RATE PAYER,40163329,19/03/2021,191354,2096,COVID 19 SMALL BUSINESS GRANT
Eden District Council,http://opendatacommunities.org/id/district-council/eden,Financial Services Manager,Emergency Planning and Works,Grants and contributions, THE GLEN COTTAGE HOTEL,40163640,19/03/2021,191355,2096,COVID 19 SMALL BUSINESS GRANT
Eden District Council,http://opendatacommunities.org/id/district-council/eden,Financial Services Manager,Emergency Planning and Works,Grants and contributions,LAVENDER DAISY & POPPY COTTS WY,40164216,19/03/2021,191356,2096,COVID 19 SMALL BUSINESS GRANT
Eden District Council,http://opendatacommunities.org/id/district-council/eden,Financial Services Manager,Emergency Planning and Works,Grants and contributions,Arlacrown LTD T/a Salsa Mexican,40164322,19/03/2021,191357,2096,COVID 19 SMALL BUSINESS GRANT
Eden District Council,http://opendatacommunities.org/id/district-council/eden,Financial Services Manager,Emergency Planning and Works,Grants and contributions,Foxfield leisure limited,40164599,19/03/2021,191358,2096,COVID 19 SMALL BUSINESS GRANT
Eden District Council,http://opendatacommunities.org/id/district-council/eden,Financial Services Manager,Emergency Planning and Works,Grants and contributions,Pea Top Farm B&B,40164858,19/03/2021,191359,2096,COVID 19 SMALL BUSINESS GRANT
Eden District Council,http://opendatacommunities.org/id/district-council/eden,Financial Services Manager,Emergency Planning and Works,Grants and contributions,Ullswater view limited FAO gowbarrow lodge,40165172,19/03/2021,191360,2096,COVID 19 SMALL BUSINESS GRANT
Eden District Council,http://opendatacommunities.org/id/district-council/eden,Financial Services Manager,Emergency Planning and Works,Grants and contributions,THE RATE PAYER,40165202,19/03/2021,191361,2096,COVID 19 SMALL BUSINESS GRANT
Eden District Council,http://opendatacommunities.org/id/district-council/eden,Financial Services Manager,Emergency Planning and Works,Grants and contributions,THE RATE PAYER,40165219,19/03/2021,191362,2096,COVID 19 SMALL BUSINESS GRANT
Eden District Council,http://opendatacommunities.org/id/district-council/eden,Financial Services Manager,Emergency Planning and Works,Grants and contributions,The Strickland Arms,40165363,19/03/2021,191363,2096,COVID 19 SMALL BUSINESS GRANT
Eden District Council,http://opendatacommunities.org/id/district-council/eden,Financial Services Manager,Emergency Planning and Works,Grants and contributions,MIDTOWN BARN AND THE DAIRY,40165417,19/03/2021,191364,2096,COVID 19 SMALL BUSINESS GRANT
Eden District Council,http://opendatacommunities.org/id/district-council/eden,Financial Services Manager,Emergency Planning and Works,Grants and contributions,Highgate Farm,40165455,19/03/2021,191365,2096,COVID 19 SMALL BUSINESS GRANT
Eden District Council,http://opendatacommunities.org/id/district-council/eden,Financial Services Manager,Emergency Planning and Works,Grants and contributions,Stone Cottage,40165530,19/03/2021,191366,2096,COVID 19 SMALL BUSINESS GRANT
Eden District Council,http://opendatacommunities.org/id/district-council/eden,Financial Services Manager,Emergency Planning and Works,Grants and contributions,The Golden Ball 4 High Weind Appleby,40165882,19/03/2021,191367,2096,COVID 19 SMALL BUSINESS GRANT
Eden District Council,http://opendatacommunities.org/id/district-council/eden,Financial Services Manager,Emergency Planning and Works,Grants and contributions,CROWN AND MITRE HOTEL,40167123,19/03/2021,191368,2096,COVID 19 SMALL BUSINESS GRANT
Eden District Council,http://opendatacommunities.org/id/district-council/eden,Financial Services Manager,Emergency Planning and Works,Grants and contributions,Seagraves and Dixon Ltd,40167161,19/03/2021,191369,2096,COVID 19 SMALL BUSINESS GRANT
Eden District Council,http://opendatacommunities.org/id/district-council/eden,Financial Services Manager,Emergency Planning and Works,Grants and contributions,a Hidden Treasures,40167314,19/03/2021,191370,2096,COVID 19 SMALL BUSINESS GRANT
Eden District Council,http://opendatacommunities.org/id/district-council/eden,Financial Services Manager,Emergency Planning and Works,Grants and contributions,THE RATE PAYER,40167604,19/03/2021,191371,2096,COVID 19 SMALL BUSINESS GRANT
Eden District Council,http://opendatacommunities.org/id/district-council/eden,Financial Services Manager,Emergency Planning and Works,Grants and contributions,THE RATE PAYER,40167611,19/03/2021,191372,2096,COVID 19 SMALL BUSINESS GRANT
Eden District Council,http://opendatacommunities.org/id/district-council/eden,Financial Services Manager,Emergency Planning and Works,Grants and contributions,THE RATE PAYER,40168157,19/03/2021,191373,2096,COVID 19 SMALL BUSINESS GRANT
Eden District Council,http://opendatacommunities.org/id/district-council/eden,Financial Services Manager,Emergency Planning and Works,Grants and contributions, Dodd's,40168164,19/03/2021,191374,2096,COVID 19 SMALL BUSINESS GRANT
Eden District Council,http://opendatacommunities.org/id/district-council/eden,Financial Services Manager,Emergency Planning and Works,Grants and contributions,LAKELAND EMBROIDERY,40168409,19/03/2021,191375,2096,COVID 19 SMALL BUSINESS GRANT
Eden District Council,http://opendatacommunities.org/id/district-council/eden,Financial Services Manager,Emergency Planning and Works,Grants and contributions,Brow Farm,40168577,19/03/2021,191376,2096,COVID 19 SMALL BUSINESS GRANT
Eden District Council,http://opendatacommunities.org/id/district-council/eden,Financial Services Manager,Emergency Planning and Works,Grants and contributions,Allen Park Foot Ltd,40168690,19/03/2021,191377,2096,COVID 19 SMALL BUSINESS GRANT
Eden District Council,http://opendatacommunities.org/id/district-council/eden,Financial Services Manager,Emergency Planning and Works,Grants and contributions,Edenside Caravan Park,40168744,19/03/2021,191378,2096,COVID 19 SMALL BUSINESS GRANT
Eden District Council,http://opendatacommunities.org/id/district-council/eden,Financial Services Manager,Emergency Planning and Works,Grants and contributions,Stable Cottage,40168751,19/03/2021,191379,2096,COVID 19 SMALL BUSINESS GRANT
Eden District Council,http://opendatacommunities.org/id/district-council/eden,Financial Services Manager,Emergency Planning and Works,Grants and contributions,Cherry Tree Cottage Sandriggs,40169945,19/03/2021,191380,2096,COVID 19 SMALL BUSINESS GRANT
Eden District Council,http://opendatacommunities.org/id/district-council/eden,Financial Services Manager,Emergency Planning and Works,Grants and contributions,THE RATE PAYER,40170501,19/03/2021,191381,2096,COVID 19 SMALL BUSINESS GRANT
Eden District Council,http://opendatacommunities.org/id/district-council/eden,Financial Services Manager,Emergency Planning and Works,Grants and contributions,THE RATE PAYER,40170556,19/03/2021,191382,2096,COVID 19 SMALL BUSINESS GRANT
Eden District Council,http://opendatacommunities.org/id/district-council/eden,Financial Services Manager,Emergency Planning and Works,Grants and contributions,THE RATE PAYER,40170587,19/03/2021,191383,2096,COVID 19 SMALL BUSINESS GRANT
Eden District Council,http://opendatacommunities.org/id/district-council/eden,Financial Services Manager,Emergency Planning and Works,Grants and contributions,THE RATE PAYER,40171023,19/03/2021,191384,2096,COVID 19 SMALL BUSINESS GRANT
Eden District Council,http://opendatacommunities.org/id/district-council/eden,Financial Services Manager,Emergency Planning and Works,Grants and contributions,Coy Boutique LTD,40171245,19/03/2021,191385,2096,COVID 19 SMALL BUSINESS GRANT
Eden District Council,http://opendatacommunities.org/id/district-council/eden,Financial Services Manager,Emergency Planning and Works,Grants and contributions,THE RATE PAYER,40171498,19/03/2021,191386,2096,COVID 19 SMALL BUSINESS GRANT
Eden District Council,http://opendatacommunities.org/id/district-council/eden,Financial Services Manager,Emergency Planning and Works,Grants and contributions,THE RATE PAYER,40171740,19/03/2021,191387,2096,COVID 19 SMALL BUSINESS GRANT
Eden District Council,http://opendatacommunities.org/id/district-council/eden,Financial Services Manager,Emergency Planning and Works,Grants and contributions,THE EVERGREEN CLUB,40171948,19/03/2021,191388,2096,COVID 19 SMALL BUSINESS GRANT
Eden District Council,http://opendatacommunities.org/id/district-council/eden,Financial Services Manager,Emergency Planning and Works,Grants and contributions,Holiday Cottage The Gars,40172194,19/03/2021,191389,2096,COVID 19 SMALL BUSINESS GRANT
Eden District Council,http://opendatacommunities.org/id/district-council/eden,Financial Services Manager,Emergency Planning and Works,Grants and contributions,THE RATE PAYER,40172835,19/03/2021,191390,2096,COVID 19 SMALL BUSINESS GRANT
Eden District Council,http://opendatacommunities.org/id/district-council/eden,Financial Services Manager,Emergency Planning and Works,Grants and contributions,Brougham Hall Charitable Trust,40172866,19/03/2021,191391,2096,COVID 19 SMALL BUSINESS GRANT
Eden District Council,http://opendatacommunities.org/id/district-council/eden,Financial Services Manager,Emergency Planning and Works,Grants and contributions,THE RATE PAYER,40173234,19/03/2021,191392,2096,COVID 19 SMALL BUSINESS GRANT
Eden District Council,http://opendatacommunities.org/id/district-council/eden,Financial Services Manager,Emergency Planning and Works,Grants and contributions,Ullswater Navigation & Transit Co,40173500,19/03/2021,191393,2096,COVID 19 SMALL BUSINESS GRANT
Eden District Council,http://opendatacommunities.org/id/district-council/eden,Financial Services Manager,Emergency Planning and Works,Grants and contributions,THE RATE PAYER,40173548,19/03/2021,191394,2096,COVID 19 SMALL BUSINESS GRANT
Eden District Council,http://opendatacommunities.org/id/district-council/eden,Financial Services Manager,Emergency Planning and Works,Grants and contributions, Silverband Falconry,40173616,19/03/2021,191395,2096,COVID 19 SMALL BUSINESS GRANT
Eden District Council,http://opendatacommunities.org/id/district-council/eden,Financial Services Manager,Emergency Planning and Works,Grants and contributions,Elm House Ullswater LTD,40173661,19/03/2021,191396,2096,COVID 19 SMALL BUSINESS GRANT
Eden District Council,http://opendatacommunities.org/id/district-council/eden,Financial Services Manager,Emergency Planning and Works,Grants and contributions,W VASEY & SONS,40174411,19/03/2021,191397,2096,COVID 19 SMALL BUSINESS GRANT
Eden District Council,http://opendatacommunities.org/id/district-council/eden,Financial Services Manager,Emergency Planning and Works,Grants and contributions,Talbot House,40174596,19/03/2021,191398,2096,COVID 19 SMALL BUSINESS GRANT
Eden District Council,http://opendatacommunities.org/id/district-council/eden,Financial Services Manager,Emergency Planning and Works,Grants and contributions,Talbot Studio,40174602,19/03/2021,191399,2096,COVID 19 SMALL BUSINESS GRANT
Eden District Council,http://opendatacommunities.org/id/district-council/eden,Financial Services Manager,Emergency Planning and Works,Grants and contributions,The Mulberry Bush,40174848,19/03/2021,191400,2096,COVID 19 SMALL BUSINESS GRANT
Eden District Council,http://opendatacommunities.org/id/district-council/eden,Financial Services Manager,Emergency Planning and Works,Grants and contributions,Wearmouth Plant Hire Ltd,40174862,19/03/2021,191401,2096,COVID 19 SMALL BUSINESS GRANT
Eden District Council,http://opendatacommunities.org/id/district-council/eden,Financial Services Manager,Emergency Planning and Works,Grants and contributions,THE RATE PAYER,40175490,19/03/2021,191402,2096,COVID 19 SMALL BUSINESS GRANT
Eden District Council,http://opendatacommunities.org/id/district-council/eden,Financial Services Manager,Emergency Planning and Works,Grants and contributions,YOUTH HOSTEL,40175506,19/03/2021,191403,2096,COVID 19 SMALL BUSINESS GRANT
Eden District Council,http://opendatacommunities.org/id/district-council/eden,Financial Services Manager,Emergency Planning and Works,Grants and contributions,Heather Glen Country House Ltd,40175537,19/03/2021,191404,2096,COVID 19 SMALL BUSINESS GRANT
Eden District Council,http://opendatacommunities.org/id/district-council/eden,Financial Services Manager,Emergency Planning and Works,Grants and contributions,THE RATE PAYER,40175544,19/03/2021,191405,2096,COVID 19 SMALL BUSINESS GRANT
Eden District Council,http://opendatacommunities.org/id/district-council/eden,Financial Services Manager,Emergency Planning and Works,Grants and contributions,Town Head Farm Cottages,40175551,19/03/2021,191406,2096,COVID 19 SMALL BUSINESS GRANT
Eden District Council,http://opendatacommunities.org/id/district-council/eden,Financial Services Manager,Emergency Planning and Works,Grants and contributions,THE RATE PAYER,40175759,19/03/2021,191407,2096,COVID 19 SMALL BUSINESS GRANT
Eden District Council,http://opendatacommunities.org/id/district-council/eden,Financial Services Manager,Emergency Planning and Works,Grants and contributions,THE RATE PAYER,40176431,19/03/2021,191408,2096,COVID 19 SMALL BUSINESS GRANT
Eden District Council,http://opendatacommunities.org/id/district-council/eden,Financial Services Manager,Emergency Planning and Works,Grants and contributions,Seasons Holidays plc,40177137,19/03/2021,191409,2096,COVID 19 SMALL BUSINESS GRANT
Eden District Council,http://opendatacommunities.org/id/district-council/eden,Financial Services Manager,Emergency Planning and Works,Grants and contributions,POTTERY COTTAGE,40177144,19/03/2021,191410,2096,COVID 19 SMALL BUSINESS GRANT
Eden District Council,http://opendatacommunities.org/id/district-council/eden,Financial Services Manager,Emergency Planning and Works,Grants and contributions,Guards Cottage,40177151,19/03/2021,191411,2096,COVID 19 SMALL BUSINESS GRANT
Eden District Council,http://opendatacommunities.org/id/district-council/eden,Financial Services Manager,Emergency Planning and Works,Grants and contributions,Park House Caravan Site,40177175,19/03/2021,191412,2096,COVID 19 SMALL BUSINESS GRANT
Eden District Council,http://opendatacommunities.org/id/district-council/eden,Financial Services Manager,Emergency Planning and Works,Grants and contributions, Simpsons,40177397,19/03/2021,191413,2096,COVID 19 SMALL BUSINESS GRANT
Eden District Council,http://opendatacommunities.org/id/district-council/eden,Financial Services Manager,Emergency Planning and Works,Grants and contributions,Wordsworth Cottage self catering unit and premises,40178246,19/03/2021,191414,2096,COVID 19 SMALL BUSINESS GRANT
Eden District Council,http://opendatacommunities.org/id/district-council/eden,Financial Services Manager,Emergency Planning and Works,Grants and contributions,Brockholes Farm Partnership,40178253,19/03/2021,191415,2096,COVID 19 SMALL BUSINESS GRANT
Eden District Council,http://opendatacommunities.org/id/district-council/eden,Financial Services Manager,Emergency Planning and Works,Grants and contributions,Birtle�s Sports,40178543,19/03/2021,191416,2096,COVID 19 SMALL BUSINESS GRANT
Eden District Council,http://opendatacommunities.org/id/district-council/eden,Financial Services Manager,Emergency Planning and Works,Grants and contributions,Millstream & Sowerberry,40178772,19/03/2021,191417,2096,COVID 19 SMALL BUSINESS GRANT
Eden District Council,http://opendatacommunities.org/id/district-council/eden,Financial Services Manager,Emergency Planning and Works,Grants and contributions,The Old Coach House,40178949,19/03/2021,191418,2096,COVID 19 SMALL BUSINESS GRANT
Eden District Council,http://opendatacommunities.org/id/district-council/eden,Financial Services Manager,Emergency Planning and Works,Grants and contributions,Keepers Cottage,40179089,19/03/2021,191419,2096,COVID 19 SMALL BUSINESS GRANT
Eden District Council,http://opendatacommunities.org/id/district-council/eden,Financial Services Manager,Emergency Planning and Works,Grants and contributions,PENNINE LODGE & BLENCATHRA,40179362,19/03/2021,191420,2096,COVID 19 SMALL BUSINESS GRANT
Eden District Council,http://opendatacommunities.org/id/district-council/eden,Financial Services Manager,Emergency Planning and Works,Grants and contributions,THE RATE PAYER,40179492,19/03/2021,191421,2096,COVID 19 SMALL BUSINESS GRANT
Eden District Council,http://opendatacommunities.org/id/district-council/eden,Financial Services Manager,Emergency Planning and Works,Grants and contributions,THE RATE PAYER,40179560,19/03/2021,191422,2096,COVID 19 SMALL BUSINESS GRANT
Eden District Council,http://opendatacommunities.org/id/district-council/eden,Financial Services Manager,Emergency Planning and Works,Grants and contributions,THE RATE PAYER,40179591,19/03/2021,191423,2096,COVID 19 SMALL BUSINESS GRANT
Eden District Council,http://opendatacommunities.org/id/district-council/eden,Financial Services Manager,Emergency Planning and Works,Grants and contributions,THE RATE PAYER,40179614,19/03/2021,191424,2096,COVID 19 SMALL BUSINESS GRANT
Eden District Council,http://opendatacommunities.org/id/district-council/eden,Financial Services Manager,Emergency Planning and Works,Grants and contributions,THE RATE PAYER,40179621,19/03/2021,191425,2096,COVID 19 SMALL BUSINESS GRANT
Eden District Council,http://opendatacommunities.org/id/district-council/eden,Financial Services Manager,Emergency Planning and Works,Grants and contributions,THE RATE PAYER,40179638,19/03/2021,191426,2096,COVID 19 SMALL BUSINESS GRANT
Eden District Council,http://opendatacommunities.org/id/district-council/eden,Financial Services Manager,Emergency Planning and Works,Grants and contributions,THE RATE PAYER,40179645,19/03/2021,191427,2096,COVID 19 SMALL BUSINESS GRANT
Eden District Council,http://opendatacommunities.org/id/district-council/eden,Financial Services Manager,Emergency Planning and Works,Grants and contributions,THE RATE PAYER,40179669,19/03/2021,191428,2096,COVID 19 SMALL BUSINESS GRANT
Eden District Council,http://opendatacommunities.org/id/district-council/eden,Financial Services Manager,Emergency Planning and Works,Grants and contributions,THE RATE PAYER,40179706,19/03/2021,191429,2096,COVID 19 SMALL BUSINESS GRANT
Eden District Council,http://opendatacommunities.org/id/district-council/eden,Financial Services Manager,Emergency Planning and Works,Grants and contributions,Amsa properties Ltd,40179720,19/03/2021,191430,2096,COVID 19 SMALL BUSINESS GRANT
Eden District Council,http://opendatacommunities.org/id/district-council/eden,Financial Services Manager,Emergency Planning and Works,Grants and contributions,Currie capital limited,40179744,19/03/2021,191431,2096,COVID 19 SMALL BUSINESS GRANT
Eden District Council,http://opendatacommunities.org/id/district-council/eden,Financial Services Manager,Emergency Planning and Works,Grants and contributions,Bank House Farm,40179782,19/03/2021,191432,2096,COVID 19 SMALL BUSINESS GRANT
Eden District Council,http://opendatacommunities.org/id/district-council/eden,Financial Services Manager,Emergency Planning and Works,Grants and contributions,Tangles,40179812,19/03/2021,191433,2096,COVID 19 SMALL BUSINESS GRANT
Eden District Council,http://opendatacommunities.org/id/district-council/eden,Financial Services Manager,Emergency Planning and Works,Grants and contributions,Entwisle Property Services,40179935,19/03/2021,191434,2096,COVID 19 SMALL BUSINESS GRANT
Eden District Council,http://opendatacommunities.org/id/district-council/eden,Financial Services Manager,Emergency Planning and Works,Grants and contributions,Well Tree Cottage,40180232,19/03/2021,191435,2096,COVID 19 SMALL BUSINESS GRANT
Eden District Council,http://opendatacommunities.org/id/district-council/eden,Financial Services Manager,Emergency Planning and Works,Grants and contributions,THE RATE PAYER,40180553,19/03/2021,191436,2096,COVID 19 SMALL BUSINESS GRANT
Eden District Council,http://opendatacommunities.org/id/district-council/eden,Financial Services Manager,Emergency Planning and Works,Grants and contributions,Rose House Studio,40180560,19/03/2021,191437,2096,COVID 19 SMALL BUSINESS GRANT
Eden District Council,http://opendatacommunities.org/id/district-council/eden,Financial Services Manager,Emergency Planning and Works,Grants and contributions,Cawburn and Milburn Cottages,40180607,19/03/2021,191438,2096,COVID 19 SMALL BUSINESS GRANT
Eden District Council,http://opendatacommunities.org/id/district-council/eden,Financial Services Manager,Emergency Planning and Works,Grants and contributions,Sycamore House Barn,40180614,19/03/2021,191439,2096,COVID 19 SMALL BUSINESS GRANT
Eden District Council,http://opendatacommunities.org/id/district-council/eden,Financial Services Manager,Emergency Planning and Works,Grants and contributions,THE RATE PAYER,40181167,19/03/2021,191440,2096,COVID 19 SMALL BUSINESS GRANT
Eden District Council,http://opendatacommunities.org/id/district-council/eden,Financial Services Manager,Emergency Planning and Works,Grants and contributions,Ashtree Barn and Byre Cottage,40181617,19/03/2021,191441,2096,COVID 19 SMALL BUSINESS GRANT
Eden District Council,http://opendatacommunities.org/id/district-council/eden,Financial Services Manager,Emergency Planning and Works,Grants and contributions,Studio 7,40181709,19/03/2021,191442,2096,COVID 19 SMALL BUSINESS GRANT
Eden District Council,http://opendatacommunities.org/id/district-council/eden,Financial Services Manager,Emergency Planning and Works,Grants and contributions,THE RATE PAYER,40182429,19/03/2021,191443,2096,COVID 19 SMALL BUSINESS GRANT
Eden District Council,http://opendatacommunities.org/id/district-council/eden,Financial Services Manager,Emergency Planning and Works,Grants and contributions,THE RATE PAYER,40182528,19/03/2021,191444,2096,COVID 19 SMALL BUSINESS GRANT
Eden District Council,http://opendatacommunities.org/id/district-council/eden,Financial Services Manager,Emergency Planning and Works,Grants and contributions,Park House,40182627,19/03/2021,191445,2096,COVID 19 SMALL BUSINESS GRANT
Eden District Council,http://opendatacommunities.org/id/district-council/eden,Financial Services Manager,Emergency Planning and Works,Grants and contributions,3 Taylor Cottages,40182702,19/03/2021,191446,2096,COVID 19 SMALL BUSINESS GRANT
Eden District Council,http://opendatacommunities.org/id/district-council/eden,Financial Services Manager,Emergency Planning and Works,Grants and contributions,Strolling 4 shoes,40182962,19/03/2021,191447,2096,COVID 19 SMALL BUSINESS GRANT
Eden District Council,http://opendatacommunities.org/id/district-council/eden,Financial Services Manager,Emergency Planning and Works,Grants and contributions,a Lowthwaite B & B,40183026,19/03/2021,191448,2096,COVID 19 SMALL BUSINESS GRANT
Eden District Council,http://opendatacommunities.org/id/district-council/eden,Financial Services Manager,Emergency Planning and Works,Grants and contributions,Crakeld Holm,40183101,19/03/2021,191449,2096,COVID 19 SMALL BUSINESS GRANT
Eden District Council,http://opendatacommunities.org/id/district-council/eden,Financial Services Manager,Emergency Planning and Works,Grants and contributions,Able Memorials Ltd,40183569,19/03/2021,191450,2096,COVID 19 SMALL BUSINESS GRANT
Eden District Council,http://opendatacommunities.org/id/district-council/eden,Financial Services Manager,Emergency Planning and Works,Grants and contributions,T J Furniture Ltd,40183644,19/03/2021,191451,2096,COVID 19 SMALL BUSINESS GRANT
Eden District Council,http://opendatacommunities.org/id/district-council/eden,Financial Services Manager,Emergency Planning and Works,Grants and contributions,NARROWBAR LIMITED,40183880,19/03/2021,191452,2096,COVID 19 SMALL BUSINESS GRANT
Eden District Council,http://opendatacommunities.org/id/district-council/eden,Financial Services Manager,Emergency Planning and Works,Grants and contributions,Holiday Cottages at Newby Court,40183897,19/03/2021,191453,2096,COVID 19 SMALL BUSINESS GRANT
Eden District Council,http://opendatacommunities.org/id/district-council/eden,Financial Services Manager,Emergency Planning and Works,Grants and contributions,THE RATE PAYER,40183910,19/03/2021,191454,2096,COVID 19 SMALL BUSINESS GRANT
Eden District Council,http://opendatacommunities.org/id/district-council/eden,Financial Services Manager,Emergency Planning and Works,Grants and contributions,WEST NATTRASS TEA ROOMS AND GUEST HOUSE,40183941,19/03/2021,191455,2096,COVID 19 SMALL BUSINESS GRANT
Eden District Council,http://opendatacommunities.org/id/district-council/eden,Financial Services Manager,Emergency Planning and Works,Grants and contributions,New Ing Lodge,40183958,19/03/2021,191456,2096,COVID 19 SMALL BUSINESS GRANT
Eden District Council,http://opendatacommunities.org/id/district-council/eden,Financial Services Manager,Emergency Planning and Works,Grants and contributions,Smithy Barn,40184739,19/03/2021,191457,2096,COVID 19 SMALL BUSINESS GRANT
Eden District Council,http://opendatacommunities.org/id/district-council/eden,Financial Services Manager,Emergency Planning and Works,Grants and contributions,Morgan Curtain Design Ltd,40184838,19/03/2021,191458,2096,COVID 19 SMALL BUSINESS GRANT
Eden District Council,http://opendatacommunities.org/id/district-council/eden,Financial Services Manager,Emergency Planning and Works,Grants and contributions,Eden Mind LTD (Carlisle Eden Mind),40184944,19/03/2021,191459,2096,COVID 19 SMALL BUSINESS GRANT
Eden District Council,http://opendatacommunities.org/id/district-council/eden,Financial Services Manager,Emergency Planning and Works,Grants and contributions,THE RATE PAYER,40185145,19/03/2021,191460,2096,COVID 19 SMALL BUSINESS GRANT
Eden District Council,http://opendatacommunities.org/id/district-council/eden,Financial Services Manager,Emergency Planning and Works,Grants and contributions,Deepdale and Dovedale,40185848,19/03/2021,191461,2096,COVID 19 SMALL BUSINESS GRANT
Eden District Council,http://opendatacommunities.org/id/district-council/eden,Financial Services Manager,Emergency Planning and Works,Grants and contributions,THE RATE PAYER,40186292,19/03/2021,191462,2096,COVID 19 SMALL BUSINESS GRANT
Eden District Council,http://opendatacommunities.org/id/district-council/eden,Financial Services Manager,Emergency Planning and Works,Grants and contributions,The Studio at Croft Cottage,40186445,19/03/2021,191463,2096,COVID 19 SMALL BUSINESS GRANT
Eden District Council,http://opendatacommunities.org/id/district-council/eden,Financial Services Manager,Emergency Planning and Works,Grants and contributions,Garrigill Village Hall Trustees,40186568,19/03/2021,191464,2096,COVID 19 SMALL BUSINESS GRANT
Eden District Council,http://opendatacommunities.org/id/district-council/eden,Financial Services Manager,Emergency Planning and Works,Grants and contributions,Wetheriggs united football club,40186636,19/03/2021,191465,2096,COVID 19 SMALL BUSINESS GRANT
Eden District Council,http://opendatacommunities.org/id/district-council/eden,Financial Services Manager,Emergency Planning and Works,Grants and contributions,Dalemain Estates,40186681,19/03/2021,191466,2096,COVID 19 SMALL BUSINESS GRANT
Eden District Council,http://opendatacommunities.org/id/district-council/eden,Financial Services Manager,Emergency Planning and Works,Grants and contributions,THE RATE PAYER,40186728,19/03/2021,191467,2096,COVID 19 SMALL BUSINESS GRANT
Eden District Council,http://opendatacommunities.org/id/district-council/eden,Financial Services Manager,Emergency Planning and Works,Grants and contributions,High Birch Close,40187288,19/03/2021,191468,2096,COVID 19 SMALL BUSINESS GRANT
Eden District Council,http://opendatacommunities.org/id/district-council/eden,Financial Services Manager,Emergency Planning and Works,Grants and contributions,GOLDEN FLEECE INN,40187325,19/03/2021,191469,2096,COVID 19 SMALL BUSINESS GRANT
Eden District Council,http://opendatacommunities.org/id/district-council/eden,Financial Services Manager,Emergency Planning and Works,Grants and contributions,Hartsop Mill Cottage Self Catering,40187646,19/03/2021,191470,2096,COVID 19 SMALL BUSINESS GRANT
Eden District Council,http://opendatacommunities.org/id/district-council/eden,Financial Services Manager,Emergency Planning and Works,Grants and contributions,Ashberry Guest House.,40187660,19/03/2021,191471,2096,COVID 19 SMALL BUSINESS GRANT
Eden District Council,http://opendatacommunities.org/id/district-council/eden,Financial Services Manager,Emergency Planning and Works,Grants and contributions,the hired lad,40187677,19/03/2021,191472,2096,COVID 19 SMALL BUSINESS GRANT
Eden District Council,http://opendatacommunities.org/id/district-council/eden,Financial Services Manager,Emergency Planning and Works,Grants and contributions,THE RATE PAYER,40188045,19/03/2021,191473,2096,COVID 19 SMALL BUSINESS GRANT
Eden District Council,http://opendatacommunities.org/id/district-council/eden,Financial Services Manager,Emergency Planning and Works,Grants and contributions,THE RATE PAYER,40188274,19/03/2021,191474,2096,COVID 19 SMALL BUSINESS GRANT
Eden District Council,http://opendatacommunities.org/id/district-council/eden,Financial Services Manager,Emergency Planning and Works,Grants and contributions,The Byre Leases,40188335,19/03/2021,191475,2096,COVID 19 SMALL BUSINESS GRANT
Eden District Council,http://opendatacommunities.org/id/district-council/eden,Financial Services Manager,Emergency Planning and Works,Grants and contributions,THE RATE PAYER,40188489,19/03/2021,191476,2096,COVID 19 SMALL BUSINESS GRANT
Eden District Council,http://opendatacommunities.org/id/district-council/eden,Financial Services Manager,Emergency Planning and Works,Grants and contributions,THE RATE PAYER,40188595,19/03/2021,191477,2096,COVID 19 SMALL BUSINESS GRANT
Eden District Council,http://opendatacommunities.org/id/district-council/eden,Financial Services Manager,Emergency Planning and Works,Grants and contributions, Little Treasures,40188694,19/03/2021,191478,2096,COVID 19 SMALL BUSINESS GRANT
Eden District Council,http://opendatacommunities.org/id/district-council/eden,Financial Services Manager,Emergency Planning and Works,Grants and contributions,THE RATE PAYER,40188939,19/03/2021,191479,2096,COVID 19 SMALL BUSINESS GRANT
Eden District Council,http://opendatacommunities.org/id/district-council/eden,Financial Services Manager,Emergency Planning and Works,Grants and contributions,Daw Bank Cottage,40189109,19/03/2021,191480,2096,COVID 19 SMALL BUSINESS GRANT
Eden District Council,http://opendatacommunities.org/id/district-council/eden,Financial Services Manager,Emergency Planning and Works,Grants and contributions,Allen (Park Foot) Ltd,40189475,19/03/2021,191481,2096,COVID 19 SMALL BUSINESS GRANT
Eden District Council,http://opendatacommunities.org/id/district-council/eden,Financial Services Manager,Emergency Planning and Works,Grants and contributions,Mini Murton House,40189598,19/03/2021,191482,2096,COVID 19 SMALL BUSINESS GRANT
Eden District Council,http://opendatacommunities.org/id/district-council/eden,Financial Services Manager,Emergency Planning and Works,Grants and contributions,Beacon Social Club,40189710,19/03/2021,191483,2096,COVID 19 SMALL BUSINESS GRANT
Eden District Council,http://opendatacommunities.org/id/district-council/eden,Financial Services Manager,Emergency Planning and Works,Grants and contributions,The Midland Hotel,40189734,19/03/2021,191484,2096,COVID 19 SMALL BUSINESS GRANT
Eden District Council,http://opendatacommunities.org/id/district-council/eden,Financial Services Manager,Emergency Planning and Works,Grants and contributions,N&s porter ltd,40189888,19/03/2021,191485,2096,COVID 19 SMALL BUSINESS GRANT
Eden District Council,http://opendatacommunities.org/id/district-council/eden,Financial Services Manager,Emergency Planning and Works,Grants and contributions,ORTON MARKET HALL,40189949,19/03/2021,191486,2096,COVID 19 SMALL BUSINESS GRANT
Eden District Council,http://opendatacommunities.org/id/district-council/eden,Financial Services Manager,Emergency Planning and Works,Grants and contributions,THE RATE PAYER,40190260,19/03/2021,191487,2096,COVID 19 SMALL BUSINESS GRANT
Eden District Council,http://opendatacommunities.org/id/district-council/eden,Financial Services Manager,Emergency Planning and Works,Grants and contributions,THE RATE PAYER,40190314,19/03/2021,191488,2096,COVID 19 SMALL BUSINESS GRANT
Eden District Council,http://opendatacommunities.org/id/district-council/eden,Financial Services Manager,Emergency Planning and Works,Grants and contributions,Hearth & Home (Cumbria) Ltd,40190505,19/03/2021,191489,2096,COVID 19 SMALL BUSINESS GRANT
Eden District Council,http://opendatacommunities.org/id/district-council/eden,Financial Services Manager,Emergency Planning and Works,Grants and contributions,THE RATE PAYER,40191010,19/03/2021,191490,2096,COVID 19 SMALL BUSINESS GRANT
Eden District Council,http://opendatacommunities.org/id/district-council/eden,Financial Services Manager,Emergency Planning and Works,Grants and contributions,Wearmouth Plant Hire Ltd,40191072,19/03/2021,191491,2096,COVID 19 SMALL BUSINESS GRANT
Eden District Council,http://opendatacommunities.org/id/district-council/eden,Financial Services Manager,Emergency Planning and Works,Grants and contributions,THE RATE PAYER,40191201,19/03/2021,191492,2096,COVID 19 SMALL BUSINESS GRANT
Eden District Council,http://opendatacommunities.org/id/district-council/eden,Financial Services Manager,Emergency Planning and Works,Grants and contributions,The Holiday Cottages  Greystone,40191423,19/03/2021,191493,2096,COVID 19 SMALL BUSINESS GRANT
Eden District Council,http://opendatacommunities.org/id/district-council/eden,Financial Services Manager,Emergency Planning and Works,Grants and contributions,Ice cream parlour and tearoom,40191485,19/03/2021,191494,2096,COVID 19 SMALL BUSINESS GRANT
Eden District Council,http://opendatacommunities.org/id/district-council/eden,Financial Services Manager,Emergency Planning and Works,Grants and contributions,Beauthorn Cottage and Coach House,40191492,19/03/2021,191495,2096,COVID 19 SMALL BUSINESS GRANT
Eden District Council,http://opendatacommunities.org/id/district-council/eden,Financial Services Manager,Emergency Planning and Works,Grants and contributions,THE RATE PAYER,40192006,19/03/2021,191496,2096,COVID 19 SMALL BUSINESS GRANT
Eden District Council,http://opendatacommunities.org/id/district-council/eden,Financial Services Manager,Emergency Planning and Works,Grants and contributions,Yvojim Ltd t/a Bojangles,40192129,19/03/2021,191497,2096,COVID 19 SMALL BUSINESS GRANT
Eden District Council,http://opendatacommunities.org/id/district-council/eden,Financial Services Manager,Emergency Planning and Works,Grants and contributions,BECKSTONES ART GALLERY LIMITED,40192204,19/03/2021,191498,2096,COVID 19 SMALL BUSINESS GRANT
Eden District Council,http://opendatacommunities.org/id/district-council/eden,Financial Services Manager,Emergency Planning and Works,Grants and contributions,THE RATE PAYER,40192228,19/03/2021,191499,2096,COVID 19 SMALL BUSINESS GRANT
Eden District Council,http://opendatacommunities.org/id/district-council/eden,Financial Services Manager,Emergency Planning and Works,Grants and contributions,Alston Moor Fitness Club LTD,40192433,19/03/2021,191500,2096,COVID 19 SMALL BUSINESS GRANT
Eden District Council,http://opendatacommunities.org/id/district-council/eden,Financial Services Manager,Emergency Planning and Works,Grants and contributions,THE RATE PAYER,40192976,19/03/2021,191501,2096,COVID 19 SMALL BUSINESS GRANT
Eden District Council,http://opendatacommunities.org/id/district-council/eden,Financial Services Manager,Emergency Planning and Works,Grants and contributions,Bb�s gents hairstylist�s,40193054,19/03/2021,191502,2096,COVID 19 SMALL BUSINESS GRANT
Eden District Council,http://opendatacommunities.org/id/district-council/eden,Financial Services Manager,Emergency Planning and Works,Grants and contributions,Finesse Jewellery Ltd,40193634,19/03/2021,191503,2096,COVID 19 SMALL BUSINESS GRANT
Eden District Council,http://opendatacommunities.org/id/district-council/eden,Financial Services Manager,Emergency Planning and Works,Grants and contributions,THE RATE PAYER,40194064,19/03/2021,191504,2096,COVID 19 SMALL BUSINESS GRANT
Eden District Council,http://opendatacommunities.org/id/district-council/eden,Financial Services Manager,Emergency Planning and Works,Grants and contributions,Old Croft House,40194088,19/03/2021,191505,2096,COVID 19 SMALL BUSINESS GRANT
Eden District Council,http://opendatacommunities.org/id/district-council/eden,Financial Services Manager,Emergency Planning and Works,Grants and contributions,3 High Rake Glenridding,40194583,19/03/2021,191506,2096,COVID 19 SMALL BUSINESS GRANT
Eden District Council,http://opendatacommunities.org/id/district-council/eden,Financial Services Manager,Emergency Planning and Works,Grants and contributions,Silver Sweets,40194637,19/03/2021,191507,2096,COVID 19 SMALL BUSINESS GRANT
Eden District Council,http://opendatacommunities.org/id/district-council/eden,Financial Services Manager,Emergency Planning and Works,Grants and contributions,Maple Bridge Corporation Ltd,40194644,19/03/2021,191508,2096,COVID 19 SMALL BUSINESS GRANT
Eden District Council,http://opendatacommunities.org/id/district-council/eden,Financial Services Manager,Emergency Planning and Works,Grants and contributions,Settle & Carlisle Railway Properties LimSe,40200037,19/03/2021,191509,2096,COVID 19 SMALL BUSINESS GRANT
Eden District Council,http://opendatacommunities.org/id/district-council/eden,Financial Services Manager,Emergency Planning and Works,Grants and contributions,Penrith AFC,40200099,19/03/2021,191510,2096,COVID 19 SMALL BUSINESS GRANT
Eden District Council,http://opendatacommunities.org/id/district-council/eden,Financial Services Manager,Emergency Planning and Works,Grants and contributions,THE RATE PAYER,40200181,19/03/2021,191511,2096,COVID 19 SMALL BUSINESS GRANT
Eden District Council,http://opendatacommunities.org/id/district-council/eden,Financial Services Manager,Emergency Planning and Works,Grants and contributions,THE RATE PAYER,40200235,19/03/2021,191512,2096,COVID 19 SMALL BUSINESS GRANT
Eden District Council,http://opendatacommunities.org/id/district-council/eden,Financial Services Manager,Emergency Planning and Works,Grants and contributions,THE RATE PAYER,40200297,19/03/2021,191513,2096,COVID 19 SMALL BUSINESS GRANT
Eden District Council,http://opendatacommunities.org/id/district-council/eden,Financial Services Manager,Emergency Planning and Works,Grants and contributions,THE RATE PAYER,40200310,19/03/2021,191514,2096,COVID 19 SMALL BUSINESS GRANT
Eden District Council,http://opendatacommunities.org/id/district-council/eden,Financial Services Manager,Emergency Planning and Works,Grants and contributions,Lord Mayors Barn,40200594,19/03/2021,191515,2096,COVID 19 SMALL BUSINESS GRANT
Eden District Council,http://opendatacommunities.org/id/district-council/eden,Financial Services Manager,Emergency Planning and Works,Grants and contributions,Ecostay Ltd.,40200815,19/03/2021,191516,2096,COVID 19 SMALL BUSINESS GRANT
Eden District Council,http://opendatacommunities.org/id/district-council/eden,Financial Services Manager,Emergency Planning and Works,Grants and contributions,Greengill Holidays,40201092,19/03/2021,191517,2096,COVID 19 SMALL BUSINESS GRANT
Eden District Council,http://opendatacommunities.org/id/district-council/eden,Financial Services Manager,Emergency Planning and Works,Grants and contributions,Bowman Carpets Limited,40201184,19/03/2021,191518,2096,COVID 19 SMALL BUSINESS GRANT
Eden District Council,http://opendatacommunities.org/id/district-council/eden,Financial Services Manager,Emergency Planning and Works,Grants and contributions,THE RATE PAYER,40201238,19/03/2021,191519,2096,COVID 19 SMALL BUSINESS GRANT
Eden District Council,http://opendatacommunities.org/id/district-council/eden,Financial Services Manager,Emergency Planning and Works,Grants and contributions,The Annex Bank House,40201573,19/03/2021,191520,2096,COVID 19 SMALL BUSINESS GRANT
Eden District Council,http://opendatacommunities.org/id/district-council/eden,Financial Services Manager,Emergency Planning and Works,Grants and contributions,THE RATE PAYER,40201986,19/03/2021,191521,2096,COVID 19 SMALL BUSINESS GRANT
Eden District Council,http://opendatacommunities.org/id/district-council/eden,Financial Services Manager,Emergency Planning and Works,Grants and contributions,Ravenstonedale Community & Heritage Centre,40202057,19/03/2021,191522,2096,COVID 19 SMALL BUSINESS GRANT
Eden District Council,http://opendatacommunities.org/id/district-council/eden,Financial Services Manager,Emergency Planning and Works,Grants and contributions,Maulds Meaburn Village Institute,40202071,19/03/2021,191523,2096,COVID 19 SMALL BUSINESS GRANT
Eden District Council,http://opendatacommunities.org/id/district-council/eden,Financial Services Manager,Emergency Planning and Works,Grants and contributions,Fellbites,40202286,19/03/2021,191524,2096,COVID 19 SMALL BUSINESS GRANT
Eden District Council,http://opendatacommunities.org/id/district-council/eden,Financial Services Manager,Emergency Planning and Works,Grants and contributions,North Bank,40202347,19/03/2021,191525,2096,COVID 19 SMALL BUSINESS GRANT
Eden District Council,http://opendatacommunities.org/id/district-council/eden,Financial Services Manager,Emergency Planning and Works,Grants and contributions,The Barn,40202484,19/03/2021,191526,2096,COVID 19 SMALL BUSINESS GRANT
Eden District Council,http://opendatacommunities.org/id/district-council/eden,Financial Services Manager,Emergency Planning and Works,Grants and contributions,THE RATE PAYER,40202507,19/03/2021,191527,2096,COVID 19 SMALL BUSINESS GRANT
Eden District Council,http://opendatacommunities.org/id/district-council/eden,Financial Services Manager,Emergency Planning and Works,Grants and contributions,Mount Pleasant,40202644,19/03/2021,191528,2096,COVID 19 SMALL BUSINESS GRANT
Eden District Council,http://opendatacommunities.org/id/district-council/eden,Financial Services Manager,Emergency Planning and Works,Grants and contributions,THE RATE PAYER,40202934,19/03/2021,191529,2096,COVID 19 SMALL BUSINESS GRANT
Eden District Council,http://opendatacommunities.org/id/district-council/eden,Financial Services Manager,Emergency Planning and Works,Grants and contributions,Unit 20,40202941,19/03/2021,191530,2096,COVID 19 SMALL BUSINESS GRANT
Eden District Council,http://opendatacommunities.org/id/district-council/eden,Financial Services Manager,Emergency Planning and Works,Grants and contributions,THE RATE PAYER,40203241,19/03/2021,191531,2096,COVID 19 SMALL BUSINESS GRANT
Eden District Council,http://opendatacommunities.org/id/district-council/eden,Financial Services Manager,Emergency Planning and Works,Grants and contributions,THE RATE PAYER,40203487,19/03/2021,191532,2096,COVID 19 SMALL BUSINESS GRANT
Eden District Council,http://opendatacommunities.org/id/district-council/eden,Financial Services Manager,Emergency Planning and Works,Grants and contributions,THE RATE PAYER,40203500,19/03/2021,191533,2096,COVID 19 SMALL BUSINESS GRANT
Eden District Council,http://opendatacommunities.org/id/district-council/eden,Financial Services Manager,Emergency Planning and Works,Grants and contributions,White Horse Inn,40203531,19/03/2021,191534,2096,COVID 19 SMALL BUSINESS GRANT
Eden District Council,http://opendatacommunities.org/id/district-council/eden,Financial Services Manager,Emergency Planning and Works,Grants and contributions,Cockabundee Ltd,40203944,19/03/2021,191535,2096,COVID 19 SMALL BUSINESS GRANT
Eden District Council,http://opendatacommunities.org/id/district-council/eden,Financial Services Manager,Emergency Planning and Works,Grants and contributions,THE RATE PAYER,40203951,19/03/2021,191536,2096,COVID 19 SMALL BUSINESS GRANT
Eden District Council,http://opendatacommunities.org/id/district-council/eden,Financial Services Manager,Emergency Planning and Works,Grants and contributions,THE MILL YARD CAFE,40204190,19/03/2021,191537,2096,COVID 19 SMALL BUSINESS GRANT
Eden District Council,http://opendatacommunities.org/id/district-council/eden,Financial Services Manager,Emergency Planning and Works,Grants and contributions,nateby inn limited,40204213,19/03/2021,191538,2096,COVID 19 SMALL BUSINESS GRANT
Eden District Council,http://opendatacommunities.org/id/district-council/eden,Financial Services Manager,Emergency Planning and Works,Grants and contributions,THE RATE PAYER,40204251,19/03/2021,191539,2096,COVID 19 SMALL BUSINESS GRANT
Eden District Council,http://opendatacommunities.org/id/district-council/eden,Financial Services Manager,Emergency Planning and Works,Grants and contributions,THE RATE PAYER,40204398,19/03/2021,191540,2096,COVID 19 SMALL BUSINESS GRANT
Eden District Council,http://opendatacommunities.org/id/district-council/eden,Financial Services Manager,Emergency Planning and Works,Grants and contributions,barn conversion at underhowe,40204435,19/03/2021,191541,2096,COVID 19 SMALL BUSINESS GRANT
Eden District Council,http://opendatacommunities.org/id/district-council/eden,Financial Services Manager,Emergency Planning and Works,Grants and contributions,Fettlers Holiday Cottage,40204527,19/03/2021,191542,2096,COVID 19 SMALL BUSINESS GRANT
Eden District Council,http://opendatacommunities.org/id/district-council/eden,Financial Services Manager,Emergency Planning and Works,Grants and contributions,Sour Nook Inn,40204541,19/03/2021,191543,2096,COVID 19 SMALL BUSINESS GRANT
Eden District Council,http://opendatacommunities.org/id/district-council/eden,Financial Services Manager,Emergency Planning and Works,Grants and contributions,Scalebeck Holiday Cottages,40204862,19/03/2021,191544,2096,COVID 19 SMALL BUSINESS GRANT
Eden District Council,http://opendatacommunities.org/id/district-council/eden,Financial Services Manager,Emergency Planning and Works,Grants and contributions,THE RATE PAYER,40204879,19/03/2021,191545,2096,COVID 19 SMALL BUSINESS GRANT
Eden District Council,http://opendatacommunities.org/id/district-council/eden,Financial Services Manager,Emergency Planning and Works,Grants and contributions,Holly Lodge,40205025,19/03/2021,191546,2096,COVID 19 SMALL BUSINESS GRANT
Eden District Council,http://opendatacommunities.org/id/district-council/eden,Financial Services Manager,Emergency Planning and Works,Grants and contributions,crown hotel eamont bridge,40205605,19/03/2021,191547,2096,COVID 19 SMALL BUSINESS GRANT
Eden District Council,http://opendatacommunities.org/id/district-council/eden,Financial Services Manager,Emergency Planning and Works,Grants and contributions,THE RATE PAYER,40205735,19/03/2021,191548,2096,COVID 19 SMALL BUSINESS GRANT
Eden District Council,http://opendatacommunities.org/id/district-council/eden,Financial Services Manager,Emergency Planning and Works,Grants and contributions,Annexe Old Manse Park Head,40205919,19/03/2021,191549,2096,COVID 19 SMALL BUSINESS GRANT
Eden District Council,http://opendatacommunities.org/id/district-council/eden,Financial Services Manager,Emergency Planning and Works,Grants and contributions,THE RATE PAYER,40206073,19/03/2021,191550,2096,COVID 19 SMALL BUSINESS GRANT
Eden District Council,http://opendatacommunities.org/id/district-council/eden,Financial Services Manager,Emergency Planning and Works,Grants and contributions,1 CROSSFELL VIEW,40206103,19/03/2021,191551,2096,COVID 19 SMALL BUSINESS GRANT
Eden District Council,http://opendatacommunities.org/id/district-council/eden,Financial Services Manager,Emergency Planning and Works,Grants and contributions,Twinkletoes of Penrith,40206486,19/03/2021,191552,2096,COVID 19 SMALL BUSINESS GRANT
Eden District Council,http://opendatacommunities.org/id/district-council/eden,Financial Services Manager,Emergency Planning and Works,Grants and contributions,THE RATE PAYER,40206592,19/03/2021,191553,2096,COVID 19 SMALL BUSINESS GRANT
Eden District Council,http://opendatacommunities.org/id/district-council/eden,Financial Services Manager,Emergency Planning and Works,Grants and contributions,THE RATE PAYER,40206622,19/03/2021,191554,2096,COVID 19 SMALL BUSINESS GRANT
Eden District Council,http://opendatacommunities.org/id/district-council/eden,Financial Services Manager,Emergency Planning and Works,Grants and contributions,Steeles Mill,40206707,19/03/2021,191555,2096,COVID 19 SMALL BUSINESS GRANT
Eden District Council,http://opendatacommunities.org/id/district-council/eden,Financial Services Manager,Emergency Planning and Works,Grants and contributions,THE RATE PAYER,40206752,19/03/2021,191556,2096,COVID 19 SMALL BUSINESS GRANT
Eden District Council,http://opendatacommunities.org/id/district-council/eden,Financial Services Manager,Emergency Planning and Works,Grants and contributions,Heart and Soul,40206806,19/03/2021,191557,2096,COVID 19 SMALL BUSINESS GRANT
Eden District Council,http://opendatacommunities.org/id/district-council/eden,Financial Services Manager,Emergency Planning and Works,Grants and contributions,THE RATE PAYER,40207397,19/03/2021,191558,2096,COVID 19 SMALL BUSINESS GRANT
Eden District Council,http://opendatacommunities.org/id/district-council/eden,Financial Services Manager,Emergency Planning and Works,Grants and contributions,Joiners Arms,40207618,19/03/2021,191559,2096,COVID 19 SMALL BUSINESS GRANT
Eden District Council,http://opendatacommunities.org/id/district-council/eden,Financial Services Manager,Emergency Planning and Works,Grants and contributions,THE RATE PAYER,40207656,19/03/2021,191560,2096,COVID 19 SMALL BUSINESS GRANT
Eden District Council,http://opendatacommunities.org/id/district-council/eden,Financial Services Manager,Emergency Planning and Works,Grants and contributions,THE RATE PAYER,40207830,19/03/2021,191561,2096,COVID 19 SMALL BUSINESS GRANT
Eden District Council,http://opendatacommunities.org/id/district-council/eden,Financial Services Manager,Emergency Planning and Works,Grants and contributions,Couture hairdressing ltd,40207878,19/03/2021,191562,2096,COVID 19 SMALL BUSINESS GRANT
Eden District Council,http://opendatacommunities.org/id/district-council/eden,Financial Services Manager,Emergency Planning and Works,Grants and contributions,THE MILL & FORD COTTAGE,40207939,19/03/2021,191563,2096,COVID 19 SMALL BUSINESS GRANT
Eden District Council,http://opendatacommunities.org/id/district-council/eden,Financial Services Manager,Emergency Planning and Works,Grants and contributions,Debonair 5poets walk,40208086,19/03/2021,191564,2096,COVID 19 SMALL BUSINESS GRANT
Eden District Council,http://opendatacommunities.org/id/district-council/eden,Financial Services Manager,Emergency Planning and Works,Grants and contributions,The Tower House Pool,40208185,19/03/2021,191565,2096,COVID 19 SMALL BUSINESS GRANT
Eden District Council,http://opendatacommunities.org/id/district-council/eden,Financial Services Manager,Emergency Planning and Works,Grants and contributions,Church Court Cottages,40208192,19/03/2021,191566,2096,COVID 19 SMALL BUSINESS GRANT
Eden District Council,http://opendatacommunities.org/id/district-council/eden,Financial Services Manager,Emergency Planning and Works,Grants and contributions,THE RATE PAYER,40208314,19/03/2021,191567,2096,COVID 19 SMALL BUSINESS GRANT
Eden District Council,http://opendatacommunities.org/id/district-council/eden,Financial Services Manager,Emergency Planning and Works,Grants and contributions,Far Boathouse Leeming,40208444,19/03/2021,191568,2096,COVID 19 SMALL BUSINESS GRANT
Eden District Council,http://opendatacommunities.org/id/district-council/eden,Financial Services Manager,Emergency Planning and Works,Grants and contributions,THE RATE PAYER,40208536,19/03/2021,191569,2096,COVID 19 SMALL BUSINESS GRANT
Eden District Council,http://opendatacommunities.org/id/district-council/eden,Financial Services Manager,Emergency Planning and Works,Grants and contributions,Log Cabin at Coatlith Hill Farm,40208574,19/03/2021,191570,2096,COVID 19 SMALL BUSINESS GRANT
Eden District Council,http://opendatacommunities.org/id/district-council/eden,Financial Services Manager,Emergency Planning and Works,Grants and contributions,THE RATE PAYER,40208604,19/03/2021,191571,2096,COVID 19 SMALL BUSINESS GRANT
Eden District Council,http://opendatacommunities.org/id/district-council/eden,Financial Services Manager,Emergency Planning and Works,Grants and contributions,Stainmore Railway Company Ltd.,40208680,19/03/2021,191572,2096,COVID 19 SMALL BUSINESS GRANT
Eden District Council,http://opendatacommunities.org/id/district-council/eden,Financial Services Manager,Emergency Planning and Works,Grants and contributions,THE RATE PAYER,40208826,19/03/2021,191573,2096,COVID 19 SMALL BUSINESS GRANT
Eden District Council,http://opendatacommunities.org/id/district-council/eden,Financial Services Manager,Emergency Planning and Works,Grants and contributions,ANGEL LANE CHIPPIE LIMITED,40208833,19/03/2021,191574,2096,COVID 19 SMALL BUSINESS GRANT
Eden District Council,http://opendatacommunities.org/id/district-council/eden,Financial Services Manager,Emergency Planning and Works,Grants and contributions,THE RATE PAYER,40208932,19/03/2021,191575,2096,COVID 19 SMALL BUSINESS GRANT
Eden District Council,http://opendatacommunities.org/id/district-council/eden,Financial Services Manager,Emergency Planning and Works,Grants and contributions,Haggs bank bunkhouse,40208970,19/03/2021,191576,2096,COVID 19 SMALL BUSINESS GRANT
Eden District Council,http://opendatacommunities.org/id/district-council/eden,Financial Services Manager,Emergency Planning and Works,Grants and contributions,Crown Inn,40209072,19/03/2021,191577,2096,COVID 19 SMALL BUSINESS GRANT
Eden District Council,http://opendatacommunities.org/id/district-council/eden,Financial Services Manager,Emergency Planning and Works,Grants and contributions,THE RATE PAYER,40209119,19/03/2021,191578,2096,COVID 19 SMALL BUSINESS GRANT
Eden District Council,http://opendatacommunities.org/id/district-council/eden,Financial Services Manager,Emergency Planning and Works,Grants and contributions,ARTLEGARTH COUNTRY LODGE BREAKS LTD,40209157,19/03/2021,191579,2096,COVID 19 SMALL BUSINESS GRANT
Eden District Council,http://opendatacommunities.org/id/district-council/eden,Financial Services Manager,Emergency Planning and Works,Grants and contributions,Postbox pantry,40209201,19/03/2021,191580,2096,COVID 19 SMALL BUSINESS GRANT
Eden District Council,http://opendatacommunities.org/id/district-council/eden,Financial Services Manager,Emergency Planning and Works,Grants and contributions,Terence James Curry,40209218,19/03/2021,191581,2096,COVID 19 SMALL BUSINESS GRANT
Eden District Council,http://opendatacommunities.org/id/district-council/eden,Financial Services Manager,Emergency Planning and Works,Grants and contributions,2 Rose Cottages,40209508,19/03/2021,191582,2096,COVID 19 SMALL BUSINESS GRANT
Eden District Council,http://opendatacommunities.org/id/district-council/eden,Financial Services Manager,Emergency Planning and Works,Grants and contributions,THE RATE PAYER,40209577,19/03/2021,191583,2096,COVID 19 SMALL BUSINESS GRANT
Eden District Council,http://opendatacommunities.org/id/district-council/eden,Financial Services Manager,Emergency Planning and Works,Grants and contributions,THE RATE PAYER,40209614,19/03/2021,191584,2096,COVID 19 SMALL BUSINESS GRANT
Eden District Council,http://opendatacommunities.org/id/district-council/eden,Financial Services Manager,Emergency Planning and Works,Grants and contributions,THE RATE PAYER,40209652,19/03/2021,191585,2096,COVID 19 SMALL BUSINESS GRANT
Eden District Council,http://opendatacommunities.org/id/district-council/eden,Financial Services Manager,Emergency Planning and Works,Grants and contributions,Mulvey Antique Clocks,40209676,19/03/2021,191586,2096,COVID 19 SMALL BUSINESS GRANT
Eden District Council,http://opendatacommunities.org/id/district-council/eden,Financial Services Manager,Emergency Planning and Works,Grants and contributions,ARCHWAY,40209744,19/03/2021,191587,2096,COVID 19 SMALL BUSINESS GRANT
Eden District Council,http://opendatacommunities.org/id/district-council/eden,Financial Services Manager,Emergency Planning and Works,Grants and contributions,THE RATE PAYER,40209768,19/03/2021,191588,2096,COVID 19 SMALL BUSINESS GRANT
